Workbook

Sheet Main
A2: SOCSO Weekly Portfolio Position
F4: * Please sheet(s) to print | H4: * For pivot table listing control
F5: Sheet | G5: YES/NO | H5: Start Row | I5: Last Col
B6: Company : | C6: NOMURA ASSET MANAGEMENT MALAYSIA SDN BHD | D6: =VLOOKUP(FundCode,InFund!A2:G75,7,0) -> NM | F6: PortVal | G6: YES | H6: 8 | I6: 14
B7: Fund : | C7: SOCSO | D7: =VLOOKUP(FundCode,InFund!A2:G76,6,0) -> 2020-12-31 | F7: Summary | G7: YES
B8: Fund Name : | C8: =VLOOKUP(FundCode,InFund!A2:G75,2,0) -> PERTUBUHAN KESELAMATAN SOSIAL(SOCSO)
B9: Start Date : | C9: =EndDate-WEEKDAY(EndDate,2)+1 -> 2021-10-18 | D9: =DATE(YEAR(ValueDate), MONTH(ValueDate), 0) -> 2021-09-30
B10: End Date: | C10: 2021-10-22
B11: Email Address : | D11: =IF(D12>366,DATEVALUE(DAY(FinYrEnd) &"/" & MONTH(FinYrEnd) & "/" &YEAR(ValueDate)),DATEVALUE(DAY(FinYrEnd) &"/" & MONTH(FinYrEnd) & "/" &YEAR(ValueDate)-1)) -> 2020-12-31
D12: =ValueDate-DATEVALUE(DAY(FinYrEnd) &"/" & MONTH(FinYrEnd) & "/" &YEAR(ValueDate)-1) -> 291
D13: http://192.168.82.6:8099/RiskkSvc
D14: =VLOOKUP(FundCode,InFund!A2:H75,8,0) -> 1
D15: =IF(EOYFlag=1,IF(MONTH(LstYrEnd)=MONTH(BOM),1,0),0) -> 0

Sheet InJournal (hidden)
A1: GLKey | B1: JournalID | C1: GLCode | D1: qFundCode | E1: qCurrencyCode | F1: AccDate | G1: Description | H1: Amount | I1: TrialBalanceRef | J1: UnitPricingFlag | K1: ApprovalStatus | L1: AppDtTime | M1: AppOrRejBy | N1: AutoPostFlag | O1: SPeriod | P1: FirstGL | Q1: ShortGL | R1: CPName
A2: MAN*210200451 | B2: N000281777 | C2: SOCSO-MYR000-500000 | D2: SOCSO | E2: MYR | F2: 2021-02-23 | G2: Compensation to client | H2: 330.82 | J2: 500 | K2: A | L2: 3000-01-01 | M2: N/A | N2: 1900-01-01 | O2: Prev | P2: 5 | Q2: 500000 | R2: HSBC BANK
A3: MAN*210200452 | B3: N000281777 | C3: SOCSO-MYR000-640003 | D3: SOCSO | E3: MYR | F3: 2021-02-23 | G3: Compensation to client | H3: -330.82 | J3: 500 | K3: A | L3: 3000-01-01 | M3: N/A | N3: 1900-01-01 | O3: Prev | P3: 6 | Q3: 640003 | R3: HSBC BANK
A4: MAN*210501237 | B4: JV-21050072 | C4: SOCSO-MYR000-640004 | D4: SOCSO | E4: MYR | F4: 2021-02-26 | G4: Management Fee | H4: -177840.98 | J4: 0 | K4: P | L4: 1900-01-02 | M4: N/A | N4: 00:00:00 | O4: Prev | P4: 6 | Q4: 640004 | R4: HSBC BANK
A5: MAN*210501238 | B5: JV-21050072 | C5: SOCSO-MYR000-710106 | D5: SOCSO | E5: MYR | F5: 2021-02-26 | G5: Management Fee | H5: 177840.98 | J5: 0 | K5: P | L5: 1900-01-02 | M5: N/A | N5: 00:00:00 | O5: Prev | P5: 7 | Q5: 710106 | R5: HSBC BANK
A6: MAN*210602805 | B6: JV-21060250 | C6: SOCSO-MYR000-600000 | D6: SOCSO | E6: MYR | F6: 2021-04-30 | G6: Impairment | H6: 252280.45 | J6: 0 | K6: P | L6: 1900-01-02 | M6: N/A | N6: 00:00:00 | O6: Prev | P6: 6 | Q6: 600000 | R6: HSBC BANK
A7: MAN*210602806 | B7: JV-21060250 | C7: SOCSO-MYR000-601000 | D7: SOCSO | E7: MYR | F7: 2021-04-30 | G7: Impairment | H7: -252280.45 | J7: 0 | K7: P | L7: 1900-01-02 | M7: N/A | N7: 00:00:00 | O7: Prev | P7: 6 | Q7: 601000 | R7: HSBC BANK
A8: MAN*210602867 | B8: JV-21060260 | C8: SOCSO-MYR000-600000 | D8: SOCSO | E8: MYR | F8: 2021-04-30 | G8: Reverse impairment | H8: -252280.45 | J8: 0 | K8: P | L8: 1900-01-02 | M8: N/A | N8: 00:00:00 | O8: Prev | P8: 6 | Q8: 600000 | R8: HSBC BANK
A9: MAN*210602868 | B9: JV-21060260 | C9: SOCSO-MYR000-601000 | D9: SOCSO | E9: MYR | F9: 2021-04-30 | G9: Reverse impairment | H9: 252280.45 | J9: 0 | K9: P | L9: 1900-01-02 | M9: N/A | N9: 00:00:00 | O9: Prev | P9: 6 | Q9: 601000 | R9: HSBC BANK
A10: MAN*210700037 | B10: N000299280 | C10: SOCSO-MYR000-500000 | D10: SOCSO | E10: MYR | F10: 2021-06-30 | G10: Interest Received | H10: 709.52 | J10: 500 | K10: A | L10: 3000-01-01 | M10: N/A | N10: 1900-01-01 | O10: Prev | P10: 5 | Q10: 500000 | R10: HSBC BANK
A11: MAN*210700038 | B11: N000299280 | C11: SOCSO-MYR000-640002 | D11: SOCSO | E11: MYR | F11: 2021-06-30 | G11: Interest Received | H11: -709.52 | J11: 500 | K11: A | L11: 3000-01-01 | M11: N/A | N11: 1900-01-01 | O11: Prev | P11: 6 | Q11: 640002 | R11: HSBC BANK
A12: MAN*210701995 | B12: JV-21070199 | C12: SOCSO-MYR000-710106 | D12: SOCSO | E12: MYR | F12: 2021-05-05 | G12: Management Fee | H12: 187296.19 | J12: 0 | K12: P | L12: 1900-01-02 | M12: N/A | N12: 00:00:00 | O12: Prev | P12: 7 | Q12: 710106 | R12: HSBC BANK
A13: MAN*210701996 | B13: JV-21070199 | C13: SOCSO-MYR000-640004 | D13: SOCSO | E13: MYR | F13: 2021-05-05 | G13: Management Fee | H13: -187296.19 | J13: 0 | K13: P | L13: 1900-01-02 | M13: N/A | N13: 00:00:00 | O13: Prev | P13: 6 | Q13: 640004 | R13: HSBC BANK
A14: MAN*210702265 | B14: JV-21070223 | C14: SOCSO-MYR010-300000 | D14: SOCSO | E14: MYR | F14: 2021-05-31 | G14: Rounding Adjustment 0.01 | H14: 0.01 | J14: 0 | K14: P | L14: 1900-01-02 | M14: N/A | N14: 00:00:00 | O14: Prev | P14: 3 | Q14: 300000 | R14: HSBC BANK
A15: MAN*210702266 | B15: JV-21070223 | C15: SOCSO-MYR010-189000 | D15: SOCSO | E15: MYR | F15: 2021-05-31 | G15: Rounding Adjustment 0.01 | H15: -0.01 | J15: 0 | K15: P | L15: 1900-01-02 | M15: N/A | N15: 00:00:00 | O15: Prev | P15: 1 | Q15: 189000 | R15: HSBC BANK
A16: MAN*210702707 | B16: JV-21070252 | C16: SOCSO-MYR010-100000 | D16: SOCSO | E16: MYR | F16: 2021-06-30 | G16: Rounding Adjustment | H16: -0.01 | J16: 0 | K16: P | L16: 1900-01-02 | M16: N/A | N16: 00:00:00 | O16: Prev | P16: 1 | Q16: 100000 | R16: HSBC BANK
A17: MAN*210702708 | B17: JV-21070252 | C17: SOCSO-MYR000-700000 | D17: SOCSO | E17: MYR | F17: 2021-06-30 | G17: Rounding Adjustment | H17: 0.01 | J17: 0 | K17: P | L17: 1900-01-02 | M17: N/A | N17: 00:00:00 | O17: Prev | P17: 7 | Q17: 700000 | R17: HSBC BANK
A18: MAN*210900115 | B18: JV-21090019 | C18: SOCSO-MYR000-710106 | D18: SOCSO | E18: MYR | F18: 2021-08-23 | G18: Management Fee | H18: 176105.37 | J18: 0 | K18: P | L18: 1900-01-02 | M18: N/A | N18: 00:00:00 | O18: Prev | P18: 7 | Q18: 710106 | R18: HSBC BANK
A19: MAN*210900116 | B19: JV-21090019 | C19: SOCSO-MYR000-640004 | D19: SOCSO | E19: MYR | F19: 2021-08-23 | G19: Management Fee | H19: -176105.37 | J19: 0 | K19: P | L19: 1900-01-02 | M19: N/A | N19: 00:00:00 | O19: Prev | P19: 6 | Q19: 640004 | R19: HSBC BANK

Sheet InDiv (hidden)
A1: qstockcode | B1: FundName | C1: StockCurrency | D1: StockName | E1: PlaceFlag | F1: UTFlag | G1: FundCurrency | H1: SettleTrnAccDt | I1: Description | J1: CPName | K1: qCountry | L1: qAssetClass | M1: qManagerCode | N1: PurchaseDate | O1: qKLSESector | P1: RevDate | Q1: qIssuerCode | R1: CrossTrade | S1: ListedFlag | T1: StockCycle | U1: TranSCControl | V1: AccSCControl | W1: qFundGrpCode | X1: qEvtDeclareID | Y1: EvtUploaded | Z1: SecCountryID | AA1: FundGrpName | AB1: qCPType | AC1: CPTel | AD1: CPFax | AE1: CPContactPerson | AF1: ExchgRateSF | AG1: MaturityDate | AH1: PayDate | AI1: TradeDate | AJ1: RevDate1 | AK1: ReversalFlag | AL1: TranGains | AM1: TranIncome | AN1: TranPreAcq | AO1: TranPrice | AP1: TranProceed | AQ1: CPCountryID | AR1: SettCPCode | AS1: SCGrossProceed | AT1: SCNetProceed | AU1: SettCurrency | AV1: BankedAmt | AW1: BankGL | AX1: FCSettAmt | AY1: FCSettGL | AZ1: FXGainsAmt | BA1: FXGainsGL | BB1: TranAmortAccre | BC1: TranBuyCapital | BD1: TranExpenses | BE1: TranFXGnL | BF1: qPaymentModeID | BG1: SettReversalFlag | BH1: SettleAmt | BI1: SettleBankAcc | BJ1: SettleGL | BK1: FCSettCostAmt | BL1: FCSettCostGL | BM1: SettVoucher | BN1: DivCummFV | BO1: DivType | BP1: lodgedate | BQ1: ExRate | BR1: BursaCode | BS1: ISINCode
A2: B29H4P8 | B2: PERTUBUHAN KESELAMATAN SOSIAL(SOCSO) | C2: MYR | D2: AEON CREDIT SERVICE M BHD | E2: 1900-01-03 | F2: 00:00:00 | G2: MYR | H2: 2021-11-03 | I2: AEON CREDIT SERVICE M BHD | J2: NOT APPLICABLE | K2: MY | L2: EQT | M2: NAMM | N2: 2020-12-31 | O2: 4020 | P2: 401769 | Q2: N/A | R2: 0 | S2: 1 | T2: 0 | U2: 0 | W2: SOCSO | Z2: MY | AA2: PERTUBUHAN KESELAMATAN SOCIAL(SOCSO) | AB2: 4 | AC2: 03-2166 2636 | AD2: 03-20709387 | AE2: N/A | AF2: 1 | AG2: 3000-01-01 | AH2: 2021-11-03 | AI2: 2021-10-13 | AJ2: 3000-01-01 | AK2: 0 | AL2: -60587.01 | AM2: 00:00:00 | AN2: 00:00:00 | AO2: 0.285 | AP2: 0 | AQ2: MY | AR2: N/A | AS2: 60587.01 | AT2: 60587.01 | AU2: MYR | AV2: 60587.01 | AW2: SOCSO-MYR000-500000 | AX2: 0 | AZ2: 0 | BB2: 0 | BC2: 0 | BD2: 0 | BE2: 0 | BF2: DDT | BG2: 0 | BH2: -60587.01 | BI2: DF | BJ2: SOCSO-MYR010-299000 | BK2: 0 | BM2: VCH-211100309 | BN2: 212586 | BO2: Accrual | BP2: 2021-10-14 | BQ2: 1 | BR2: 5139 | BS2: MYL5139OO000
A3: B29H4P8 | B3: PERTUBUHAN KESELAMATAN SOSIAL(SOCSO) | C3: MYR | D3: AEON CREDIT SERVICE M BHD | E3: 1900-01-03 | F3: 00:00:00 | G3: MYR | H3: 2021-07-15 | I3: AEON CREDIT SERVICE M BHD | J3: NOT APPLICABLE | K3: MY | L3: EQT | M3: NAMM | N3: 2020-12-31 | O3: 4020 | P3: 401769 | Q3: N/A | R3: 0 | S3: 1 | T3: 0 | U3: 0 | W3: SOCSO | Z3: MY | AA3: PERTUBUHAN KESELAMATAN SOCIAL(SOCSO) | AB3: 4 | AC3: 03-2166 2636 | AD3: 03-20709387 | AE3: N/A | AF3: 1 | AG3: 3000-01-01 | AH3: 2021-07-15 | AI3: 2021-06-30 | AJ3: 3000-01-01 | AK3: 0 | AL3: -42517.2 | AM3: 00:00:00 | AN3: 00:00:00 | AO3: 0.2 | AP3: 0 | AQ3: MY | AR3: N/A | AS3: 42517.2 | AT3: 42517.2 | AU3: MYR | AV3: 42517.2 | AW3: SOCSO-MYR000-500000 | AX3: 0 | AZ3: 0 | BB3: 0 | BC3: 0 | BD3: 0 | BE3: 0 | BF3: DDT | BG3: 0 | BH3: -42517.2 | BI3: DF | BJ3: SOCSO-MYR010-299000 | BK3: 0 | BM3: VCH-210701461 | BN3: 212586 | BO3: Received | BP3: 2021-07-01 | BQ3: 1 | BR3: 5139 | BS3: MYL5139OO000
A4: BKRQ635 | B4: PERTUBUHAN KESELAMATAN SOSIAL(SOCSO) | C4: MYR | D4: AME ELITE CONSORTIUM BHD | E4: 1900-01-03 | F4: 00:00:00 | G4: MYR | H4: 2021-07-08 | I4: AME ELITE CONSORTIUM BHD | J4: NOT APPLICABLE | K4: MY | L4: EQT | M4: NAMM | N4: 2020-12-31 | O4: 2010 | P4: 401769 | Q4: N/A | R4: 0 | S4: 1 | T4: 0 | U4: 0 | W4: SOCSO | Z4: MY | AA4: PERTUBUHAN KESELAMATAN SOCIAL(SOCSO) | AB4: 4 | AC4: 03-2166 2636 | AD4: 03-20709387 | AE4: N/A | AF4: 1 | AG4: 3000-01-01 | AH4: 2021-07-08 | AI4: 2021-06-16 | AJ4: 3000-01-01 | AK4: 0 | AL4: -47724 | AM4: 00:00:00 | AN4: 00:00:00 | AO4: 0.04 | AP4: 0 | AQ4: MY | AR4: N/A | AS4: 47724 | AT4: 47724 | AU4: MYR | AV4: 47724 | AW4: SOCSO-MYR000-500000 | AX4: 0 | AZ4: 0 | BB4: 0 | BC4: 0 | BD4: 0 | BE4: 0 | BF4: DDT | BG4: 0 | BH4: -47724 | BI4: DF | BJ4: SOCSO-MYR010-299000 | BK4: 0 | BM4: VCH-210700633 | BN4: 1193100 | BO4: Received | BP4: 2021-06-17 | BQ4: 1 | BR4: 5293 | BS4: MYL5293OO005
A5: B2QZGV5 | B5: PERTUBUHAN KESELAMATAN SOSIAL(SOCSO) | C5: MYR | D5: AXIATA GROUP BERHAD | E5: 1900-01-03 | F5: 00:00:00 | G5: MYR | H5: 2021-04-08 | I5: AXIATA GROUP BERHAD | J5: NOT APPLICABLE | K5: MY | L5: EQT | M5: NAMM | N5: 2020-12-31 | O5: 5010 | P5: 401769 | Q5: N/A | R5: 0 | S5: 1 | T5: 0 | U5: 0 | W5: SOCSO | Z5: MY | AA5: PERTUBUHAN KESELAMATAN SOCIAL(SOCSO) | AB5: 4 | AC5: 03-2166 2636 | AD5: 03-20709387 | AE5: N/A | AF5: 1 | AG5: 3000-01-01 | AH5: 2021-04-08 | AI5: 2021-03-24 | AJ5: 3000-01-01 | AK5: 0 | AL5: -28385 | AM5: 00:00:00 | AN5: 00:00:00 | AO5: 0.05 | AP5: 0 | AQ5: MY | AR5: N/A | AS5: 28385 | AT5: 28385 | AU5: MYR | AV5: 28385 | AW5: SOCSO-MYR000-500000 | AX5: 0 | AZ5: 0 | BB5: 0 | BC5: 0 | BD5: 0 | BE5: 0 | BF5: DDT | BG5: 0 | BH5: -28385 | BI5: DF | BJ5: SOCSO-MYR010-299000 | BK5: 0 | BM5: VCH-210400696 | BN5: 567700 | BO5: Received | BP5: 2021-03-25 | BQ5: 1 | BR5: 6888 | BS5: MYL6888OO001
A6: B2QZGV5 | B6: PERTUBUHAN KESELAMATAN SOSIAL(SOCSO) | C6: MYR | D6: AXIATA GROUP BERHAD | E6: 1900-01-03 | F6: 00:00:00 | G6: MYR | H6: 2021-09-24 | I6: AXIATA GROUP BERHAD | J6: NOT APPLICABLE | K6: MY | L6: EQT | M6: NAMM | N6: 2020-12-31 | O6: 5010 | P6: 401769 | Q6: N/A | R6: 0 | S6: 1 | T6: 0 | U6: 0 | W6: SOCSO | Z6: MY | AA6: PERTUBUHAN KESELAMATAN SOCIAL(SOCSO) | AB6: 4 | AC6: 03-2166 2636 | AD6: 03-20709387 | AE6: N/A | AF6: 1 | AG6: 3000-01-01 | AH6: 2021-09-24 | AI6: 2021-09-14 | AJ6: 3000-01-01 | AK6: 0 | AL6: -31508 | AM6: 00:00:00 | AN6: 00:00:00 | AO6: 0.04 | AP6: 0 | AQ6: MY | AR6: N/A | AS6: 31508 | AT6: 31508 | AU6: MYR | AV6: 31508 | AW6: SOCSO-MYR000-500000 | AX6: 0 | AZ6: 0 | BB6: 0 | BC6: 0 | BD6: 0 | BE6: 0 | BF6: DDT | BG6: 0 | BH6: -31508 | BI6: DF | BJ6: SOCSO-MYR010-299000 | BK6: 0 | BM6: VCH-210902515 | BN6: 787700 | BO6: Received | BP6: 2021-09-15 | BQ6: 1 | BR6: 6888 | BS6: MYL6888OO001
A7: B0CMCL8 | B7: PERTUBUHAN KESELAMATAN SOSIAL(SOCSO) | C7: MYR | D7: AXIS REAL ESTATE INVESTMENT | E7: 1900-01-03 | F7: 00:00:00 | G7: MYR | H7: 2021-08-30 | I7: AXIS REAL ESTATE INVESTMENT | J7: NOT APPLICABLE | K7: MY | L7: EQT | M7: NAMM | N7: 2020-12-31 | O7: 6010 | P7: 401769 | Q7: N/A | R7: 0 | S7: 1 | T7: 0 | U7: 0 | W7: SOCSO | Z7: MY | AA7: PERTUBUHAN KESELAMATAN SOCIAL(SOCSO) | AB7: 4 | AC7: 03-2166 2636 | AD7: 03-20709387 | AE7: N/A | AF7: 1 | AG7: 3000-01-01 | AH7: 2021-08-30 | AI7: 2021-08-03 | AJ7: 3000-01-01 | AK7: 0 | AL7: -8377.74 | AM7: 00:00:00 | AN7: 00:00:00 | AO7: 0.0051 | AP7: 0 | AQ7: MY | AR7: N/A | AS7: 8377.74 | AT7: 8377.74 | AU7: MYR | AV7: 8377.74 | AW7: SOCSO-MYR000-500000 | AX7: 0 | AZ7: 0 | BB7: 0 | BC7: 0 | BD7: 0 | BE7: 0 | BF7: DDT | BG7: 0 | BH7: -8377.74 | BI7: DF | BJ7: SOCSO-MYR010-299000 | BK7: 0 | BM7: VCH-210802895 | BN7: 1642695 | BO7: Received | BP7: 2021-08-04 | BQ7: 1 | BR7: 5106 | BS7: MYL5106TO008
A8: B0CMCL8 | B8: PERTUBUHAN KESELAMATAN SOSIAL(SOCSO) | C8: MYR | D8: AXIS REAL ESTATE INVESTMENT | E8: 1900-01-03 | F8: 00:00:00 | G8: MYR | H8: 2021-08-30 | I8: AXIS REAL ESTATE INVESTMENT | J8: NOT APPLICABLE | K8: MY | L8: EQT | M8: NAMM | N8: 2020-12-31 | O8: 6010 | P8: 401769 | Q8: N/A | R8: 0 | S8: 1 | T8: 0 | U8: 0 | W8: SOCSO | Z8: MY | AA8: PERTUBUHAN KESELAMATAN SOCIAL(SOCSO) | AB8: 4 | AC8: 03-2166 2636 | AD8: 03-20709387 | AE8: N/A | AF8: 1 | AG8: 3000-01-01 | AH8: 2021-08-30 | AI8: 2021-08-03 | AJ8: 3000-01-01 | AK8: 0 | AL8: -31046.93 | AM8: 00:00:00 | AN8: 00:00:00 | AO8: 0.0189 | AP8: 0 | AQ8: MY | AR8: N/A | AS8: 31046.93 | AT8: 31046.93 | AU8: MYR | AV8: 31046.93 | AW8: SOCSO-MYR000-500000 | AX8: 0 | AZ8: 0 | BB8: 0 | BC8: 0 | BD8: 0 | BE8: 0 | BF8: DDT | BG8: 0 | BH8: -31046.93 | BI8: DF | BJ8: SOCSO-MYR010-299000 | BK8: 0 | BM8: VCH-210802928 | BN8: 1642695 | BO8: Received | BP8: 2021-08-04 | BQ8: 1 | BR8: 5106 | BS8: MYL5106TO008
A9: B0CMCL8 | B9: PERTUBUHAN KESELAMATAN SOSIAL(SOCSO) | C9: MYR | D9: AXIS REAL ESTATE INVESTMENT | E9: 1900-01-03 | F9: 00:00:00 | G9: MYR | H9: 2021-05-31 | I9: AXIS REAL ESTATE INVESTMENT | J9: NOT APPLICABLE | K9: MY | L9: EQT | M9: NAMM | N9: 2020-12-31 | O9: 6010 | P9: 401769 | Q9: N/A | R9: 0 | S9: 1 | T9: 0 | U9: 0 | W9: SOCSO | Z9: MY | AA9: PERTUBUHAN KESELAMATAN SOCIAL(SOCSO) | AB9: 4 | AC9: 03-2166 2636 | AD9: 03-20709387 | AE9: N/A | AF9: 1 | AG9: 3000-01-01 | AH9: 2021-05-31 | AI9: 2021-05-05 | AJ9: 3000-01-01 | AK9: 0 | AL9: -28418.62 | AM9: 00:00:00 | AN9: 00:00:00 | AO9: 0.0173 | AP9: 0 | AQ9: MY | AR9: N/A | AS9: 28418.62 | AT9: 28418.62 | AU9: MYR | AV9: 28418.62 | AW9: SOCSO-MYR000-500000 | AX9: 0 | AZ9: 0 | BB9: 0 | BC9: 0 | BD9: 0 | BE9: 0 | BF9: DDT | BG9: 0 | BH9: -28418.62 | BI9: DF | BJ9: SOCSO-MYR010-299000 | BK9: 0 | BM9: VCH-210503187 | BN9: 1642695 | BO9: Received | BP9: 2021-05-06 | BQ9: 1 | BR9: 5106 | BS9: MYL5106TO008
A10: B0CMCL8 | B10: PERTUBUHAN KESELAMATAN SOSIAL(SOCSO) | C10: MYR | D10: AXIS REAL ESTATE INVESTMENT | E10: 1900-01-03 | F10: 00:00:00 | G10: MYR | H10: 2021-05-31 | I10: AXIS REAL ESTATE INVESTMENT | J10: NOT APPLICABLE | K10: MY | L10: EQT | M10: NAMM | N10: 2020-12-31 | O10: 6010 | P10: 401769 | Q10: N/A | R10: 0 | S10: 1 | T10: 0 | U10: 0 | W10: SOCSO | Z10: MY | AA10: PERTUBUHAN KESELAMATAN SOCIAL(SOCSO) | AB10: 4 | AC10: 03-2166 2636 | AD10: 03-20709387 | AE10: N/A | AF10: 1 | AG10: 3000-01-01 | AH10: 2021-05-31 | AI10: 2021-05-05 | AJ10: 3000-01-01 | AK10: 0 | AL10: -8213.47 | AM10: 00:00:00 | AN10: 00:00:00 | AO10: 0.005 | AP10: 0 | AQ10: MY | AR10: N/A | AS10: 8213.47 | AT10: 8213.47 | AU10: MYR | AV10: 8213.47 | AW10: SOCSO-MYR000-500000 | AX10: 0 | AZ10: 0 | BB10: 0 | BC10: 0 | BD10: 0 | BE10: 0 | BF10: DDT | BG10: 0 | BH10: -8213.47 | BI10: DF | BJ10: SOCSO-MYR010-299000 | BK10: 0 | BM10: VCH-210503216 | BN10: 1642695 | BO10: Received | BP10: 2021-05-06 | BQ10: 1 | BR10: 5106 | BS10: MYL5106TO008
A11: B0CMCL8 | B11: PERTUBUHAN KESELAMATAN SOSIAL(SOCSO) | C11: MYR | D11: AXIS REAL ESTATE INVESTMENT | E11: 1900-01-03 | F11: 00:00:00 | G11: MYR | H11: 2021-03-11 | I11: AXIS REAL ESTATE INVESTMENT | J11: NOT APPLICABLE | K11: MY | L11: EQT | M11: NAMM | N11: 2020-12-31 | O11: 6010 | P11: 401769 | Q11: N/A | R11: 0 | S11: 1 | T11: 0 | U11: 0 | W11: SOCSO | Z11: MY | AA11: PERTUBUHAN KESELAMATAN SOCIAL(SOCSO) | AB11: 4 | AC11: 03-2166 2636 | AD11: 03-20709387 | AE11: N/A | AF11: 1 | AG11: 3000-01-01 | AH11: 2021-03-11 | AI11: 2021-02-04 | AJ11: 3000-01-01 | AK11: 0 | AL11: -17964.54 | AM11: 00:00:00 | AN11: 00:00:00 | AO11: 0.011 | AP11: 0 | AQ11: MY | AR11: N/A | AS11: 17964.54 | AT11: 17964.54 | AU11: MYR | AV11: 17964.54 | AW11: SOCSO-MYR000-500000 | AX11: 0 | AZ11: 0 | BB11: 0 | BC11: 0 | BD11: 0 | BE11: 0 | BF11: DDT | BG11: 0 | BH11: -17964.54 | BI11: DF | BJ11: SOCSO-MYR010-299000 | BK11: 0 | BM11: VCH-210301536 | BN11: 1633140 | BO11: Received | BP11: 2021-02-05 | BQ11: 1 | BR11: 5106 | BS11: MYL5106TO008
A12: B0CMCL8 | B12: PERTUBUHAN KESELAMATAN SOSIAL(SOCSO) | C12: MYR | D12: AXIS REAL ESTATE INVESTMENT | E12: 1900-01-03 | F12: 00:00:00 | G12: MYR | H12: 2021-03-11 | I12: AXIS REAL ESTATE INVESTMENT | J12: NOT APPLICABLE | K12: MY | L12: EQT | M12: NAMM | N12: 2020-12-31 | O12: 6010 | P12: 401769 | Q12: N/A | R12: 0 | S12: 1 | T12: 0 | U12: 0 | W12: SOCSO | Z12: MY | AA12: PERTUBUHAN KESELAMATAN SOCIAL(SOCSO) | AB12: 4 | AC12: 03-2166 2636 | AD12: 03-20709387 | AE12: N/A | AF12: 1 | AG12: 3000-01-01 | AH12: 2021-03-11 | AI12: 2021-02-04 | AJ12: 3000-01-01 | AK12: 0 | AL12: -13555.06 | AM12: 00:00:00 | AN12: 00:00:00 | AO12: 0.0083 | AP12: 0 | AQ12: MY | AR12: N/A | AS12: 13555.06 | AT12: 13555.06 | AU12: MYR | AV12: 13555.06 | AW12: SOCSO-MYR000-500000 | AX12: 0 | AZ12: 0 | BB12: 0 | BC12: 0 | BD12: 0 | BE12: 0 | BF12: DDT | BG12: 0 | BH12: -13555.06 | BI12: DF | BJ12: SOCSO-MYR010-299000 | BK12: 0 | BM12: VCH-210301541 | BN12: 1633140 | BO12: Received | BP12: 2021-02-05 | BQ12: 1 | BR12: 5106 | BS12: MYL5106TO008
A13: B0CMCL8 | B13: PERTUBUHAN KESELAMATAN SOSIAL(SOCSO) | C13: MYR | D13: AXIS REAL ESTATE INVESTMENT | E13: 1900-01-03 | F13: 00:00:00 | G13: MYR | H13: 2021-03-11 | I13: AXIS REAL ESTATE INVESTMENT | J13: NOT APPLICABLE | K13: MY | L13: EQT | M13: NAMM | N13: 2020-12-31 | O13: 6010 | P13: 401769 | Q13: N/A | R13: 0 | S13: 1 | T13: 0 | U13: 0 | W13: SOCSO | Z13: MY | AA13: PERTUBUHAN KESELAMATAN SOCIAL(SOCSO) | AB13: 4 | AC13: 03-2166 2636 | AD13: 03-20709387 | AE13: N/A | AF13: 1 | AG13: 3000-01-01 | AH13: 2021-03-11 | AI13: 2021-02-04 | AJ13: 3000-01-01 | AK13: 0 | AL13: -5226.05 | AM13: 00:00:00 | AN13: 00:00:00 | AO13: 0.0032 | AP13: 0 | AQ13: MY | AR13: N/A | AS13: 5226.05 | AT13: 5226.05 | AU13: MYR | AV13: 5226.05 | AW13: SOCSO-MYR000-500000 | AX13: 0 | AZ13: 0 | BB13: 0 | BC13: 0 | BD13: 0 | BE13: 0 | BF13: DDT | BG13: 0 | BH13: -5226.05 | BI13: DF | BJ13: SOCSO-MYR010-299000 | BK13: 0 | BM13: VCH-210301547 | BN13: 1633140 | BO13: Received | BP13: 2021-02-05 | BQ13: 1 | BR13: 5106 | BS13: MYL5106TO008
A14: BGLKMM6 | B14: PERTUBUHAN KESELAMATAN SOSIAL(SOCSO) | C14: MYR | D14: BERMAZ AUTO BHD | E14: 1900-01-03 | F14: 00:00:00 | G14: MYR | H14: 2021-02-05 | I14: BERMAZ AUTO BHD | J14: NOT APPLICABLE | K14: MY | L14: EQT | M14: NAMM | N14: 2020-12-31 | O14: 2550 | P14: 401769 | Q14: N/A | R14: 0 | S14: 1 | T14: 0 | U14: 0 | W14: SOCSO | Z14: MY | AA14: PERTUBUHAN KESELAMATAN SOCIAL(SOCSO) | AB14: 4 | AC14: 03-2166 2636 | AD14: 03-20709387 | AE14: N/A | AF14: 1 | AG14: 3000-01-01 | AH14: 2021-02-05 | AI14: 2021-01-15 | AJ14: 3000-01-01 | AK14: 0 | AL14: -16375 | AM14: 00:00:00 | AN14: 00:00:00 | AO14: 0.0125 | AP14: 0 | AQ14: MY | AR14: N/A | AS14: 16375 | AT14: 16375 | AU14: MYR | AV14: 16375 | AW14: SOCSO-MYR000-500000 | AX14: 0 | AZ14: 0 | BB14: 0 | BC14: 0 | BD14: 0 | BE14: 0 | BF14: DDT | BG14: 0 | BH14: -16375 | BI14: DF | BJ14: SOCSO-MYR010-299000 | BK14: 0 | BM14: VCH-210200544 | BN14: 1310000 | BO14: Received | BP14: 2021-01-18 | BQ14: 1 | BR14: 5248 | BS14: MYL5248OO009
A15: BGLKMM6 | B15: PERTUBUHAN KESELAMATAN SOSIAL(SOCSO) | C15: MYR | D15: BERMAZ AUTO BHD | E15: 1900-01-03 | F15: 00:00:00 | G15: MYR | H15: 2021-05-06 | I15: BERMAZ AUTO BHD | J15: NOT APPLICABLE | K15: MY | L15: EQT | M15: NAMM | N15: 2020-12-31 | O15: 2550 | P15: 401769 | Q15: N/A | R15: 0 | S15: 1 | T15: 0 | U15: 0 | W15: SOCSO | Z15: MY | AA15: PERTUBUHAN KESELAMATAN SOCIAL(SOCSO) | AB15: 4 | AC15: 03-2166 2636 | AD15: 03-20709387 | AE15: N/A | AF15: 1 | AG15: 3000-01-01 | AH15: 2021-05-06 | AI15: 2021-04-16 | AJ15: 3000-01-01 | AK15: 0 | AL15: -19650 | AM15: 00:00:00 | AN15: 00:00:00 | AO15: 0.015 | AP15: 0 | AQ15: MY | AR15: N/A | AS15: 19650 | AT15: 19650 | AU15: MYR | AV15: 19650 | AW15: SOCSO-MYR000-500000 | AX15: 0 | AZ15: 0 | BB15: 0 | BC15: 0 | BD15: 0 | BE15: 0 | BF15: DDT | BG15: 0 | BH15: -19650 | BI15: DF | BJ15: SOCSO-MYR010-299000 | BK15: 0 | BM15: VCH-210500469 | BN15: 1310000 | BO15: Received | BP15: 2021-04-19 | BQ15: 1 | BR15: 5248 | BS15: MYL5248OO009
A16: BGLKMM6 | B16: PERTUBUHAN KESELAMATAN SOSIAL(SOCSO) | C16: MYR | D16: BERMAZ AUTO BHD | E16: 1900-01-03 | F16: 00:00:00 | G16: MYR | H16: 2021-08-05 | I16: BERMAZ AUTO BHD | J16: NOT APPLICABLE | K16: MY | L16: EQT | M16: NAMM | N16: 2020-12-31 | O16: 2550 | P16: 401769 | Q16: N/A | R16: 0 | S16: 1 | T16: 0 | U16: 0 | W16: SOCSO | Z16: MY | AA16: PERTUBUHAN KESELAMATAN SOCIAL(SOCSO) | AB16: 4 | AC16: 03-2166 2636 | AD16: 03-20709387 | AE16: N/A | AF16: 1 | AG16: 3000-01-01 | AH16: 2021-08-05 | AI16: 2021-07-14 | AJ16: 3000-01-01 | AK16: 0 | AL16: -15150 | AM16: 00:00:00 | AN16: 00:00:00 | AO16: 0.015 | AP16: 0 | AQ16: MY | AR16: N/A | AS16: 15150 | AT16: 15150 | AU16: MYR | AV16: 15150 | AW16: SOCSO-MYR000-500000 | AX16: 0 | AZ16: 0 | BB16: 0 | BC16: 0 | BD16: 0 | BE16: 0 | BF16: DDT | BG16: 0 | BH16: -15150 | BI16: DF | BJ16: SOCSO-MYR010-299000 | BK16: 0 | BM16: VCH-210800495 | BN16: 1010000 | BO16: Received | BP16: 2021-07-15 | BQ16: 1 | BR16: 5248 | BS16: MYL5248OO009
A17: BGLKMM6 | B17: PERTUBUHAN KESELAMATAN SOSIAL(SOCSO) | C17: MYR | D17: BERMAZ AUTO BHD | E17: 1900-01-03 | F17: 00:00:00 | G17: MYR | H17: 2021-08-05 | I17: BERMAZ AUTO BHD | J17: NOT APPLICABLE | K17: MY | L17: EQT | M17: NAMM | N17: 2020-12-31 | O17: 2550 | P17: 401769 | Q17: N/A | R17: 0 | S17: 1 | T17: 0 | U17: 0 | W17: SOCSO | Z17: MY | AA17: PERTUBUHAN KESELAMATAN SOCIAL(SOCSO) | AB17: 4 | AC17: 03-2166 2636 | AD17: 03-20709387 | AE17: N/A | AF17: 1 | AG17: 3000-01-01 | AH17: 2021-08-05 | AI17: 2021-07-14 | AJ17: 3000-01-01 | AK17: 0 | AL17: -17675 | AM17: 00:00:00 | AN17: 00:00:00 | AO17: 0.0175 | AP17: 0 | AQ17: MY | AR17: N/A | AS17: 17675 | AT17: 17675 | AU17: MYR | AV17: 17675 | AW17: SOCSO-MYR000-500000 | AX17: 0 | AZ17: 0 | BB17: 0 | BC17: 0 | BD17: 0 | BE17: 0 | BF17: DDT | BG17: 0 | BH17: -17675 | BI17: DF | BJ17: SOCSO-MYR010-299000 | BK17: 0 | BM17: VCH-210800500 | BN17: 1010000 | BO17: Received | BP17: 2021-07-15 | BQ17: 1 | BR17: 5248 | BS17: MYL5248OO009
A18: B06FV38 | B18: PERTUBUHAN KESELAMATAN SOSIAL(SOCSO) | C18: MYR | D18: BURSA MALAYSIA BHD | E18: 1900-01-03 | F18: 00:00:00 | G18: MYR | H18: 2021-03-03 | I18: BURSA MALAYSIA BHD | J18: NOT APPLICABLE | K18: MY | L18: EQT | M18: NAMM | N18: 2020-12-31 | O18: 4020 | P18: 401769 | Q18: N/A | R18: 0 | S18: 1 | T18: 0 | U18: 0 | W18: SOCSO | Z18: MY | AA18: PERTUBUHAN KESELAMATAN SOCIAL(SOCSO) | AB18: 4 | AC18: 03-2166 2636 | AD18: 03-20709387 | AE18: N/A | AF18: 1 | AG18: 3000-01-01 | AH18: 2021-03-03 | AI18: 2021-02-19 | AJ18: 3000-01-01 | AK18: 0 | AL18: -22400 | AM18: 00:00:00 | AN18: 00:00:00 | AO18: 0.08 | AP18: 0 | AQ18: MY | AR18: N/A | AS18: 22400 | AT18: 22400 | AU18: MYR | AV18: 22400 | AW18: SOCSO-MYR000-500000 | AX18: 0 | AZ18: 0 | BB18: 0 | BC18: 0 | BD18: 0 | BE18: 0 | BF18: DDT | BG18: 0 | BH18: -22400 | BI18: DF | BJ18: SOCSO-MYR010-299000 | BK18: 0 | BM18: VCH-210300395 | BN18: 280000 | BO18: Received | BP18: 2021-02-22 | BQ18: 1 | BR18: 1818 | BS18: MYL1818OO003
A19: B06FV38 | B19: PERTUBUHAN KESELAMATAN SOSIAL(SOCSO) | C19: MYR | D19: BURSA MALAYSIA BHD | E19: 1900-01-03 | F19: 00:00:00 | G19: MYR | H19: 2021-03-03 | I19: BURSA MALAYSIA BHD | J19: NOT APPLICABLE | K19: MY | L19: EQT | M19: NAMM | N19: 2020-12-31 | O19: 4020 | P19: 401769 | Q19: N/A | R19: 0 | S19: 1 | T19: 0 | U19: 0 | W19: SOCSO | Z19: MY | AA19: PERTUBUHAN KESELAMATAN SOCIAL(SOCSO) | AB19: 4 | AC19: 03-2166 2636 | AD19: 03-20709387 | AE19: N/A | AF19: 1 | AG19: 3000-01-01 | AH19: 2021-03-03 | AI19: 2021-02-19 | AJ19: 3000-01-01 | AK19: 0 | AL19: -72800 | AM19: 00:00:00 | AN19: 00:00:00 | AO19: 0.26 | AP19: 0 | AQ19: MY | AR19: N/A | AS19: 72800 | AT19: 72800 | AU19: MYR | AV19: 72800 | AW19: SOCSO-MYR000-500000 | AX19: 0 | AZ19: 0 | BB19: 0 | BC19: 0 | BD19: 0 | BE19: 0 | BF19: DDT | BG19: 0 | BH19: -72800 | BI19: DF | BJ19: SOCSO-MYR010-299000 | BK19: 0 | BM19: VCH-210300397 | BN19: 280000 | BO19: Received | BP19: 2021-02-22 | BQ19: 1 | BR19: 1818 | BS19: MYL1818OO003
A20: 6075745 | B20: PERTUBUHAN KESELAMATAN SOSIAL(SOCSO) | C20: MYR | D20: CIMB GROUP HOLDINGS BHD | E20: 1900-01-03 | F20: 00:00:00 | G20: MYR | H20: 2021-04-22 | I20: CIMB GROUP HOLDINGS BHD | J20: NOT APPLICABLE | K20: MY | L20: EQT | M20: NAMM | N20: 2020-12-31 | O20: 4010 | P20: 401769 | Q20: N/A | R20: 0 | S20: 1 | T20: 0 | U20: 0 | W20: SOCSO | Z20: MY | AA20: PERTUBUHAN KESELAMATAN SOCIAL(SOCSO) | AB20: 4 | AC20: 03-2166 2636 | AD20: 03-20709387 | AE20: N/A | AF20: 1 | AG20: 3000-01-01 | AH20: 2021-04-22 | AI20: 2021-03-24 | AJ20: 3000-01-01 | AK20: 0 | AL20: -24210.56 | AM20: 00:00:00 | AN20: 00:00:00 | AO20: 0.0481 | AP20: 0 | AQ20: MY | AR20: N/A | AS20: 24210.56 | AT20: 24210.56 | AU20: MYR | AV20: 24210.56 | AW20: SOCSO-MYR000-500000 | AX20: 0 | AZ20: 0 | BB20: 0 | BC20: 0 | BD20: 0 | BE20: 0 | BF20: DDT | BG20: 0 | BH20: -24210.56 | BI20: DF | BJ20: SOCSO-MYR010-299000 | BK20: 0 | BM20: VCH-210402065 | BN20: 503338 | BO20: Received | BP20: 2021-03-25 | BQ20: 1 | BR20: 1023 | BS20: MYL1023OO000
A21: 6075745 | B21: PERTUBUHAN KESELAMATAN SOSIAL(SOCSO) | C21: MYR | D21: CIMB GROUP HOLDINGS BHD | E21: 1900-01-03 | F21: 00:00:00 | G21: MYR | H21: 2021-10-27 | I21: CIMB GROUP HOLDINGS BHD | J21: NOT APPLICABLE | K21: MY | L21: EQT | M21: NAMM | N21: 2020-12-31 | O21: 4010 | P21: 401769 | Q21: N/A | R21: 0 | S21: 1 | T21: 0 | U21: 0 | W21: SOCSO | Z21: MY | AA21: PERTUBUHAN KESELAMATAN SOCIAL(SOCSO) | AB21: 4 | AC21: 03-2166 2636 | AD21: 03-20709387 | AE21: N/A | AF21: 1 | AG21: 3000-01-01 | AH21: 2021-10-27 | AI21: 2021-09-28 | AJ21: 3000-01-01 | AK21: 0 | AL21: -180960.49 | AM21: 00:00:00 | AN21: 00:00:00 | AO21: 0.1044 | AP21: 0 | AQ21: MY | AR21: N/A | AS21: 180960.49 | AT21: 180960.49 | AU21: MYR | AV21: 180960.49 | AW21: SOCSO-MYR000-500000 | AX21: 0 | AZ21: 0 | BB21: 0 | BC21: 0 | BD21: 0 | BE21: 0 | BF21: DDT | BG21: 0 | BH21: -180960.49 | BI21: DF | BJ21: SOCSO-MYR010-299000 | BK21: 0 | BM21: VCH-211002596 | BN21: 1733338 | BO21: Accrual | BP21: 2021-09-29 | BQ21: 1 | BR21: 1023 | BS21: MYL1023OO000
A22: BN7GZ51 | B22: PERTUBUHAN KESELAMATAN SOSIAL(SOCSO) | C22: MYR | D22: CTOS DIGITAL BHD | E22: 1900-01-03 | F22: 00:00:00 | G22: MYR | H22: 2021-09-03 | I22: CTOS DIGITAL BHD | J22: NOT APPLICABLE | K22: MY | L22: EQT | M22: NAMM | N22: 2021-07-08 | O22: 2020 | P22: 401769 | Q22: N/A | R22: 0 | S22: 1 | T22: 0 | U22: 0 | W22: SOCSO | Z22: MY | AA22: PERTUBUHAN KESELAMATAN SOCIAL(SOCSO) | AB22: 4 | AC22: 03-2166 2636 | AD22: 03-20709387 | AE22: N/A | AF22: 1 | AG22: 3000-01-01 | AH22: 2021-09-03 | AI22: 2021-08-05 | AJ22: 3000-01-01 | AK22: 0 | AL22: -2654.34 | AM22: 00:00:00 | AN22: 00:00:00 | AO22: 0.00533 | AP22: 0 | AQ22: MY | AR22: N/A | AS22: 2654.34 | AT22: 2654.34 | AU22: MYR | AV22: 2654.34 | AW22: SOCSO-MYR000-500000 | AX22: 0 | AZ22: 0 | BB22: 0 | BC22: 0 | BD22: 0 | BE22: 0 | BF22: DDT | BG22: 0 | BH22: -2654.34 | BI22: DF | BJ22: SOCSO-MYR010-299000 | BK22: 0 | BM22: VCH-210900332 | BN22: 498000 | BO22: Received | BP22: 2021-08-06 | BQ22: 1 | BR22: 5301 | BS22: MYL5301OO006
A23: B00MRS2 | B23: PERTUBUHAN KESELAMATAN SOSIAL(SOCSO) | C23: MYR | D23: DIALOG GROUP BHD | E23: 1900-01-03 | F23: 00:00:00 | G23: MYR | H23: 2021-06-29 | I23: DIALOG GROUP BHD | J23: NOT APPLICABLE | K23: MY | L23: EQT | M23: NAMM | N23: 2020-12-31 | O23: 1010 | P23: 401769 | Q23: N/A | R23: 0 | S23: 1 | T23: 0 | U23: 0 | W23: SOCSO | Z23: MY | AA23: PERTUBUHAN KESELAMATAN SOCIAL(SOCSO) | AB23: 4 | AC23: 03-2166 2636 | AD23: 03-20709387 | AE23: N/A | AF23: 1 | AG23: 3000-01-01 | AH23: 2021-06-29 | AI23: 2021-06-14 | AJ23: 3000-01-01 | AK23: 0 | AL23: -18577.34 | AM23: 00:00:00 | AN23: 00:00:00 | AO23: 0.012 | AP23: 0 | AQ23: MY | AR23: N/A | AS23: 18577.34 | AT23: 18577.34 | AU23: MYR | AV23: 18577.34 | AW23: SOCSO-MYR000-500000 | AX23: 0 | AZ23: 0 | BB23: 0 | BC23: 0 | BD23: 0 | BE23: 0 | BF23: DDT | BG23: 0 | BH23: -18577.34 | BI23: DF | BJ23: SOCSO-MYR010-299000 | BK23: 0 | BM23: VCH-210603114 | BN23: 1548112 | BO23: Received | BP23: 2021-06-15 | BQ23: 1 | BR23: 7277 | BS23: MYL7277OO006
A24: 6086242 | B24: PERTUBUHAN KESELAMATAN SOSIAL(SOCSO) | C24: MYR | D24: DIGI.COM BHD | E24: 1900-01-03 | F24: 00:00:00 | G24: MYR | H24: 2021-06-25 | I24: DIGI.COM BHD | J24: NOT APPLICABLE | K24: MY | L24: EQT | M24: NAMM | N24: 2021-04-09 | O24: 5010 | P24: 401769 | Q24: N/A | R24: 0 | S24: 1 | T24: 0 | U24: 0 | W24: SOCSO | Z24: MY | AA24: PERTUBUHAN KESELAMATAN SOCIAL(SOCSO) | AB24: 4 | AC24: 03-2166 2636 | AD24: 03-20709387 | AE24: N/A | AF24: 1 | AG24: 3000-01-01 | AH24: 2021-06-25 | AI24: 2021-05-25 | AJ24: 3000-01-01 | AK24: 0 | AL24: -20400 | AM24: 00:00:00 | AN24: 00:00:00 | AO24: 0.034 | AP24: 0 | AQ24: MY | AR24: N/A | AS24: 20400 | AT24: 20400 | AU24: MYR | AV24: 20400 | AW24: SOCSO-MYR000-500000 | AX24: 0 | AZ24: 0 | BB24: 0 | BC24: 0 | BD24: 0 | BE24: 0 | BF24: DDT | BG24: 0 | BH24: -20400 | BI24: DF | BJ24: SOCSO-MYR010-299000 | BK24: 0 | BM24: VCH-210602751 | BN24: 600000 | BO24: Received | BP24: 2021-05-27 | BQ24: 1 | BR24: 6947 | BS24: MYL6947OO005
A25: 6086242 | B25: PERTUBUHAN KESELAMATAN SOSIAL(SOCSO) | C25: MYR | D25: DIGI.COM BHD | E25: 1900-01-03 | F25: 00:00:00 | G25: MYR | H25: 2021-09-24 | I25: DIGI.COM BHD | J25: NOT APPLICABLE | K25: MY | L25: EQT | M25: NAMM | N25: 2021-04-09 | O25: 5010 | P25: 401769 | Q25: N/A | R25: 0 | S25: 1 | T25: 0 | U25: 0 | W25: SOCSO | Z25: MY | AA25: PERTUBUHAN KESELAMATAN SOCIAL(SOCSO) | AB25: 4 | AC25: 03-2166 2636 | AD25: 03-20709387 | AE25: N/A | AF25: 1 | AG25: 3000-01-01 | AH25: 2021-09-24 | AI25: 2021-08-25 | AJ25: 3000-01-01 | AK25: 0 | AL25: -42840 | AM25: 00:00:00 | AN25: 00:00:00 | AO25: 0.036 | AP25: 0 | AQ25: MY | AR25: N/A | AS25: 42840 | AT25: 42840 | AU25: MYR | AV25: 42840 | AW25: SOCSO-MYR000-500000 | AX25: 0 | AZ25: 0 | BB25: 0 | BC25: 0 | BD25: 0 | BE25: 0 | BF25: DDT | BG25: 0 | BH25: -42840 | BI25: DF | BJ25: SOCSO-MYR010-299000 | BK25: 0 | BM25: VCH-210902497 | BN25: 1190000 | BO25: Received | BP25: 2021-08-26 | BQ25: 1 | BR25: 6947 | BS25: MYL6947OO005
A26: 6057680 | B26: PERTUBUHAN KESELAMATAN SOSIAL(SOCSO) | C26: MYR | D26: GENTING PLANTATIONS BHD | E26: 1900-01-03 | F26: 00:00:00 | G26: MYR | H26: 2021-09-24 | I26: GENTING PLANTATIONS BHD | J26: NOT APPLICABLE | K26: MY | L26: EQT | M26: NAMM | N26: 2020-12-31 | O26: 3020 | P26: 401769 | Q26: N/A | R26: 0 | S26: 1 | T26: 0 | U26: 0 | W26: SOCSO | Z26: MY | AA26: PERTUBUHAN KESELAMATAN SOCIAL(SOCSO) | AB26: 4 | AC26: 03-2166 2636 | AD26: 03-20709387 | AE26: N/A | AF26: 1 | AG26: 3000-01-01 | AH26: 2021-09-24 | AI26: 2021-09-09 | AJ26: 3000-01-01 | AK26: 0 | AL26: -13376 | AM26: 00:00:00 | AN26: 00:00:00 | AO26: 0.11 | AP26: 0 | AQ26: MY | AR26: N/A | AS26: 13376 | AT26: 13376 | AU26: MYR | AV26: 13376 | AW26: SOCSO-MYR000-500000 | AX26: 0 | AZ26: 0 | BB26: 0 | BC26: 0 | BD26: 0 | BE26: 0 | BF26: DDT | BG26: 0 | BH26: -13376 | BI26: DF | BJ26: SOCSO-MYR010-299000 | BK26: 0 | BM26: VCH-210902503 | BN26: 121600 | BO26: Received | BP26: 2021-09-10 | BQ26: 1 | BR26: 2291 | BS26: MYL2291OO002
A27: 6057680 | B27: PERTUBUHAN KESELAMATAN SOSIAL(SOCSO) | C27: MYR | D27: GENTING PLANTATIONS BHD | E27: 1900-01-03 | F27: 00:00:00 | G27: MYR | H27: 2021-06-22 | I27: GENTING PLANTATIONS BHD | J27: NOT APPLICABLE | K27: MY | L27: EQT | M27: NAMM | N27: 2020-12-31 | O27: 3020 | P27: 401769 | Q27: N/A | R27: 0 | S27: 1 | T27: 0 | U27: 0 | W27: SOCSO | Z27: MY | AA27: PERTUBUHAN KESELAMATAN SOCIAL(SOCSO) | AB27: 4 | AC27: 03-2166 2636 | AD27: 03-20709387 | AE27: N/A | AF27: 1 | AG27: 3000-01-01 | AH27: 2021-06-22 | AI27: 2021-06-02 | AJ27: 3000-01-01 | AK27: 0 | AL27: -15264 | AM27: 00:00:00 | AN27: 00:00:00 | AO27: 0.04 | AP27: 0 | AQ27: MY | AR27: N/A | AS27: 15264 | AT27: 15264 | AU27: MYR | AV27: 15264 | AW27: SOCSO-MYR000-500000 | AX27: 0 | AZ27: 0 | BB27: 0 | BC27: 0 | BD27: 0 | BE27: 0 | BF27: DDT | BG27: 0 | BH27: -15264 | BI27: DF | BJ27: SOCSO-MYR010-299000 | BK27: 0 | BM27: VCH-210602347 | BN27: 381600 | BO27: Received | BP27: 2021-06-03 | BQ27: 1 | BR27: 2291 | BS27: MYL2291OO002
A28: 6057680 | B28: PERTUBUHAN KESELAMATAN SOSIAL(SOCSO) | C28: MYR | D28: GENTING PLANTATIONS BHD | E28: 1900-01-03 | F28: 00:00:00 | G28: MYR | H28: 2021-03-30 | I28: GENTING PLANTATIONS BHD | J28: NOT APPLICABLE | K28: MY | L28: EQT | M28: NAMM | N28: 2020-12-31 | O28: 3020 | P28: 401769 | Q28: N/A | R28: 0 | S28: 1 | T28: 0 | U28: 0 | W28: SOCSO | Z28: MY | AA28: PERTUBUHAN KESELAMATAN SOCIAL(SOCSO) | AB28: 4 | AC28: 03-2166 2636 | AD28: 03-20709387 | AE28: N/A | AF28: 1 | AG28: 3000-01-01 | AH28: 2021-03-30 | AI28: 2021-03-11 | AJ28: 3000-01-01 | AK28: 0 | AL28: -41976 | AM28: 00:00:00 | AN28: 00:00:00 | AO28: 0.11 | AP28: 0 | AQ28: MY | AR28: N/A | AS28: 41976 | AT28: 41976 | AU28: MYR | AV28: 41976 | AW28: SOCSO-MYR000-500000 | AX28: 0 | AZ28: 0 | BB28: 0 | BC28: 0 | BD28: 0 | BE28: 0 | BF28: DDT | BG28: 0 | BH28: -41976 | BI28: DF | BJ28: SOCSO-MYR010-299000 | BK28: 0 | BM28: VCH-210303672 | BN28: 381600 | BO28: Received | BP28: 2021-03-12 | BQ28: 1 | BR28: 2291 | BS28: MYL2291OO002
A29: B00NYQ2 | B29: PERTUBUHAN KESELAMATAN SOSIAL(SOCSO) | C29: MYR | D29: GLOBETRONICS TECHNOLOGY BHD | E29: 1900-01-03 | F29: 00:00:00 | G29: MYR | H29: 2021-03-25 | I29: GLOBETRONICS TECHNOLOGY BHD | J29: NOT APPLICABLE | K29: MY | L29: EQT | M29: NAMM | N29: 2020-12-31 | O29: 4530 | P29: 401769 | Q29: N/A | R29: 0 | S29: 1 | T29: 0 | U29: 0 | W29: SOCSO | Z29: MY | AA29: PERTUBUHAN KESELAMATAN SOCIAL(SOCSO) | AB29: 4 | AC29: 03-2166 2636 | AD29: 03-20709387 | AE29: N/A | AF29: 1 | AG29: 3000-01-01 | AH29: 2021-03-25 | AI29: 2021-03-12 | AJ29: 3000-01-01 | AK29: 0 | AL29: -3833 | AM29: 00:00:00 | AN29: 00:00:00 | AO29: 0.01 | AP29: 0 | AQ29: MY | AR29: N/A | AS29: 3833 | AT29: 3833 | AU29: MYR | AV29: 3833 | AW29: SOCSO-MYR000-500000 | AX29: 0 | AZ29: 0 | BB29: 0 | BC29: 0 | BD29: 0 | BE29: 0 | BF29: DDT | BG29: 0 | BH29: -3833 | BI29: DF | BJ29: SOCSO-MYR010-299000 | BK29: 0 | BM29: VCH-210303229 | BN29: 383300 | BO29: Received | BP29: 2021-03-15 | BQ29: 1 | BR29: 7022 | BS29: MYL7022OO006
A30: B00NYQ2 | B30: PERTUBUHAN KESELAMATAN SOSIAL(SOCSO) | C30: MYR | D30: GLOBETRONICS TECHNOLOGY BHD | E30: 1900-01-03 | F30: 00:00:00 | G30: MYR | H30: 2021-03-25 | I30: GLOBETRONICS TECHNOLOGY BHD | J30: NOT APPLICABLE | K30: MY | L30: EQT | M30: NAMM | N30: 2020-12-31 | O30: 4530 | P30: 401769 | Q30: N/A | R30: 0 | S30: 1 | T30: 0 | U30: 0 | W30: SOCSO | Z30: MY | AA30: PERTUBUHAN KESELAMATAN SOCIAL(SOCSO) | AB30: 4 | AC30: 03-2166 2636 | AD30: 03-20709387 | AE30: N/A | AF30: 1 | AG30: 3000-01-01 | AH30: 2021-03-25 | AI30: 2021-03-12 | AJ30: 3000-01-01 | AK30: 0 | AL30: -7666 | AM30: 00:00:00 | AN30: 00:00:00 | AO30: 0.02 | AP30: 0 | AQ30: MY | AR30: N/A | AS30: 7666 | AT30: 7666 | AU30: MYR | AV30: 7666 | AW30: SOCSO-MYR000-500000 | AX30: 0 | AZ30: 0 | BB30: 0 | BC30: 0 | BD30: 0 | BE30: 0 | BF30: DDT | BG30: 0 | BH30: -7666 | BI30: DF | BJ30: SOCSO-MYR010-299000 | BK30: 0 | BM30: VCH-210303217 | BN30: 383300 | BO30: Received | BP30: 2021-03-15 | BQ30: 1 | BR30: 7022 | BS30: MYL7022OO006
A31: B2QPJK5 | B31: PERTUBUHAN KESELAMATAN SOSIAL(SOCSO) | C31: MYR | D31: HARTALEGA HOLDINGS BHD | E31: 1900-01-03 | F31: 00:00:00 | G31: MYR | H31: 2021-02-26 | I31: HARTALEGA HOLDINGS BHD | J31: NOT APPLICABLE | K31: MY | L31: EQT | M31: NAMM | N31: 2020-12-31 | O31: 3510 | P31: 401769 | Q31: N/A | R31: 0 | S31: 1 | T31: 0 | U31: 0 | W31: SOCSO | Z31: MY | AA31: PERTUBUHAN KESELAMATAN SOCIAL(SOCSO) | AB31: 4 | AC31: 03-2166 2636 | AD31: 03-20709387 | AE31: N/A | AF31: 1 | AG31: 3000-01-01 | AH31: 2021-02-26 | AI31: 2021-02-09 | AJ31: 3000-01-01 | AK31: 0 | AL31: -20882.6 | AM31: 00:00:00 | AN31: 00:00:00 | AO31: 0.0965 | AP31: 0 | AQ31: MY | AR31: N/A | AS31: 20882.6 | AT31: 20882.6 | AU31: MYR | AV31: 20882.6 | AW31: SOCSO-MYR000-500000 | AX31: 0 | AZ31: 0 | BB31: 0 | BC31: 0 | BD31: 0 | BE31: 0 | BF31: DDT | BG31: 0 | BH31: -20882.6 | BI31: DF | BJ31: SOCSO-MYR010-299000 | BK31: 0 | BM31: VCH-210202643 | BN31: 216400 | BO31: Received | BP31: 2021-02-10 | BQ31: 1 | BR31: 5168 | BS31: MYL5168OO009
A32: B2QPJK5 | B32: PERTUBUHAN KESELAMATAN SOSIAL(SOCSO) | C32: MYR | D32: HARTALEGA HOLDINGS BHD | E32: 1900-01-03 | F32: 00:00:00 | G32: MYR | H32: 2021-06-09 | I32: HARTALEGA HOLDINGS BHD | J32: NOT APPLICABLE | K32: MY | L32: EQT | M32: NAMM | N32: 2020-12-31 | O32: 3510 | P32: 401769 | Q32: N/A | R32: 0 | S32: 1 | T32: 0 | U32: 0 | W32: SOCSO | Z32: MY | AA32: PERTUBUHAN KESELAMATAN SOCIAL(SOCSO) | AB32: 4 | AC32: 03-2166 2636 | AD32: 03-20709387 | AE32: N/A | AF32: 1 | AG32: 3000-01-01 | AH32: 2021-06-09 | AI32: 2021-05-21 | AJ32: 3000-01-01 | AK32: 0 | AL32: -86092.8 | AM32: 00:00:00 | AN32: 00:00:00 | AO32: 0.177 | AP32: 0 | AQ32: MY | AR32: N/A | AS32: 86092.8 | AT32: 86092.8 | AU32: MYR | AV32: 86092.8 | AW32: SOCSO-MYR000-500000 | AX32: 0 | AZ32: 0 | BB32: 0 | BC32: 0 | BD32: 0 | BE32: 0 | BF32: DDT | BG32: 0 | BH32: -86092.8 | BI32: DF | BJ32: SOCSO-MYR010-299000 | BK32: 0 | BM32: VCH-210600895 | BN32: 486400 | BO32: Received | BP32: 2021-05-24 | BQ32: 1 | BR32: 5168 | BS32: MYL5168OO009
A33: 6436450 | B33: PERTUBUHAN KESELAMATAN SOSIAL(SOCSO) | C33: MYR | D33: HONG LEONG FINANCIAL GROUP | E33: 1900-01-03 | F33: 00:00:00 | G33: MYR | H33: 2021-03-30 | I33: HONG LEONG FINANCIAL GROUP | J33: NOT APPLICABLE | K33: MY | L33: EQT | M33: NAMM | N33: 2020-12-31 | O33: 4010 | P33: 401769 | Q33: N/A | R33: 0 | S33: 1 | T33: 0 | U33: 0 | W33: SOCSO | Z33: MY | AA33: PERTUBUHAN KESELAMATAN SOCIAL(SOCSO) | AB33: 4 | AC33: 03-2166 2636 | AD33: 03-20709387 | AE33: N/A | AF33: 1 | AG33: 3000-01-01 | AH33: 2021-03-30 | AI33: 2021-03-12 | AJ33: 3000-01-01 | AK33: 0 | AL33: -37290.67 | AM33: 00:00:00 | AN33: 00:00:00 | AO33: 0.108 | AP33: 0 | AQ33: MY | AR33: N/A | AS33: 37290.67 | AT33: 37290.67 | AU33: MYR | AV33: 37290.67 | AW33: SOCSO-MYR000-500000 | AX33: 0 | AZ33: 0 | BB33: 0 | BC33: 0 | BD33: 0 | BE33: 0 | BF33: DDT | BG33: 0 | BH33: -37290.67 | BI33: DF | BJ33: SOCSO-MYR010-299000 | BK33: 0 | BM33: VCH-210303684 | BN33: 345284 | BO33: Received | BP33: 2021-03-15 | BQ33: 1 | BR33: 1082 | BS33: MYL1082OO006
A34: B89JCF2 | B34: PERTUBUHAN KESELAMATAN SOSIAL(SOCSO) | C34: MYR | D34: IGB REAL ESTATE INVESTMENT T | E34: 1900-01-03 | F34: 00:00:00 | G34: MYR | H34: 2021-02-26 | I34: IGB REAL ESTATE INVESTMENT T | J34: NOT APPLICABLE | K34: MY | L34: EQT | M34: NAMM | N34: 2020-12-31 | O34: 6010 | P34: 401769 | Q34: N/A | R34: 0 | S34: 1 | T34: 0 | U34: 0 | W34: SOCSO | Z34: MY | AA34: PERTUBUHAN KESELAMATAN SOCIAL(SOCSO) | AB34: 4 | AC34: 03-2166 2636 | AD34: 03-20709387 | AE34: N/A | AF34: 1 | AG34: 3000-01-01 | AH34: 2021-02-26 | AI34: 2021-02-09 | AJ34: 3000-01-01 | AK34: 0 | AL34: -22688.84 | AM34: 00:00:00 | AN34: 00:00:00 | AO34: 0.0206 | AP34: 0 | AQ34: MY | AR34: N/A | AS34: 22688.84 | AT34: 22688.84 | AU34: MYR | AV34: 22688.84 | AW34: SOCSO-MYR000-500000 | AX34: 0 | AZ34: 0 | BB34: 0 | BC34: 0 | BD34: 0 | BE34: 0 | BF34: DDT | BG34: 0 | BH34: -22688.84 | BI34: DF | BJ34: SOCSO-MYR010-299000 | BK34: 0 | BM34: VCH-210202646 | BN34: 1101400 | BO34: Received | BP34: 2021-02-10 | BQ34: 1 | BR34: 5227 | BS34: MYL5227TO002
A35: B89JCF2 | B35: PERTUBUHAN KESELAMATAN SOSIAL(SOCSO) | C35: MYR | D35: IGB REAL ESTATE INVESTMENT T | E35: 1900-01-03 | F35: 00:00:00 | G35: MYR | H35: 2021-02-26 | I35: IGB REAL ESTATE INVESTMENT T | J35: NOT APPLICABLE | K35: MY | L35: EQT | M35: NAMM | N35: 2020-12-31 | O35: 6010 | P35: 401769 | Q35: N/A | R35: 0 | S35: 1 | T35: 0 | U35: 0 | W35: SOCSO | Z35: MY | AA35: PERTUBUHAN KESELAMATAN SOCIAL(SOCSO) | AB35: 4 | AC35: 03-2166 2636 | AD35: 03-20709387 | AE35: N/A | AF35: 1 | AG35: 3000-01-01 | AH35: 2021-02-26 | AI35: 2021-02-09 | AJ35: 3000-01-01 | AK35: 0 | AL35: -220.28 | AM35: 00:00:00 | AN35: 00:00:00 | AO35: 0.0002 | AP35: 0 | AQ35: MY | AR35: N/A | AS35: 220.28 | AT35: 220.28 | AU35: MYR | AV35: 220.28 | AW35: SOCSO-MYR000-500000 | AX35: 0 | AZ35: 0 | BB35: 0 | BC35: 0 | BD35: 0 | BE35: 0 | BF35: DDT | BG35: 0 | BH35: -220.28 | BI35: DF | BJ35: SOCSO-MYR010-299000 | BK35: 0 | BM35: VCH-210202652 | BN35: 1101400 | BO35: Received | BP35: 2021-02-10 | BQ35: 1 | BR35: 5227 | BS35: MYL5227TO002
A36: B89JCF2 | B36: PERTUBUHAN KESELAMATAN SOSIAL(SOCSO) | C36: MYR | D36: IGB REAL ESTATE INVESTMENT T | E36: 1900-01-03 | F36: 00:00:00 | G36: MYR | H36: 2021-05-31 | I36: IGB REAL ESTATE INVESTMENT T | J36: NOT APPLICABLE | K36: MY | L36: EQT | M36: NAMM | N36: 2020-12-31 | O36: 6010 | P36: 401769 | Q36: N/A | R36: 0 | S36: 1 | T36: 0 | U36: 0 | W36: SOCSO | Z36: MY | AA36: PERTUBUHAN KESELAMATAN SOCIAL(SOCSO) | AB36: 4 | AC36: 03-2166 2636 | AD36: 03-20709387 | AE36: N/A | AF36: 1 | AG36: 3000-01-01 | AH36: 2021-05-31 | AI36: 2021-05-10 | AJ36: 3000-01-01 | AK36: 0 | AL36: -14538.48 | AM36: 00:00:00 | AN36: 00:00:00 | AO36: 0.0132 | AP36: 0 | AQ36: MY | AR36: N/A | AS36: 14538.48 | AT36: 14538.48 | AU36: MYR | AV36: 14538.48 | AW36: SOCSO-MYR000-500000 | AX36: 0 | AZ36: 0 | BB36: 0 | BC36: 0 | BD36: 0 | BE36: 0 | BF36: DDT | BG36: 0 | BH36: -14538.48 | BI36: DF | BJ36: SOCSO-MYR010-299000 | BK36: 0 | BM36: VCH-210503203 | BN36: 1101400 | BO36: Received | BP36: 2021-05-11 | BQ36: 1 | BR36: 5227 | BS36: MYL5227TO002
A37: B89JCF2 | B37: PERTUBUHAN KESELAMATAN SOSIAL(SOCSO) | C37: MYR | D37: IGB REAL ESTATE INVESTMENT T | E37: 1900-01-03 | F37: 00:00:00 | G37: MYR | H37: 2021-05-31 | I37: IGB REAL ESTATE INVESTMENT T | J37: NOT APPLICABLE | K37: MY | L37: EQT | M37: NAMM | N37: 2020-12-31 | O37: 6010 | P37: 401769 | Q37: N/A | R37: 0 | S37: 1 | T37: 0 | U37: 0 | W37: SOCSO | Z37: MY | AA37: PERTUBUHAN KESELAMATAN SOCIAL(SOCSO) | AB37: 4 | AC37: 03-2166 2636 | AD37: 03-20709387 | AE37: N/A | AF37: 1 | AG37: 3000-01-01 | AH37: 2021-05-31 | AI37: 2021-05-10 | AJ37: 3000-01-01 | AK37: 0 | AL37: -110.14 | AM37: 00:00:00 | AN37: 00:00:00 | AO37: 0.0001 | AP37: 0 | AQ37: MY | AR37: N/A | AS37: 110.14 | AT37: 110.14 | AU37: MYR | AV37: 110.14 | AW37: SOCSO-MYR000-500000 | AX37: 0 | AZ37: 0 | BB37: 0 | BC37: 0 | BD37: 0 | BE37: 0 | BF37: DDT | BG37: 0 | BH37: -110.14 | BI37: DF | BJ37: SOCSO-MYR010-299000 | BK37: 0 | BM37: VCH-210503209 | BN37: 1101400 | BO37: Received | BP37: 2021-05-11 | BQ37: 1 | BR37: 5227 | BS37: MYL5227TO002
A38: B89JCF2 | B38: PERTUBUHAN KESELAMATAN SOSIAL(SOCSO) | C38: MYR | D38: IGB REAL ESTATE INVESTMENT T | E38: 1900-01-03 | F38: 00:00:00 | G38: MYR | H38: 2021-08-30 | I38: IGB REAL ESTATE INVESTMENT T | J38: NOT APPLICABLE | K38: MY | L38: EQT | M38: NAMM | N38: 2020-12-31 | O38: 6010 | P38: 401769 | Q38: N/A | R38: 0 | S38: 1 | T38: 0 | U38: 0 | W38: SOCSO | Z38: MY | AA38: PERTUBUHAN KESELAMATAN SOCIAL(SOCSO) | AB38: 4 | AC38: 03-2166 2636 | AD38: 03-20709387 | AE38: N/A | AF38: 1 | AG38: 3000-01-01 | AH38: 2021-08-30 | AI38: 2021-08-06 | AJ38: 3000-01-01 | AK38: 0 | AL38: -14648.62 | AM38: 00:00:00 | AN38: 00:00:00 | AO38: 0.0133 | AP38: 0 | AQ38: MY | AR38: N/A | AS38: 14648.62 | AT38: 14648.62 | AU38: MYR | AV38: 14648.62 | AW38: SOCSO-MYR000-500000 | AX38: 0 | AZ38: 0 | BB38: 0 | BC38: 0 | BD38: 0 | BE38: 0 | BF38: DDT | BG38: 0 | BH38: -14648.62 | BI38: DF | BJ38: SOCSO-MYR010-299000 | BK38: 0 | BM38: VCH-210802916 | BN38: 1101400 | BO38: Received | BP38: 2021-08-09 | BQ38: 1 | BR38: 5227 | BS38: MYL5227TO002
A39: B89JCF2 | B39: PERTUBUHAN KESELAMATAN SOSIAL(SOCSO) | C39: MYR | D39: IGB REAL ESTATE INVESTMENT T | E39: 1900-01-03 | F39: 00:00:00 | G39: MYR | H39: 2021-08-30 | I39: IGB REAL ESTATE INVESTMENT T | J39: NOT APPLICABLE | K39: MY | L39: EQT | M39: NAMM | N39: 2020-12-31 | O39: 6010 | P39: 401769 | Q39: N/A | R39: 0 | S39: 1 | T39: 0 | U39: 0 | W39: SOCSO | Z39: MY | AA39: PERTUBUHAN KESELAMATAN SOCIAL(SOCSO) | AB39: 4 | AC39: 03-2166 2636 | AD39: 03-20709387 | AE39: N/A | AF39: 1 | AG39: 3000-01-01 | AH39: 2021-08-30 | AI39: 2021-08-06 | AJ39: 3000-01-01 | AK39: 0 | AL39: -220.28 | AM39: 00:00:00 | AN39: 00:00:00 | AO39: 0.0002 | AP39: 0 | AQ39: MY | AR39: N/A | AS39: 220.28 | AT39: 220.28 | AU39: MYR | AV39: 220.28 | AW39: SOCSO-MYR000-500000 | AX39: 0 | AZ39: 0 | BB39: 0 | BC39: 0 | BD39: 0 | BE39: 0 | BF39: DDT | BG39: 0 | BH39: -220.28 | BI39: DF | BJ39: SOCSO-MYR010-299000 | BK39: 0 | BM39: VCH-210802922 | BN39: 1101400 | BO39: Received | BP39: 2021-08-09 | BQ39: 1 | BR39: 5227 | BS39: MYL5227TO002
A40: B83X6P8 | B40: PERTUBUHAN KESELAMATAN SOSIAL(SOCSO) | C40: MYR | D40: IHH HEALTHCARE BHD | E40: 1900-01-03 | F40: 00:00:00 | G40: MYR | H40: 2021-04-30 | I40: IHH HEALTHCARE BHD | J40: NOT APPLICABLE | K40: MY | L40: EQT | M40: NAMM | N40: 2020-12-31 | O40: 3510 | P40: 401769 | Q40: N/A | R40: 0 | S40: 1 | T40: 0 | U40: 0 | W40: SOCSO | Z40: MY | AA40: PERTUBUHAN KESELAMATAN SOCIAL(SOCSO) | AB40: 4 | AC40: 03-2166 2636 | AD40: 03-20709387 | AE40: N/A | AF40: 1 | AG40: 3000-01-01 | AH40: 2021-04-30 | AI40: 2021-03-30 | AJ40: 3000-01-01 | AK40: 0 | AL40: -45080 | AM40: 00:00:00 | AN40: 00:00:00 | AO40: 0.04 | AP40: 0 | AQ40: MY | AR40: N/A | AS40: 45080 | AT40: 45080 | AU40: MYR | AV40: 45080 | AW40: SOCSO-MYR000-500000 | AX40: 0 | AZ40: 0 | BB40: 0 | BC40: 0 | BD40: 0 | BE40: 0 | BF40: DDT | BG40: 0 | BH40: -45080 | BI40: DF | BJ40: SOCSO-MYR010-299000 | BK40: 0 | BM40: VCH-210402751 | BN40: 1127000 | BO40: Received | BP40: 2021-03-31 | BQ40: 1 | BR40: 5225 | BS40: MYL5225OO007
A41: 6455217 | B41: PERTUBUHAN KESELAMATAN SOSIAL(SOCSO) | C41: MYR | D41: IJM CORP BHD | E41: 1900-01-03 | F41: 00:00:00 | G41: MYR | H41: 2021-07-23 | I41: IJM CORP BHD | J41: NOT APPLICABLE | K41: MY | L41: EQT | M41: NAMM | N41: 2020-12-31 | O41: 2010 | P41: 401769 | Q41: N/A | R41: 0 | S41: 1 | T41: 0 | U41: 0 | W41: SOCSO | Z41: MY | AA41: PERTUBUHAN KESELAMATAN SOCIAL(SOCSO) | AB41: 4 | AC41: 03-2166 2636 | AD41: 03-20709387 | AE41: N/A | AF41: 1 | AG41: 3000-01-01 | AH41: 2021-07-23 | AI41: 2021-06-29 | AJ41: 3000-01-01 | AK41: 0 | AL41: -64848 | AM41: 00:00:00 | AN41: 00:00:00 | AO41: 0.04 | AP41: 0 | AQ41: MY | AR41: N/A | AS41: 64848 | AT41: 64848 | AU41: MYR | AV41: 64848 | AW41: SOCSO-MYR000-500000 | AX41: 0 | AZ41: 0 | BB41: 0 | BC41: 0 | BD41: 0 | BE41: 0 | BF41: DDT | BG41: 0 | BH41: -64848 | BI41: DF | BJ41: SOCSO-MYR010-299000 | BK41: 0 | BM41: VCH-210702252 | BN41: 1621200 | BO41: Received | BP41: 2021-06-30 | BQ41: 1 | BR41: 3336 | BS41: MYL3336OO004
A42: B54JP79 | B42: PERTUBUHAN KESELAMATAN SOSIAL(SOCSO) | C42: MYR | D42: INARI AMERTRON BHD | E42: 1900-01-03 | F42: 00:00:00 | G42: MYR | H42: 2021-07-08 | I42: INARI AMERTRON BHD | J42: NOT APPLICABLE | K42: MY | L42: EQT | M42: NAMM | N42: 2020-12-31 | O42: 4520 | P42: 401769 | Q42: N/A | R42: 0 | S42: 1 | T42: 0 | U42: 0 | W42: SOCSO | Z42: MY | AA42: PERTUBUHAN KESELAMATAN SOCIAL(SOCSO) | AB42: 4 | AC42: 03-2166 2636 | AD42: 03-20709387 | AE42: N/A | AF42: 1 | AG42: 3000-01-01 | AH42: 2021-07-08 | AI42: 2021-06-08 | AJ42: 3000-01-01 | AK42: 0 | AL42: -14580 | AM42: 00:00:00 | AN42: 00:00:00 | AO42: 0.018 | AP42: 0 | AQ42: MY | AR42: N/A | AS42: 14580 | AT42: 14580 | AU42: MYR | AV42: 14580 | AW42: SOCSO-MYR000-500000 | AX42: 0 | AZ42: 0 | BB42: 0 | BC42: 0 | BD42: 0 | BE42: 0 | BF42: DDT | BG42: 0 | BH42: -14580 | BI42: DF | BJ42: SOCSO-MYR010-299000 | BK42: 0 | BM42: VCH-210700611 | BN42: 810000 | BO42: Received | BP42: 2021-06-09 | BQ42: 1 | BR42: 166 | BS42: MYQ0166OO007
A43: B54JP79 | B43: PERTUBUHAN KESELAMATAN SOSIAL(SOCSO) | C43: MYR | D43: INARI AMERTRON BHD | E43: 1900-01-03 | F43: 00:00:00 | G43: MYR | H43: 2021-07-08 | I43: INARI AMERTRON BHD | J43: NOT APPLICABLE | K43: MY | L43: EQT | M43: NAMM | N43: 2020-12-31 | O43: 4520 | P43: 401769 | Q43: N/A | R43: 0 | S43: 1 | T43: 0 | U43: 0 | W43: SOCSO | Z43: MY | AA43: PERTUBUHAN KESELAMATAN SOCIAL(SOCSO) | AB43: 4 | AC43: 03-2166 2636 | AD43: 03-20709387 | AE43: N/A | AF43: 1 | AG43: 3000-01-01 | AH43: 2021-07-08 | AI43: 2021-06-08 | AJ43: 3000-01-01 | AK43: 0 | AL43: -17820 | AM43: 00:00:00 | AN43: 00:00:00 | AO43: 0.022 | AP43: 0 | AQ43: MY | AR43: N/A | AS43: 17820 | AT43: 17820 | AU43: MYR | AV43: 17820 | AW43: SOCSO-MYR000-500000 | AX43: 0 | AZ43: 0 | BB43: 0 | BC43: 0 | BD43: 0 | BE43: 0 | BF43: DDT | BG43: 0 | BH43: -17820 | BI43: DF | BJ43: SOCSO-MYR010-299000 | BK43: 0 | BM43: VCH-210700619 | BN43: 810000 | BO43: Received | BP43: 2021-06-09 | BQ43: 1 | BR43: 166 | BS43: MYQ0166OO007
A44: B54JP79 | B44: PERTUBUHAN KESELAMATAN SOSIAL(SOCSO) | C44: MYR | D44: INARI AMERTRON BHD | E44: 1900-01-03 | F44: 00:00:00 | G44: MYR | H44: 2021-04-08 | I44: INARI AMERTRON BHD | J44: NOT APPLICABLE | K44: MY | L44: EQT | M44: NAMM | N44: 2020-12-31 | O44: 4520 | P44: 401769 | Q44: N/A | R44: 0 | S44: 1 | T44: 0 | U44: 0 | W44: SOCSO | Z44: MY | AA44: PERTUBUHAN KESELAMATAN SOCIAL(SOCSO) | AB44: 4 | AC44: 03-2166 2636 | AD44: 03-20709387 | AE44: N/A | AF44: 1 | AG44: 3000-01-01 | AH44: 2021-04-08 | AI44: 2021-03-17 | AJ44: 3000-01-01 | AK44: 0 | AL44: -26500 | AM44: 00:00:00 | AN44: 00:00:00 | AO44: 0.025 | AP44: 0 | AQ44: MY | AR44: N/A | AS44: 26500 | AT44: 26500 | AU44: MYR | AV44: 26500 | AW44: SOCSO-MYR000-500000 | AX44: 0 | AZ44: 0 | BB44: 0 | BC44: 0 | BD44: 0 | BE44: 0 | BF44: DDT | BG44: 0 | BH44: -26500 | BI44: DF | BJ44: SOCSO-MYR010-299000 | BK44: 0 | BM44: VCH-210400689 | BN44: 1060000 | BO44: Received | BP44: 2021-03-18 | BQ44: 1 | BR44: 166 | BS44: MYQ0166OO007
A45: B54JP79 | B45: PERTUBUHAN KESELAMATAN SOSIAL(SOCSO) | C45: MYR | D45: INARI AMERTRON BHD | E45: 1900-01-03 | F45: 00:00:00 | G45: MYR | H45: 2021-10-08 | I45: INARI AMERTRON BHD | J45: NOT APPLICABLE | K45: MY | L45: EQT | M45: NAMM | N45: 2020-12-31 | O45: 4520 | P45: 401769 | Q45: N/A | R45: 0 | S45: 1 | T45: 0 | U45: 0 | W45: SOCSO | Z45: MY | AA45: PERTUBUHAN KESELAMATAN SOCIAL(SOCSO) | AB45: 4 | AC45: 03-2166 2636 | AD45: 03-20709387 | AE45: N/A | AF45: 1 | AG45: 3000-01-01 | AH45: 2021-10-08 | AI45: 2021-09-08 | AJ45: 3000-01-01 | AK45: 0 | AL45: -17750 | AM45: 00:00:00 | AN45: 00:00:00 | AO45: 0.025 | AP45: 0 | AQ45: MY | AR45: N/A | AS45: 17750 | AT45: 17750 | AU45: MYR | AV45: 17750 | AW45: SOCSO-MYR000-500000 | AX45: 0 | AZ45: 0 | BB45: 0 | BC45: 0 | BD45: 0 | BE45: 0 | BF45: DDT | BG45: 0 | BH45: -17750 | BI45: DF | BJ45: SOCSO-MYR010-299000 | BK45: 0 | BM45: VCH-211000668 | BN45: 710000 | BO45: Received | BP45: 2021-09-09 | BQ45: 1 | BR45: 166 | BS45: MYQ0166OO007
A46: B54JP79 | B46: PERTUBUHAN KESELAMATAN SOSIAL(SOCSO) | C46: MYR | D46: INARI AMERTRON BHD | E46: 1900-01-03 | F46: 00:00:00 | G46: MYR | H46: 2021-01-08 | I46: INARI AMERTRON BHD | J46: NOT APPLICABLE | K46: MY | L46: EQT | M46: NAMM | N46: 2020-12-15 | O46: 4520 | P46: 401769 | Q46: N/A | R46: 0 | S46: 1 | T46: 0 | U46: 0 | W46: SOCSO | Z46: MY | AA46: PERTUBUHAN KESELAMATAN SOCIAL(SOCSO) | AB46: 4 | AC46: 03-2166 2636 | AD46: 03-20709387 | AE46: N/A | AF46: 1 | AG46: 3000-01-01 | AH46: 2021-01-08 | AI46: 2020-12-15 | AJ46: 3000-01-01 | AK46: 0 | AL46: 00:00:00 | AM46: -27600 | AN46: 00:00:00 | AO46: 0.02 | AP46: 0 | AQ46: MY | AR46: N/A | AS46: 27600 | AT46: 27600 | AU46: MYR | AV46: 27600 | AW46: SOCSO-MYR000-500000 | AX46: 0 | AZ46: 0 | BB46: 0 | BC46: 0 | BD46: 0 | BE46: 0 | BF46: DDT | BG46: 0 | BH46: -27600 | BI46: DF | BJ46: SOCSO-MYR010-299000 | BK46: 0 | BM46: VCH-210100642 | BN46: 1380000 | BO46: Received | BP46: 2020-12-16 | BQ46: 1 | BR46: 166 | BS46: MYQ0166OO007
A47: 6497446 | B47: PERTUBUHAN KESELAMATAN SOSIAL(SOCSO) | C47: MYR | D47: KUALA LUMPUR KEPONG BHD | E47: 1900-01-03 | F47: 00:00:00 | G47: MYR | H47: 2021-03-02 | I47: KUALA LUMPUR KEPONG BHD | J47: NOT APPLICABLE | K47: MY | L47: EQT | M47: NAMM | N47: 2020-12-31 | O47: 3020 | P47: 401769 | Q47: N/A | R47: 0 | S47: 1 | T47: 0 | U47: 0 | W47: SOCSO | Z47: MY | AA47: PERTUBUHAN KESELAMATAN SOCIAL(SOCSO) | AB47: 4 | AC47: 03-2166 2636 | AD47: 03-20709387 | AE47: N/A | AF47: 1 | AG47: 3000-01-01 | AH47: 2021-03-02 | AI47: 2021-02-19 | AJ47: 3000-01-01 | AK47: 0 | AL47: -67550 | AM47: 00:00:00 | AN47: 00:00:00 | AO47: 0.35 | AP47: 0 | AQ47: MY | AR47: N/A | AS47: 67550 | AT47: 67550 | AU47: MYR | AV47: 67550 | AW47: SOCSO-MYR000-500000 | AX47: 0 | AZ47: 0 | BB47: 0 | BC47: 0 | BD47: 0 | BE47: 0 | BF47: DDT | BG47: 0 | BH47: -67550 | BI47: DF | BJ47: SOCSO-MYR010-299000 | BK47: 0 | BM47: VCH-210300255 | BN47: 193000 | BO47: Received | BP47: 2021-02-22 | BQ47: 1 | BR47: 2445 | BS47: MYL2445OO004
A48: 6497446 | B48: PERTUBUHAN KESELAMATAN SOSIAL(SOCSO) | C48: MYR | D48: KUALA LUMPUR KEPONG BHD | E48: 1900-01-03 | F48: 00:00:00 | G48: MYR | H48: 2021-08-03 | I48: KUALA LUMPUR KEPONG BHD | J48: NOT APPLICABLE | K48: MY | L48: EQT | M48: NAMM | N48: 2020-12-31 | O48: 3020 | P48: 401769 | Q48: N/A | R48: 0 | S48: 1 | T48: 0 | U48: 0 | W48: SOCSO | Z48: MY | AA48: PERTUBUHAN KESELAMATAN SOCIAL(SOCSO) | AB48: 4 | AC48: 03-2166 2636 | AD48: 03-20709387 | AE48: N/A | AF48: 1 | AG48: 3000-01-01 | AH48: 2021-08-03 | AI48: 2021-07-09 | AJ48: 3000-01-01 | AK48: 0 | AL48: -26600 | AM48: 00:00:00 | AN48: 00:00:00 | AO48: 0.2 | AP48: 0 | AQ48: MY | AR48: N/A | AS48: 26600 | AT48: 26600 | AU48: MYR | AV48: 26600 | AW48: SOCSO-MYR000-500000 | AX48: 0 | AZ48: 0 | BB48: 0 | BC48: 0 | BD48: 0 | BE48: 0 | BF48: DDT | BG48: 0 | BH48: -26600 | BI48: DF | BJ48: SOCSO-MYR010-299000 | BK48: 0 | BM48: VCH-210800197 | BN48: 133000 | BO48: Received | BP48: 2021-07-12 | BQ48: 1 | BR48: 2445 | BS48: MYL2445OO004
A49: 6522672 | B49: PERTUBUHAN KESELAMATAN SOSIAL(SOCSO) | C49: MYR | D49: LPI CAPITAL BERHAD | E49: 1900-01-03 | F49: 00:00:00 | G49: MYR | H49: 2021-09-01 | I49: LPI CAPITAL BERHAD | J49: NOT APPLICABLE | K49: MY | L49: EQT | M49: NAMM | N49: 2020-12-31 | O49: 4030 | P49: 401769 | Q49: N/A | R49: 0 | S49: 1 | T49: 0 | U49: 0 | W49: SOCSO | Z49: MY | AA49: PERTUBUHAN KESELAMATAN SOCIAL(SOCSO) | AB49: 4 | AC49: 03-2166 2636 | AD49: 03-20709387 | AE49: N/A | AF49: 1 | AG49: 3000-01-01 | AH49: 2021-09-01 | AI49: 2021-08-20 | AJ49: 3000-01-01 | AK49: 0 | AL49: -60668 | AM49: 00:00:00 | AN49: 00:00:00 | AO49: 0.29 | AP49: 0 | AQ49: MY | AR49: N/A | AS49: 60668 | AT49: 60668 | AU49: MYR | AV49: 60668 | AW49: SOCSO-MYR000-500000 | AX49: 0 | AZ49: 0 | BB49: 0 | BC49: 0 | BD49: 0 | BE49: 0 | BF49: DDT | BG49: 0 | BH49: -60668 | BI49: DF | BJ49: SOCSO-MYR010-299000 | BK49: 0 | BM49: VCH-210900055 | BN49: 209200 | BO49: Received | BP49: 2021-08-23 | BQ49: 1 | BR49: 8621 | BS49: MYL8621OO004
A50: 6522672 | B50: PERTUBUHAN KESELAMATAN SOSIAL(SOCSO) | C50: MYR | D50: LPI CAPITAL BERHAD | E50: 1900-01-03 | F50: 00:00:00 | G50: MYR | H50: 2021-03-01 | I50: LPI CAPITAL BERHAD | J50: NOT APPLICABLE | K50: MY | L50: EQT | M50: NAMM | N50: 2020-12-31 | O50: 4030 | P50: 401769 | Q50: N/A | R50: 0 | S50: 1 | T50: 0 | U50: 0 | W50: SOCSO | Z50: MY | AA50: PERTUBUHAN KESELAMATAN SOCIAL(SOCSO) | AB50: 4 | AC50: 03-2166 2636 | AD50: 03-20709387 | AE50: N/A | AF50: 1 | AG50: 3000-01-01 | AH50: 2021-03-01 | AI50: 2021-02-18 | AJ50: 3000-01-01 | AK50: 0 | AL50: -92048 | AM50: 00:00:00 | AN50: 00:00:00 | AO50: 0.44 | AP50: 0 | AQ50: MY | AR50: N/A | AS50: 92048 | AT50: 92048 | AU50: MYR | AV50: 92048 | AW50: SOCSO-MYR000-500000 | AX50: 0 | AZ50: 0 | BB50: 0 | BC50: 0 | BD50: 0 | BE50: 0 | BF50: DDT | BG50: 0 | BH50: -92048 | BI50: DF | BJ50: SOCSO-MYR010-299000 | BK50: 0 | BM50: VCH-210300113 | BN50: 209200 | BO50: Received | BP50: 2021-02-19 | BQ50: 1 | BR50: 8621 | BS50: MYL8621OO004
A51: 6556325 | B51: PERTUBUHAN KESELAMATAN SOSIAL(SOCSO) | C51: MYR | D51: MALAYAN BANKING BHD | E51: 1900-01-03 | F51: 00:00:00 | G51: MYR | H51: 2021-01-15 | I51: MALAYAN BANKING BHD | J51: NOT APPLICABLE | K51: MY | L51: EQT | M51: NAMM | N51: 2020-12-17 | O51: 4010 | P51: 401769 | Q51: N/A | R51: 0 | S51: 1 | T51: 0 | U51: 0 | W51: SOCSO | Z51: MY | AA51: PERTUBUHAN KESELAMATAN SOCIAL(SOCSO) | AB51: 4 | AC51: 03-2166 2636 | AD51: 03-20709387 | AE51: N/A | AF51: 1 | AG51: 3000-01-01 | AH51: 2021-01-15 | AI51: 2020-12-17 | AJ51: 3000-01-01 | AK51: 0 | AL51: 00:00:00 | AM51: -204117.44 | AN51: 00:00:00 | AO51: 0.135 | AP51: 0 | AQ51: MY | AR51: N/A | AS51: 204117.44 | AT51: 204117.44 | AU51: MYR | AV51: 204117.44 | AW51: SOCSO-MYR000-500000 | AX51: 0 | AZ51: 0 | BB51: 0 | BC51: 0 | BD51: 0 | BE51: 0 | BF51: DDT | BG51: 0 | BH51: -204117.44 | BI51: DF | BJ51: SOCSO-MYR010-299000 | BK51: 0 | BM51: VCH-210102317 | BN51: 1511981 | BO51: Received | BP51: 2020-12-18 | BQ51: 1 | BR51: 1155 | BS51: MYL1155OO000
A52: 6556325 | B52: PERTUBUHAN KESELAMATAN SOSIAL(SOCSO) | C52: MYR | D52: MALAYAN BANKING BHD | E52: 1900-01-03 | F52: 00:00:00 | G52: MYR | H52: 2021-10-21 | I52: MALAYAN BANKING BHD | J52: NOT APPLICABLE | K52: MY | L52: EQT | M52: NAMM | N52: 2020-12-31 | O52: 4010 | P52: 401769 | Q52: N/A | R52: 0 | S52: 1 | T52: 0 | U52: 0 | W52: SOCSO | Z52: MY | AA52: PERTUBUHAN KESELAMATAN SOCIAL(SOCSO) | AB52: 4 | AC52: 03-2166 2636 | AD52: 03-20709387 | AE52: N/A | AF52: 1 | AG52: 3000-01-01 | AH52: 2021-10-21 | AI52: 2021-09-22 | AJ52: 3000-01-01 | AK52: 0 | AL52: -492687.72 | AM52: 00:00:00 | AN52: 00:00:00 | AO52: 0.28 | AP52: 0 | AQ52: MY | AR52: N/A | AS52: 492687.72 | AT52: 492687.72 | AU52: MYR | AV52: 492687.72 | AW52: SOCSO-MYR000-500000 | AX52: 0 | AZ52: 0 | BB52: 0 | BC52: 0 | BD52: 0 | BE52: 0 | BF52: DDT | BG52: 0 | BH52: -492687.72 | BI52: DF | BJ52: SOCSO-MYR010-299000 | BK52: 0 | BM52: VCH-211001990 | BN52: 1759599 | BO52: Received | BP52: 2021-09-23 | BQ52: 1 | BR52: 1155 | BS52: MYL1155OO000
A53: 6556325 | B53: PERTUBUHAN KESELAMATAN SOSIAL(SOCSO) | C53: MYR | D53: MALAYAN BANKING BHD | E53: 1900-01-03 | F53: 00:00:00 | G53: MYR | H53: 2021-06-28 | I53: MALAYAN BANKING BHD | J53: NOT APPLICABLE | K53: MY | L53: EQT | M53: NAMM | N53: 2020-12-31 | O53: 4010 | P53: 401769 | Q53: N/A | R53: 0 | S53: 1 | T53: 0 | U53: 0 | W53: SOCSO | Z53: MY | AA53: PERTUBUHAN KESELAMATAN SOCIAL(SOCSO) | AB53: 4 | AC53: 03-2166 2636 | AD53: 03-20709387 | AE53: N/A | AF53: 1 | AG53: 3000-01-01 | AH53: 2021-06-28 | AI53: 2021-05-28 | AJ53: 3000-01-01 | AK53: 0 | AL53: -359516.01 | AM53: 00:00:00 | AN53: 00:00:00 | AO53: 0.21 | AP53: 0 | AQ53: MY | AR53: N/A | AS53: 359516.01 | AT53: 359516.01 | AU53: MYR | AV53: 359516.01 | AW53: SOCSO-MYR000-500000 | AX53: 0 | AZ53: 0 | BB53: 0 | BC53: 0 | BD53: 0 | BE53: 0 | BF53: DDT | BG53: 0 | BH53: -359516.01 | BI53: DF | BJ53: SOCSO-MYR010-299000 | BK53: 0 | BM53: VCH-210602948 | BN53: 1711981 | BO53: Received | BP53: 2021-05-31 | BQ53: 1 | BR53: 1155 | BS53: MYL1155OO000
A54: 6556325 | B54: PERTUBUHAN KESELAMATAN SOSIAL(SOCSO) | C54: MYR | D54: MALAYAN BANKING BHD | E54: 1900-01-03 | F54: 00:00:00 | G54: MYR | H54: 2021-06-28 | I54: MALAYAN BANKING BHD | J54: NOT APPLICABLE | K54: MY | L54: EQT | M54: NAMM | N54: 2020-12-31 | O54: 4010 | P54: 401769 | Q54: N/A | R54: 0 | S54: 1 | T54: 0 | U54: 0 | W54: SOCSO | Z54: MY | AA54: PERTUBUHAN KESELAMATAN SOCIAL(SOCSO) | AB54: 4 | AC54: 03-2166 2636 | AD54: 03-20709387 | AE54: N/A | AF54: 1 | AG54: 3000-01-01 | AH54: 2021-06-28 | AI54: 2021-05-28 | AJ54: 3000-01-01 | AK54: 0 | AL54: -299596.67 | AM54: 00:00:00 | AN54: 00:00:00 | AO54: 0.175 | AP54: 0 | AQ54: MY | AR54: N/A | AS54: 299596.67 | AT54: 299596.67 | AU54: MYR | AV54: 299596.67 | AW54: SOCSO-MYR000-500000 | AX54: 0 | AZ54: 0 | BB54: 0 | BC54: 0 | BD54: 0 | BE54: 0 | BF54: DDT | BG54: 0 | BH54: -299596.67 | BI54: DF | BJ54: SOCSO-MYR010-299000 | BK54: 0 | BM54: VCH-210602959 | BN54: 1711981 | BO54: Received | BP54: 2021-05-31 | BQ54: 1 | BR54: 1155 | BS54: MYL1155OO000
A55: 6575740 | B55: PERTUBUHAN KESELAMATAN SOSIAL(SOCSO) | C55: MYR | D55: MEGA FIRST CORP BHD | E55: 1900-01-03 | F55: 00:00:00 | G55: MYR | H55: 2021-04-19 | I55: MEGA FIRST CORP BHD | J55: NOT APPLICABLE | K55: MY | L55: EQT | M55: NAMM | N55: 2020-12-31 | O55: 5510 | P55: 401769 | Q55: N/A | R55: 0 | S55: 1 | T55: 0 | U55: 0 | W55: SOCSO | Z55: MY | AA55: PERTUBUHAN KESELAMATAN SOCIAL(SOCSO) | AB55: 4 | AC55: 03-2166 2636 | AD55: 03-20709387 | AE55: N/A | AF55: 1 | AG55: 3000-01-01 | AH55: 2021-04-19 | AI55: 2021-04-07 | AJ55: 3000-01-01 | AK55: 0 | AL55: -51518.35 | AM55: 00:00:00 | AN55: 00:00:00 | AO55: 0.065 | AP55: 0 | AQ55: MY | AR55: N/A | AS55: 51518.35 | AT55: 51518.35 | AU55: MYR | AV55: 51518.35 | AW55: SOCSO-MYR000-500000 | AX55: 0 | AZ55: 0 | BB55: 0 | BC55: 0 | BD55: 0 | BE55: 0 | BF55: DDT | BG55: 0 | BH55: -51518.35 | BI55: DF | BJ55: SOCSO-MYR010-299000 | BK55: 0 | BM55: VCH-210401634 | BN55: 792590 | BO55: Received | BP55: 2021-04-08 | BQ55: 1 | BR55: 3069 | BS55: MYL3069OO001
A56: 6575740 | B56: PERTUBUHAN KESELAMATAN SOSIAL(SOCSO) | C56: MYR | D56: MEGA FIRST CORP BHD | E56: 1900-01-03 | F56: 00:00:00 | G56: MYR | H56: 2021-10-15 | I56: MEGA FIRST CORP BHD | J56: NOT APPLICABLE | K56: MY | L56: EQT | M56: NAMM | N56: 2020-12-31 | O56: 5510 | P56: 401769 | Q56: N/A | R56: 0 | S56: 1 | T56: 0 | U56: 0 | W56: SOCSO | Z56: MY | AA56: PERTUBUHAN KESELAMATAN SOCIAL(SOCSO) | AB56: 4 | AC56: 03-2166 2636 | AD56: 03-20709387 | AE56: N/A | AF56: 1 | AG56: 3000-01-01 | AH56: 2021-10-15 | AI56: 2021-10-07 | AJ56: 3000-01-01 | AK56: 0 | AL56: -35268.35 | AM56: 00:00:00 | AN56: 00:00:00 | AO56: 0.0325 | AP56: 0 | AQ56: MY | AR56: N/A | AS56: 35268.35 | AT56: 35268.35 | AU56: MYR | AV56: 35268.35 | AW56: SOCSO-MYR000-500000 | AX56: 0 | AZ56: 0 | BB56: 0 | BC56: 0 | BD56: 0 | BE56: 0 | BF56: DDT | BG56: 0 | BH56: -35268.35 | BI56: DF | BJ56: SOCSO-MYR010-299000 | BK56: 0 | BM56: VCH-211001451 | BN56: 1085180 | BO56: Received | BP56: 2021-10-08 | BQ56: 1 | BR56: 3069 | BS56: MYL3069OO001
A57: BN4JBJ9 | B57: PERTUBUHAN KESELAMATAN SOSIAL(SOCSO) | C57: MYR | D57: MR DIY GROUP M BHD | E57: 1900-01-03 | F57: 00:00:00 | G57: MYR | H57: 2021-09-23 | I57: MR DIY GROUP M BHD | J57: NOT APPLICABLE | K57: MY | L57: EQT | M57: NAMM | N57: 2021-04-20 | O57: 2550 | P57: 401769 | Q57: N/A | R57: 0 | S57: 1 | T57: 0 | U57: 0 | W57: SOCSO | Z57: MY | AA57: PERTUBUHAN KESELAMATAN SOCIAL(SOCSO) | AB57: 4 | AC57: 03-2166 2636 | AD57: 03-20709387 | AE57: N/A | AF57: 1 | AG57: 3000-01-01 | AH57: 2021-09-23 | AI57: 2021-08-26 | AJ57: 3000-01-01 | AK57: 0 | AL57: -849.6 | AM57: 00:00:00 | AN57: 00:00:00 | AO57: 0.006 | AP57: 0 | AQ57: MY | AR57: N/A | AS57: 849.6 | AT57: 849.6 | AU57: MYR | AV57: 849.6 | AW57: SOCSO-MYR000-500000 | AX57: 0 | AZ57: 0 | BB57: 0 | BC57: 0 | BD57: 0 | BE57: 0 | BF57: DDT | BG57: 0 | BH57: -849.6 | BI57: DF | BJ57: SOCSO-MYR010-299000 | BK57: 0 | BM57: VCH-210902324 | BN57: 141600 | BO57: Received | BP57: 2021-08-27 | BQ57: 1 | BR57: 5296 | BS57: MYL5296OO008
A58: BN4JBJ9 | B58: PERTUBUHAN KESELAMATAN SOSIAL(SOCSO) | C58: MYR | D58: MR DIY GROUP M BHD | E58: 1900-01-03 | F58: 00:00:00 | G58: MYR | H58: 2021-06-17 | I58: MR DIY GROUP M BHD | J58: NOT APPLICABLE | K58: MY | L58: EQT | M58: NAMM | N58: 2021-04-20 | O58: 2550 | P58: 401769 | Q58: N/A | R58: 0 | S58: 1 | T58: 0 | U58: 0 | W58: SOCSO | Z58: MY | AA58: PERTUBUHAN KESELAMATAN SOCIAL(SOCSO) | AB58: 4 | AC58: 03-2166 2636 | AD58: 03-20709387 | AE58: N/A | AF58: 1 | AG58: 3000-01-01 | AH58: 2021-06-17 | AI58: 2021-05-20 | AJ58: 3000-01-01 | AK58: 0 | AL58: -1132.8 | AM58: 00:00:00 | AN58: 00:00:00 | AO58: 0.008 | AP58: 0 | AQ58: MY | AR58: N/A | AS58: 1132.8 | AT58: 1132.8 | AU58: MYR | AV58: 1132.8 | AW58: SOCSO-MYR000-500000 | AX58: 0 | AZ58: 0 | BB58: 0 | BC58: 0 | BD58: 0 | BE58: 0 | BF58: DDT | BG58: 0 | BH58: -1132.8 | BI58: DF | BJ58: SOCSO-MYR010-299000 | BK58: 0 | BM58: VCH-210601837 | BN58: 141600 | BO58: Received | BP58: 2021-05-21 | BQ58: 1 | BR58: 5296 | BS58: MYL5296OO008
A59: B79YDV3 | B59: PERTUBUHAN KESELAMATAN SOSIAL(SOCSO) | C59: MYR | D59: PAVILION REAL ESTATE INVEST | E59: 1900-01-03 | F59: 00:00:00 | G59: MYR | H59: 2021-09-10 | I59: PAVILION REAL ESTATE INVEST | J59: NOT APPLICABLE | K59: MY | L59: EQT | M59: NAMM | N59: 2020-12-31 | O59: 6010 | P59: 401769 | Q59: N/A | R59: 0 | S59: 1 | T59: 0 | U59: 0 | W59: SOCSO | Z59: MY | AA59: PERTUBUHAN KESELAMATAN SOCIAL(SOCSO) | AB59: 4 | AC59: 03-2166 2636 | AD59: 03-20709387 | AE59: N/A | AF59: 1 | AG59: 3000-01-01 | AH59: 2021-09-10 | AI59: 2021-08-19 | AJ59: 3000-01-01 | AK59: 0 | AL59: -18043.52 | AM59: 00:00:00 | AN59: 00:00:00 | AO59: 0.0176 | AP59: 0 | AQ59: MY | AR59: N/A | AS59: 18043.52 | AT59: 18043.52 | AU59: MYR | AV59: 18043.52 | AW59: SOCSO-MYR000-500000 | AX59: 0 | AZ59: 0 | BB59: 0 | BC59: 0 | BD59: 0 | BE59: 0 | BF59: DDT | BG59: 0 | BH59: -18043.52 | BI59: DF | BJ59: SOCSO-MYR010-299000 | BK59: 0 | BM59: VCH-210901022 | BN59: 1025200 | BO59: Received | BP59: 2021-08-20 | BQ59: 1 | BR59: 5212 | BS59: MYL5212TO004
A60: B79YDV3 | B60: PERTUBUHAN KESELAMATAN SOSIAL(SOCSO) | C60: MYR | D60: PAVILION REAL ESTATE INVEST | E60: 1900-01-03 | F60: 00:00:00 | G60: MYR | H60: 2021-09-10 | I60: PAVILION REAL ESTATE INVEST | J60: NOT APPLICABLE | K60: MY | L60: EQT | M60: NAMM | N60: 2020-12-31 | O60: 6010 | P60: 401769 | Q60: N/A | R60: 0 | S60: 1 | T60: 0 | U60: 0 | W60: SOCSO | Z60: MY | AA60: PERTUBUHAN KESELAMATAN SOCIAL(SOCSO) | AB60: 4 | AC60: 03-2166 2636 | AD60: 03-20709387 | AE60: N/A | AF60: 1 | AG60: 3000-01-01 | AH60: 2021-09-10 | AI60: 2021-08-19 | AJ60: 3000-01-01 | AK60: 0 | AL60: -717.64 | AM60: 00:00:00 | AN60: 00:00:00 | AO60: 0.0007 | AP60: 0 | AQ60: MY | AR60: N/A | AS60: 717.64 | AT60: 717.64 | AU60: MYR | AV60: 717.64 | AW60: SOCSO-MYR000-500000 | AX60: 0 | AZ60: 0 | BB60: 0 | BC60: 0 | BD60: 0 | BE60: 0 | BF60: DDT | BG60: 0 | BH60: -717.64 | BI60: DF | BJ60: SOCSO-MYR010-299000 | BK60: 0 | BM60: VCH-210901027 | BN60: 1025200 | BO60: Received | BP60: 2021-08-20 | BQ60: 1 | BR60: 5212 | BS60: MYL5212TO004
A61: B79YDV3 | B61: PERTUBUHAN KESELAMATAN SOSIAL(SOCSO) | C61: MYR | D61: PAVILION REAL ESTATE INVEST | E61: 1900-01-03 | F61: 00:00:00 | G61: MYR | H61: 2021-02-26 | I61: PAVILION REAL ESTATE INVEST | J61: NOT APPLICABLE | K61: MY | L61: EQT | M61: NAMM | N61: 2020-12-31 | O61: 6010 | P61: 401769 | Q61: N/A | R61: 0 | S61: 1 | T61: 0 | U61: 0 | W61: SOCSO | Z61: MY | AA61: PERTUBUHAN KESELAMATAN SOCIAL(SOCSO) | AB61: 4 | AC61: 03-2166 2636 | AD61: 03-20709387 | AE61: N/A | AF61: 1 | AG61: 3000-01-01 | AH61: 2021-02-26 | AI61: 2021-02-11 | AJ61: 3000-01-01 | AK61: 0 | AL61: -25014.88 | AM61: 00:00:00 | AN61: 00:00:00 | AO61: 0.0244 | AP61: 0 | AQ61: MY | AR61: N/A | AS61: 25014.88 | AT61: 25014.88 | AU61: MYR | AV61: 25014.88 | AW61: SOCSO-MYR000-500000 | AX61: 0 | AZ61: 0 | BB61: 0 | BC61: 0 | BD61: 0 | BE61: 0 | BF61: DDT | BG61: 0 | BH61: -25014.88 | BI61: DF | BJ61: SOCSO-MYR010-299000 | BK61: 0 | BM61: VCH-210202658 | BN61: 1025200 | BO61: Received | BP61: 2021-02-15 | BQ61: 1 | BR61: 5212 | BS61: MYL5212TO004
A62: B79YDV3 | B62: PERTUBUHAN KESELAMATAN SOSIAL(SOCSO) | C62: MYR | D62: PAVILION REAL ESTATE INVEST | E62: 1900-01-03 | F62: 00:00:00 | G62: MYR | H62: 2021-02-26 | I62: PAVILION REAL ESTATE INVEST | J62: NOT APPLICABLE | K62: MY | L62: EQT | M62: NAMM | N62: 2020-12-31 | O62: 6010 | P62: 401769 | Q62: N/A | R62: 0 | S62: 1 | T62: 0 | U62: 0 | W62: SOCSO | Z62: MY | AA62: PERTUBUHAN KESELAMATAN SOCIAL(SOCSO) | AB62: 4 | AC62: 03-2166 2636 | AD62: 03-20709387 | AE62: N/A | AF62: 1 | AG62: 3000-01-01 | AH62: 2021-02-26 | AI62: 2021-02-11 | AJ62: 3000-01-01 | AK62: 0 | AL62: -820.16 | AM62: 00:00:00 | AN62: 00:00:00 | AO62: 0.0008 | AP62: 0 | AQ62: MY | AR62: N/A | AS62: 820.16 | AT62: 820.16 | AU62: MYR | AV62: 820.16 | AW62: SOCSO-MYR000-500000 | AX62: 0 | AZ62: 0 | BB62: 0 | BC62: 0 | BD62: 0 | BE62: 0 | BF62: DDT | BG62: 0 | BH62: -820.16 | BI62: DF | BJ62: SOCSO-MYR010-299000 | BK62: 0 | BM62: VCH-210202663 | BN62: 1025200 | BO62: Received | BP62: 2021-02-15 | BQ62: 1 | BR62: 5212 | BS62: MYL5212TO004
A63: 6658317 | B63: PERTUBUHAN KESELAMATAN SOSIAL(SOCSO) | C63: MYR | D63: PENTAMASTER CORP BHD | E63: 1900-01-03 | F63: 00:00:00 | G63: MYR | H63: 2021-07-30 | I63: PENTAMASTER CORP BHD | J63: NOT APPLICABLE | K63: MY | L63: EQT | M63: NAMM | N63: 2020-12-31 | O63: 2010 | P63: 401769 | Q63: N/A | R63: 0 | S63: 1 | T63: 0 | U63: 0 | W63: SOCSO | Z63: MY | AA63: PERTUBUHAN KESELAMATAN SOCIAL(SOCSO) | AB63: 4 | AC63: 03-2166 2636 | AD63: 03-20709387 | AE63: N/A | AF63: 1 | AG63: 3000-01-01 | AH63: 2021-07-30 | AI63: 2021-07-15 | AJ63: 3000-01-01 | AK63: 0 | AL63: -9000 | AM63: 00:00:00 | AN63: 00:00:00 | AO63: 0.015 | AP63: 0 | AQ63: MY | AR63: N/A | AS63: 9000 | AT63: 9000 | AU63: MYR | AV63: 9000 | AW63: SOCSO-MYR000-500000 | AX63: 0 | AZ63: 0 | BB63: 0 | BC63: 0 | BD63: 0 | BE63: 0 | BF63: DDT | BG63: 0 | BH63: -9000 | BI63: DF | BJ63: SOCSO-MYR010-299000 | BK63: 0 | BM63: VCH-210702853 | BN63: 600000 | BO63: Received | BP63: 2021-07-16 | BQ63: 1 | BR63: 7160 | BS63: MYL7160OO004
A64: B5KQGT3 | B64: PERTUBUHAN KESELAMATAN SOSIAL(SOCSO) | C64: MYR | D64: PETRONAS CHEMICALS GROUP BHD | E64: 1900-01-03 | F64: 00:00:00 | G64: MYR | H64: 2021-09-30 | I64: PETRONAS CHEMICALS GROUP BHD | J64: NOT APPLICABLE | K64: MY | L64: EQT | M64: NAMM | N64: 2020-12-31 | O64: 1510 | P64: 401769 | Q64: N/A | R64: 0 | S64: 1 | T64: 0 | U64: 0 | W64: SOCSO | Z64: MY | AA64: PERTUBUHAN KESELAMATAN SOCIAL(SOCSO) | AB64: 4 | AC64: 03-2166 2636 | AD64: 03-20709387 | AE64: N/A | AF64: 1 | AG64: 3000-01-01 | AH64: 2021-09-30 | AI64: 2021-09-10 | AJ64: 3000-01-01 | AK64: 0 | AL64: -187726 | AM64: 00:00:00 | AN64: 00:00:00 | AO64: 0.23 | AP64: 0 | AQ64: MY | AR64: N/A | AS64: 187726 | AT64: 187726 | AU64: MYR | AV64: 187726 | AW64: SOCSO-MYR000-500000 | AX64: 0 | AZ64: 0 | BB64: 0 | BC64: 0 | BD64: 0 | BE64: 0 | BF64: DDT | BG64: 0 | BH64: -187726 | BI64: DF | BJ64: SOCSO-MYR010-299000 | BK64: 0 | BM64: VCH-210903241 | BN64: 816200 | BO64: Received | BP64: 2021-09-13 | BQ64: 1 | BR64: 5183 | BS64: MYL5183OO008
A65: B5KQGT3 | B65: PERTUBUHAN KESELAMATAN SOSIAL(SOCSO) | C65: MYR | D65: PETRONAS CHEMICALS GROUP BHD | E65: 1900-01-03 | F65: 00:00:00 | G65: MYR | H65: 2021-03-25 | I65: PETRONAS CHEMICALS GROUP BHD | J65: NOT APPLICABLE | K65: MY | L65: EQT | M65: NAMM | N65: 2020-12-31 | O65: 1510 | P65: 401769 | Q65: N/A | R65: 0 | S65: 1 | T65: 0 | U65: 0 | W65: SOCSO | Z65: MY | AA65: PERTUBUHAN KESELAMATAN SOCIAL(SOCSO) | AB65: 4 | AC65: 03-2166 2636 | AD65: 03-20709387 | AE65: N/A | AF65: 1 | AG65: 3000-01-01 | AH65: 2021-03-25 | AI65: 2021-03-10 | AJ65: 3000-01-01 | AK65: 0 | AL65: -44324 | AM65: 00:00:00 | AN65: 00:00:00 | AO65: 0.07 | AP65: 0 | AQ65: MY | AR65: N/A | AS65: 44324 | AT65: 44324 | AU65: MYR | AV65: 44324 | AW65: SOCSO-MYR000-500000 | AX65: 0 | AZ65: 0 | BB65: 0 | BC65: 0 | BD65: 0 | BE65: 0 | BF65: DDT | BG65: 0 | BH65: -44324 | BI65: DF | BJ65: SOCSO-MYR010-299000 | BK65: 0 | BM65: VCH-210303205 | BN65: 633200 | BO65: Received | BP65: 2021-03-11 | BQ65: 1 | BR65: 5183 | BS65: MYL5183OO008
A66: 6703972 | B66: PERTUBUHAN KESELAMATAN SOSIAL(SOCSO) | C66: MYR | D66: PETRONAS GAS BHD | E66: 1900-01-03 | F66: 00:00:00 | G66: MYR | H66: 2021-03-22 | I66: PETRONAS GAS BHD | J66: NOT APPLICABLE | K66: MY | L66: EQT | M66: NAMM | N66: 2020-12-31 | O66: 5510 | P66: 401769 | Q66: N/A | R66: 0 | S66: 1 | T66: 0 | U66: 0 | W66: SOCSO | Z66: MY | AA66: PERTUBUHAN KESELAMATAN SOCIAL(SOCSO) | AB66: 4 | AC66: 03-2166 2636 | AD66: 03-20709387 | AE66: N/A | AF66: 1 | AG66: 3000-01-01 | AH66: 2021-03-22 | AI66: 2021-03-09 | AJ66: 3000-01-01 | AK66: 0 | AL66: -35860 | AM66: 00:00:00 | AN66: 00:00:00 | AO66: 0.22 | AP66: 0 | AQ66: MY | AR66: N/A | AS66: 35860 | AT66: 35860 | AU66: MYR | AV66: 35860 | AW66: SOCSO-MYR000-500000 | AX66: 0 | AZ66: 0 | BB66: 0 | BC66: 0 | BD66: 0 | BE66: 0 | BF66: DDT | BG66: 0 | BH66: -35860 | BI66: DF | BJ66: SOCSO-MYR010-299000 | BK66: 0 | BM66: VCH-210302758 | BN66: 163000 | BO66: Received | BP66: 2021-03-10 | BQ66: 1 | BR66: 6033 | BS66: MYL6033OO004
A67: 6703972 | B67: PERTUBUHAN KESELAMATAN SOSIAL(SOCSO) | C67: MYR | D67: PETRONAS GAS BHD | E67: 1900-01-03 | F67: 00:00:00 | G67: MYR | H67: 2021-03-22 | I67: PETRONAS GAS BHD | J67: NOT APPLICABLE | K67: MY | L67: EQT | M67: NAMM | N67: 2020-12-31 | O67: 5510 | P67: 401769 | Q67: N/A | R67: 0 | S67: 1 | T67: 0 | U67: 0 | W67: SOCSO | Z67: MY | AA67: PERTUBUHAN KESELAMATAN SOCIAL(SOCSO) | AB67: 4 | AC67: 03-2166 2636 | AD67: 03-20709387 | AE67: N/A | AF67: 1 | AG67: 3000-01-01 | AH67: 2021-03-22 | AI67: 2021-03-09 | AJ67: 3000-01-01 | AK67: 0 | AL67: -8150 | AM67: 00:00:00 | AN67: 00:00:00 | AO67: 0.05 | AP67: 0 | AQ67: MY | AR67: N/A | AS67: 8150 | AT67: 8150 | AU67: MYR | AV67: 8150 | AW67: SOCSO-MYR000-500000 | AX67: 0 | AZ67: 0 | BB67: 0 | BC67: 0 | BD67: 0 | BE67: 0 | BF67: DDT | BG67: 0 | BH67: -8150 | BI67: DF | BJ67: SOCSO-MYR010-299000 | BK67: 0 | BM67: VCH-210302770 | BN67: 163000 | BO67: Received | BP67: 2021-03-10 | BQ67: 1 | BR67: 6033 | BS67: MYL6033OO004
A68: 6703972 | B68: PERTUBUHAN KESELAMATAN SOSIAL(SOCSO) | C68: MYR | D68: PETRONAS GAS BHD | E68: 1900-01-03 | F68: 00:00:00 | G68: MYR | H68: 2021-09-20 | I68: PETRONAS GAS BHD | J68: NOT APPLICABLE | K68: MY | L68: EQT | M68: NAMM | N68: 2020-12-31 | O68: 5510 | P68: 401769 | Q68: N/A | R68: 0 | S68: 1 | T68: 0 | U68: 0 | W68: SOCSO | Z68: MY | AA68: PERTUBUHAN KESELAMATAN SOCIAL(SOCSO) | AB68: 4 | AC68: 03-2166 2636 | AD68: 03-20709387 | AE68: N/A | AF68: 1 | AG68: 3000-01-01 | AH68: 2021-09-20 | AI68: 2021-09-07 | AJ68: 3000-01-01 | AK68: 0 | AL68: -18080 | AM68: 00:00:00 | AN68: 00:00:00 | AO68: 0.16 | AP68: 0 | AQ68: MY | AR68: N/A | AS68: 18080 | AT68: 18080 | AU68: MYR | AV68: 18080 | AW68: SOCSO-MYR000-500000 | AX68: 0 | AZ68: 0 | BB68: 0 | BC68: 0 | BD68: 0 | BE68: 0 | BF68: DDT | BG68: 0 | BH68: -18080 | BI68: DF | BJ68: SOCSO-MYR010-299000 | BK68: 0 | BM68: VCH-210901904 | BN68: 113000 | BO68: Received | BP68: 2021-09-08 | BQ68: 1 | BR68: 6033 | BS68: MYL6033OO004
A69: 6703972 | B69: PERTUBUHAN KESELAMATAN SOSIAL(SOCSO) | C69: MYR | D69: PETRONAS GAS BHD | E69: 1900-01-03 | F69: 00:00:00 | G69: MYR | H69: 2021-06-21 | I69: PETRONAS GAS BHD | J69: NOT APPLICABLE | K69: MY | L69: EQT | M69: NAMM | N69: 2020-12-31 | O69: 5510 | P69: 401769 | Q69: N/A | R69: 0 | S69: 1 | T69: 0 | U69: 0 | W69: SOCSO | Z69: MY | AA69: PERTUBUHAN KESELAMATAN SOCIAL(SOCSO) | AB69: 4 | AC69: 03-2166 2636 | AD69: 03-20709387 | AE69: N/A | AF69: 1 | AG69: 3000-01-01 | AH69: 2021-06-21 | AI69: 2021-06-10 | AJ69: 3000-01-01 | AK69: 0 | AL69: -26080 | AM69: 00:00:00 | AN69: 00:00:00 | AO69: 0.16 | AP69: 0 | AQ69: MY | AR69: N/A | AS69: 26080 | AT69: 26080 | AU69: MYR | AV69: 26080 | AW69: SOCSO-MYR000-500000 | AX69: 0 | AZ69: 0 | BB69: 0 | BC69: 0 | BD69: 0 | BE69: 0 | BF69: DDT | BG69: 0 | BH69: -26080 | BI69: DF | BJ69: SOCSO-MYR010-299000 | BK69: 0 | BM69: VCH-210602229 | BN69: 163000 | BO69: Received | BP69: 2021-06-11 | BQ69: 1 | BR69: 6033 | BS69: MYL6033OO004
A70: BF0J5S4 | B70: PERTUBUHAN KESELAMATAN SOSIAL(SOCSO) | C70: MYR | D70: PRESS METAL ALUMINIUM HOLDIN | E70: 1900-01-03 | F70: 00:00:00 | G70: MYR | H70: 2021-07-02 | I70: PRESS METAL ALUMINIUM HOLDIN | J70: NOT APPLICABLE | K70: MY | L70: EQT | M70: NAMM | N70: 2021-01-11 | O70: 1510 | P70: 401769 | Q70: N/A | R70: 0 | S70: 1 | T70: 0 | U70: 0 | W70: SOCSO | Z70: MY | AA70: PERTUBUHAN KESELAMATAN SOCIAL(SOCSO) | AB70: 4 | AC70: 03-2166 2636 | AD70: 03-20709387 | AE70: N/A | AF70: 1 | AG70: 3000-01-01 | AH70: 2021-07-02 | AI70: 2021-06-16 | AJ70: 3000-01-01 | AK70: 0 | AL70: -9600 | AM70: 00:00:00 | AN70: 00:00:00 | AO70: 0.0075 | AP70: 0 | AQ70: MY | AR70: N/A | AS70: 9600 | AT70: 9600 | AU70: MYR | AV70: 9600 | AW70: SOCSO-MYR000-500000 | AX70: 0 | AZ70: 0 | BB70: 0 | BC70: 0 | BD70: 0 | BE70: 0 | BF70: DDT | BG70: 0 | BH70: -9600 | BI70: DF | BJ70: SOCSO-MYR010-299000 | BK70: 0 | BM70: VCH-210700173 | BN70: 1280000 | BO70: Received | BP70: 2021-06-17 | BQ70: 1 | BR70: 8869 | BS70: MYL8869OO009
A71: BF0J5S4 | B71: PERTUBUHAN KESELAMATAN SOSIAL(SOCSO) | C71: MYR | D71: PRESS METAL ALUMINIUM HOLDIN | E71: 1900-01-03 | F71: 00:00:00 | G71: MYR | H71: 2021-09-29 | I71: PRESS METAL ALUMINIUM HOLDIN | J71: NOT APPLICABLE | K71: MY | L71: EQT | M71: NAMM | N71: 2021-01-11 | O71: 1510 | P71: 401769 | Q71: N/A | R71: 0 | S71: 1 | T71: 0 | U71: 0 | W71: SOCSO | Z71: MY | AA71: PERTUBUHAN KESELAMATAN SOCIAL(SOCSO) | AB71: 4 | AC71: 03-2166 2636 | AD71: 03-20709387 | AE71: N/A | AF71: 1 | AG71: 3000-01-01 | AH71: 2021-09-29 | AI71: 2021-09-10 | AJ71: 3000-01-01 | AK71: 0 | AL71: -12800 | AM71: 00:00:00 | AN71: 00:00:00 | AO71: 0.01 | AP71: 0 | AQ71: MY | AR71: N/A | AS71: 12800 | AT71: 12800 | AU71: MYR | AV71: 12800 | AW71: SOCSO-MYR000-500000 | AX71: 0 | AZ71: 0 | BB71: 0 | BC71: 0 | BD71: 0 | BE71: 0 | BF71: DDT | BG71: 0 | BH71: -12800 | BI71: DF | BJ71: SOCSO-MYR010-299000 | BK71: 0 | BM71: VCH-210903026 | BN71: 1280000 | BO71: Received | BP71: 2021-09-13 | BQ71: 1 | BR71: 8869 | BS71: MYL8869OO009
A72: BF0J5S4 | B72: PERTUBUHAN KESELAMATAN SOSIAL(SOCSO) | C72: MYR | D72: PRESS METAL ALUMINIUM HOLDIN | E72: 1900-01-03 | F72: 00:00:00 | G72: MYR | H72: 2021-03-31 | I72: PRESS METAL ALUMINIUM HOLDIN | J72: NOT APPLICABLE | K72: MY | L72: EQT | M72: NAMM | N72: 2021-01-11 | O72: 1510 | P72: 401769 | Q72: N/A | R72: 0 | S72: 1 | T72: 0 | U72: 0 | W72: SOCSO | Z72: MY | AA72: PERTUBUHAN KESELAMATAN SOCIAL(SOCSO) | AB72: 4 | AC72: 03-2166 2636 | AD72: 03-20709387 | AE72: N/A | AF72: 1 | AG72: 3000-01-01 | AH72: 2021-03-31 | AI72: 2021-03-12 | AJ72: 3000-01-01 | AK72: 0 | AL72: -7250 | AM72: 00:00:00 | AN72: 00:00:00 | AO72: 0.0125 | AP72: 0 | AQ72: MY | AR72: N/A | AS72: 7250 | AT72: 7250 | AU72: MYR | AV72: 7250 | AW72: SOCSO-MYR000-500000 | AX72: 0 | AZ72: 0 | BB72: 0 | BC72: 0 | BD72: 0 | BE72: 0 | BF72: DDT | BG72: 0 | BH72: -7250 | BI72: DF | BJ72: SOCSO-MYR010-299000 | BK72: 0 | BM72: VCH-210303929 | BN72: 580000 | BO72: Received | BP72: 2021-03-15 | BQ72: 1 | BR72: 8869 | BS72: MYL8869OO009
A73: B012W42 | B73: PERTUBUHAN KESELAMATAN SOSIAL(SOCSO) | C73: MYR | D73: PUBLIC BANK BERHAD | E73: 1900-01-03 | F73: 00:00:00 | G73: MYR | H73: 2021-03-22 | I73: PUBLIC BANK BERHAD | J73: NOT APPLICABLE | K73: MY | L73: EQT | M73: NAMM | N73: 2020-12-31 | O73: 4010 | P73: 401769 | Q73: N/A | R73: 0 | S73: 1 | T73: 0 | U73: 0 | W73: SOCSO | Z73: MY | AA73: PERTUBUHAN KESELAMATAN SOCIAL(SOCSO) | AB73: 4 | AC73: 03-2166 2636 | AD73: 03-20709387 | AE73: N/A | AF73: 1 | AG73: 3000-01-01 | AH73: 2021-03-22 | AI73: 2021-03-11 | AJ73: 3000-01-01 | AK73: 0 | AL73: -421882.5 | AM73: 00:00:00 | AN73: 00:00:00 | AO73: 0.13 | AP73: 0 | AQ73: MY | AR73: N/A | AS73: 421882.5 | AT73: 421882.5 | AU73: MYR | AV73: 421882.5 | AW73: SOCSO-MYR000-500000 | AX73: 0 | AZ73: 0 | BB73: 0 | BC73: 0 | BD73: 0 | BE73: 0 | BF73: DDT | BG73: 0 | BH73: -421882.5 | BI73: DF | BJ73: SOCSO-MYR010-299000 | BK73: 0 | BM73: VCH-210302779 | BN73: 3245250 | BO73: Received | BP73: 2021-03-12 | BQ73: 1 | BR73: 1295 | BS73: MYL1295OO004
A74: B012W42 | B74: PERTUBUHAN KESELAMATAN SOSIAL(SOCSO) | C74: MYR | D74: PUBLIC BANK BERHAD | E74: 1900-01-03 | F74: 00:00:00 | G74: MYR | H74: 2021-09-23 | I74: PUBLIC BANK BERHAD | J74: NOT APPLICABLE | K74: MY | L74: EQT | M74: NAMM | N74: 2020-12-31 | O74: 4010 | P74: 401769 | Q74: N/A | R74: 0 | S74: 1 | T74: 0 | U74: 0 | W74: SOCSO | Z74: MY | AA74: PERTUBUHAN KESELAMATAN SOCIAL(SOCSO) | AB74: 4 | AC74: 03-2166 2636 | AD74: 03-20709387 | AE74: N/A | AF74: 1 | AG74: 3000-01-01 | AH74: 2021-09-23 | AI74: 2021-09-13 | AJ74: 3000-01-01 | AK74: 0 | AL74: -199893.75 | AM74: 00:00:00 | AN74: 00:00:00 | AO74: 0.075 | AP74: 0 | AQ74: MY | AR74: N/A | AS74: 199893.75 | AT74: 199893.75 | AU74: MYR | AV74: 199893.75 | AW74: SOCSO-MYR000-500000 | AX74: 0 | AZ74: 0 | BB74: 0 | BC74: 0 | BD74: 0 | BE74: 0 | BF74: DDT | BG74: 0 | BH74: -199893.75 | BI74: DF | BJ74: SOCSO-MYR010-299000 | BK74: 0 | BM74: VCH-210902340 | BN74: 2665250 | BO74: Received | BP74: 2021-09-14 | BQ74: 1 | BR74: 1295 | BS74: MYL1295OO004
A75: 6244675 | B75: PERTUBUHAN KESELAMATAN SOSIAL(SOCSO) | C75: MYR | D75: RHB BANK BHD | E75: 1900-01-03 | F75: 00:00:00 | G75: MYR | H75: 2021-11-03 | I75: RHB BANK BHD | J75: NOT APPLICABLE | K75: MY | L75: EQT | M75: NAMM | N75: 2020-12-31 | O75: 4010 | P75: 44474 | Q75: N/A | R75: 0 | S75: 1 | T75: 0 | U75: 0 | W75: SOCSO | Z75: MY | AA75: PERTUBUHAN KESELAMATAN SOCIAL(SOCSO) | AB75: 4 | AC75: 03-2166 2636 | AD75: 03-20709387 | AE75: N/A | AF75: 1 | AG75: 3000-01-01 | AH75: 2021-11-03 | AI75: 2021-10-05 | AJ75: 2021-10-05 | AK75: 1 | AL75: -178437.75 | AM75: 00:00:00 | AN75: 00:00:00 | AO75: 0.15 | AP75: 0 | AQ75: MY | AS75: 178437.75 | AT75: 178437.75 | AU75: MYR | BB75: 0 | BC75: 0 | BD75: 0 | BE75: 0 | BN75: 1189585 | BO75: Accrual | BP75: 2021-10-06 | BQ75: 1 | BR75: 1066 | BS75: MYL1066OO009
A76: 6244675 | B76: PERTUBUHAN KESELAMATAN SOSIAL(SOCSO) | C76: MYR | D76: RHB BANK BHD | E76: 1900-01-03 | F76: 00:00:00 | G76: MYR | H76: 2021-11-03 | I76: RHB BANK BHD | J76: NOT APPLICABLE | K76: MY | L76: EQT | M76: NAMM | N76: 2020-12-31 | O76: 4010 | P76: 44474 | Q76: N/A | R76: 0 | S76: 1 | T76: 0 | U76: 0 | W76: SOCSO | Z76: MY | AA76: PERTUBUHAN KESELAMATAN SOCIAL(SOCSO) | AB76: 4 | AC76: 03-2166 2636 | AD76: 03-20709387 | AE76: N/A | AF76: 1 | AG76: 3000-01-01 | AH76: 2021-11-03 | AI76: 2021-10-05 | AJ76: 2021-10-05 | AK76: 1 | AL76: 2388-07-16T18:00:00 | AM76: 00:00:00 | AN76: 00:00:00 | AO76: 0.15 | AP76: 0 | AQ76: MY | AS76: -178437.75 | AT76: -178437.75 | AU76: MYR | BB76: 0 | BC76: 0 | BD76: 0 | BE76: 0 | BN76: -1189585 | BO76: Accrual | BP76: 2021-10-06 | BQ76: 1 | BR76: 1066 | BS76: MYL1066OO009
A77: 6244675 | B77: PERTUBUHAN KESELAMATAN SOSIAL(SOCSO) | C77: MYR | D77: RHB BANK BHD | E77: 1900-01-03 | F77: 00:00:00 | G77: MYR | H77: 2021-11-03 | I77: RHB BANK BHD | J77: NOT APPLICABLE | K77: MY | L77: EQT | M77: NAMM | N77: 2020-12-31 | O77: 4010 | P77: 401769 | Q77: N/A | R77: 0 | S77: 1 | T77: 0 | U77: 0 | W77: SOCSO | Z77: MY | AA77: PERTUBUHAN KESELAMATAN SOCIAL(SOCSO) | AB77: 4 | AC77: 03-2166 2636 | AD77: 03-20709387 | AE77: N/A | AF77: 1 | AG77: 3000-01-01 | AH77: 2021-11-05 | AI77: 2021-10-05 | AJ77: 3000-01-01 | AK77: 0 | AL77: -118958.5 | AM77: 00:00:00 | AN77: 00:00:00 | AO77: 0.1 | AP77: 0 | AQ77: MY | AR77: N/A | AS77: 118958.5 | AT77: 118958.5 | AU77: MYR | AV77: 118958.5 | AW77: SOCSO-MYR000-500000 | AX77: 0 | AZ77: 0 | BB77: 0 | BC77: 0 | BD77: 0 | BE77: 0 | BF77: DDT | BG77: 0 | BH77: -118958.5 | BI77: DF | BJ77: SOCSO-MYR010-299000 | BK77: 0 | BM77: VCH-211100422 | BN77: 1189585 | BO77: Accrual | BP77: 2021-10-06 | BQ77: 1 | BR77: 1066 | BS77: MYL1066OO009
A78: 6244675 | B78: PERTUBUHAN KESELAMATAN SOSIAL(SOCSO) | C78: MYR | D78: RHB BANK BHD | E78: 1900-01-03 | F78: 00:00:00 | G78: MYR | H78: 2021-11-03 | I78: RHB BANK BHD | J78: NOT APPLICABLE | K78: MY | L78: EQT | M78: NAMM | N78: 2020-12-31 | O78: 4010 | P78: 401769 | Q78: N/A | R78: 0 | S78: 1 | T78: 0 | U78: 0 | W78: SOCSO | Z78: MY | AA78: PERTUBUHAN KESELAMATAN SOCIAL(SOCSO) | AB78: 4 | AC78: 03-2166 2636 | AD78: 03-20709387 | AE78: N/A | AF78: 1 | AG78: 3000-01-01 | AH78: 2021-11-03 | AI78: 2021-10-05 | AJ78: 3000-01-01 | AK78: 0 | AL78: -59479.25 | AM78: 00:00:00 | AN78: 00:00:00 | AO78: 0.05 | AP78: 0 | AQ78: MY | AR78: N/A | AS78: 59479.25 | AT78: 59479.25 | AU78: MYR | AV78: 59479.25 | AW78: SOCSO-MYR000-500000 | AX78: 0 | AZ78: 0 | BB78: 0 | BC78: 0 | BD78: 0 | BE78: 0 | BF78: DDT | BG78: 0 | BH78: -59479.25 | BI78: DF | BJ78: SOCSO-MYR010-299000 | BK78: 0 | BM78: VCH-211100305 | BN78: 1189585 | BO78: Accrual | BP78: 2021-10-06 | BQ78: 1 | BR78: 1066 | BS78: MYL1066OO009
A79: 6244675 | B79: PERTUBUHAN KESELAMATAN SOSIAL(SOCSO) | C79: MYR | D79: RHB BANK BHD | E79: 1900-01-03 | F79: 00:00:00 | G79: MYR | H79: 2021-07-08 | I79: RHB BANK BHD | J79: NOT APPLICABLE | K79: MY | L79: EQT | M79: NAMM | N79: 2020-12-31 | O79: 4010 | P79: 401769 | Q79: N/A | R79: 0 | S79: 1 | T79: 0 | U79: 0 | W79: SOCSO | Z79: MY | AA79: PERTUBUHAN KESELAMATAN SOCIAL(SOCSO) | AB79: 4 | AC79: 03-2166 2636 | AD79: 03-20709387 | AE79: N/A | AF79: 1 | AG79: 3000-01-01 | AH79: 2021-07-09 | AI79: 2021-06-09 | AJ79: 3000-01-01 | AK79: 0 | AL79: -81992.7 | AM79: 00:00:00 | AN79: 00:00:00 | AO79: 0.0765 | AP79: 0 | AQ79: MY | AR79: N/A | AS79: 81992.7 | AT79: 81992.7 | AU79: MYR | AV79: 81992.7 | AW79: SOCSO-MYR000-500000 | AX79: 0 | AZ79: 0 | BB79: 0 | BC79: 0 | BD79: 0 | BE79: 0 | BF79: DDT | BG79: 0 | BH79: -81992.7 | BI79: DF | BJ79: SOCSO-MYR010-299000 | BK79: 0 | BM79: VCH-210700629 | BN79: 1071800 | BO79: Received | BP79: 2021-06-10 | BQ79: 1 | BR79: 1066 | BS79: MYL1066OO009
A80: 6244675 | B80: PERTUBUHAN KESELAMATAN SOSIAL(SOCSO) | C80: MYR | D80: RHB BANK BHD | E80: 1900-01-03 | F80: 00:00:00 | G80: MYR | H80: 2021-02-09 | I80: RHB BANK BHD | J80: NOT APPLICABLE | K80: MY | L80: EQT | M80: NAMM | N80: 2020-12-31 | O80: 4010 | P80: 401769 | Q80: N/A | R80: 0 | S80: 1 | T80: 0 | U80: 0 | W80: SOCSO | Z80: MY | AA80: PERTUBUHAN KESELAMATAN SOCIAL(SOCSO) | AB80: 4 | AC80: 03-2166 2636 | AD80: 03-20709387 | AE80: N/A | AF80: 1 | AG80: 3000-01-01 | AH80: 2021-02-09 | AI80: 2021-01-19 | AJ80: 3000-01-01 | AK80: 0 | AL80: -97180 | AM80: 00:00:00 | AN80: 00:00:00 | AO80: 0.1 | AP80: 0 | AQ80: MY | AR80: N/A | AS80: 97180 | AT80: 97180 | AU80: MYR | AV80: 97180 | AW80: SOCSO-MYR000-500000 | AX80: 0 | AZ80: 0 | BB80: 0 | BC80: 0 | BD80: 0 | BE80: 0 | BF80: DDT | BG80: 0 | BH80: -97180 | BI80: DF | BJ80: SOCSO-MYR010-299000 | BK80: 0 | BM80: VCH-210200821 | BN80: 971800 | BO80: Received | BP80: 2021-01-20 | BQ80: 1 | BR80: 1066 | BS80: MYL1066OO009
A81: B1VZ5G1 | B81: PERTUBUHAN KESELAMATAN SOSIAL(SOCSO) | C81: MYR | D81: SCIENTEX BHD | E81: 1900-01-03 | F81: 00:00:00 | G81: MYR | H81: 2021-01-13 | I81: SCIENTEX BHD | J81: NOT APPLICABLE | K81: MY | L81: EQT | M81: NAMM | N81: 2020-12-31 | O81: 1510 | P81: 44200 | Q81: N/A | R81: 0 | S81: 1 | T81: 0 | U81: 0 | W81: SOCSO | Z81: MY | AA81: PERTUBUHAN KESELAMATAN SOCIAL(SOCSO) | AB81: 4 | AC81: 03-2166 2636 | AD81: 03-20709387 | AE81: N/A | AF81: 1 | AG81: 3000-01-01 | AH81: 2021-02-03 | AI81: 2021-01-04 | AJ81: 2021-01-04 | AK81: 0 | AL81: -5200 | AM81: 00:00:00 | AN81: 00:00:00 | AO81: 0.13 | AP81: 0 | AQ81: MY | AR81: N/A | AS81: 5200 | AT81: 5200 | AU81: MYR | AV81: 5200 | AW81: SOCSO-MYR000-500000 | AX81: 0 | AZ81: 0 | BB81: 0 | BC81: 0 | BD81: 0 | BE81: 0 | BF81: DDT | BG81: 0 | BH81: -5200 | BI81: DF | BJ81: SOCSO-MYR010-299000 | BK81: 0 | BM81: VCH-210301045 | BN81: 40000 | BO81: Received | BP81: 2021-01-05 | BQ81: 1 | BR81: 4731 | BS81: MYL4731OO005
A82: B1VZ5G1 | B82: PERTUBUHAN KESELAMATAN SOSIAL(SOCSO) | C82: MYR | D82: SCIENTEX BHD | E82: 1900-01-03 | F82: 00:00:00 | G82: MYR | H82: 2021-01-13 | I82: SCIENTEX BHD | J82: NOT APPLICABLE | K82: MY | L82: EQT | M82: NAMM | N82: 2021-01-04 | O82: 1510 | P82: 401769 | Q82: N/A | R82: 0 | S82: 1 | T82: 0 | U82: 0 | W82: SOCSO | X82: LIV*210200005 | Y82: F | Z82: MY | AA82: PERTUBUHAN KESELAMATAN SOCIAL(SOCSO) | AB82: 4 | AC82: 03-2166 2636 | AD82: 03-20709387 | AE82: N/A | AF82: 1 | AG82: 3000-01-01 | AH82: 2021-01-13 | AI82: 2021-01-04 | AJ82: 3000-01-01 | AK82: 0 | AL82: -32734 | AM82: 00:00:00 | AN82: 00:00:00 | AO82: 0.13 | AP82: 0 | AQ82: MY | AR82: N/A | AS82: 32734 | AT82: 32734 | AU82: MYR | AV82: 32734 | AW82: SOCSO-MYR000-500000 | AX82: 0 | AZ82: 0 | BB82: 0 | BC82: 0 | BD82: 0 | BE82: 0 | BF82: DDT | BG82: 0 | BH82: -32734 | BI82: DF | BJ82: SOCSO-MYR010-299000 | BK82: 0 | BM82: VCH-210201205 | BN82: 251800 | BO82: Received | BP82: 2021-01-05 | BQ82: 1 | BR82: 4731 | BS82: MYL4731OO005
A83: B1VZ5G1 | B83: PERTUBUHAN KESELAMATAN SOSIAL(SOCSO) | C83: MYR | D83: SCIENTEX BHD | E83: 1900-01-03 | F83: 00:00:00 | G83: MYR | H83: 2021-07-23 | I83: SCIENTEX BHD | J83: NOT APPLICABLE | K83: MY | L83: EQT | M83: NAMM | N83: 2020-12-31 | O83: 1510 | P83: 401769 | Q83: N/A | R83: 0 | S83: 1 | T83: 0 | U83: 0 | W83: SOCSO | Z83: MY | AA83: PERTUBUHAN KESELAMATAN SOCIAL(SOCSO) | AB83: 4 | AC83: 03-2166 2636 | AD83: 03-20709387 | AE83: N/A | AF83: 1 | AG83: 3000-01-01 | AH83: 2021-07-23 | AI83: 2021-07-07 | AJ83: 3000-01-01 | AK83: 0 | AL83: -21816 | AM83: 00:00:00 | AN83: 00:00:00 | AO83: 0.04 | AP83: 0 | AQ83: MY | AR83: N/A | AS83: 21816 | AT83: 21816 | AU83: MYR | AV83: 21816 | AW83: SOCSO-MYR000-500000 | AX83: 0 | AZ83: 0 | BB83: 0 | BC83: 0 | BD83: 0 | BE83: 0 | BF83: DDT | BG83: 0 | BH83: -21816 | BI83: DF | BJ83: SOCSO-MYR010-299000 | BK83: 0 | BM83: VCH-210702263 | BN83: 545400 | BO83: Received | BP83: 2021-07-08 | BQ83: 1 | BR83: 4731 | BS83: MYL4731OO005
A84: B29TTR1 | B84: PERTUBUHAN KESELAMATAN SOSIAL(SOCSO) | C84: MYR | D84: SIME DARBY BERHAD | E84: 1900-01-03 | F84: 00:00:00 | G84: MYR | H84: 2021-05-11 | I84: SIME DARBY BERHAD | J84: NOT APPLICABLE | K84: MY | L84: EQT | M84: NAMM | N84: 2020-12-31 | O84: 2010 | P84: 401769 | Q84: N/A | R84: 0 | S84: 1 | T84: 0 | U84: 0 | W84: SOCSO | Z84: MY | AA84: PERTUBUHAN KESELAMATAN SOCIAL(SOCSO) | AB84: 4 | AC84: 03-2166 2636 | AD84: 03-20709387 | AE84: N/A | AF84: 1 | AG84: 3000-01-01 | AH84: 2021-05-11 | AI84: 2021-04-23 | AJ84: 3000-01-01 | AK84: 0 | AL84: -97272 | AM84: 00:00:00 | AN84: 00:00:00 | AO84: 0.04 | AP84: 0 | AQ84: MY | AR84: N/A | AS84: 97272 | AT84: 97272 | AU84: MYR | AV84: 97272 | AW84: SOCSO-MYR000-500000 | AX84: 0 | AZ84: 0 | BB84: 0 | BC84: 0 | BD84: 0 | BE84: 0 | BF84: DDT | BG84: 0 | BH84: -97272 | BI84: DF | BJ84: SOCSO-MYR010-299000 | BK84: 0 | BM84: VCH-210500984 | BN84: 2431800 | BO84: Received | BP84: 2021-04-26 | BQ84: 1 | BR84: 4197 | BS84: MYL4197OO009
A85: B29TTR1 | B85: PERTUBUHAN KESELAMATAN SOSIAL(SOCSO) | C85: MYR | D85: SIME DARBY BERHAD | E85: 1900-01-03 | F85: 00:00:00 | G85: MYR | H85: 2021-05-11 | I85: SIME DARBY BERHAD | J85: NOT APPLICABLE | K85: MY | L85: EQT | M85: NAMM | N85: 2020-12-31 | O85: 2010 | P85: 401769 | Q85: N/A | R85: 0 | S85: 1 | T85: 0 | U85: 0 | W85: SOCSO | Z85: MY | AA85: PERTUBUHAN KESELAMATAN SOCIAL(SOCSO) | AB85: 4 | AC85: 03-2166 2636 | AD85: 03-20709387 | AE85: N/A | AF85: 1 | AG85: 3000-01-01 | AH85: 2021-05-11 | AI85: 2021-04-23 | AJ85: 3000-01-01 | AK85: 0 | AL85: -48636 | AM85: 00:00:00 | AN85: 00:00:00 | AO85: 0.02 | AP85: 0 | AQ85: MY | AR85: N/A | AS85: 48636 | AT85: 48636 | AU85: MYR | AV85: 48636 | AW85: SOCSO-MYR000-500000 | AX85: 0 | AZ85: 0 | BB85: 0 | BC85: 0 | BD85: 0 | BE85: 0 | BF85: DDT | BG85: 0 | BH85: -48636 | BI85: DF | BJ85: SOCSO-MYR010-299000 | BK85: 0 | BM85: VCH-210500996 | BN85: 2431800 | BO85: Received | BP85: 2021-04-26 | BQ85: 1 | BR85: 4197 | BS85: MYL4197OO009
A86: B29TTR1 | B86: PERTUBUHAN KESELAMATAN SOSIAL(SOCSO) | C86: MYR | D86: SIME DARBY BERHAD | E86: 1900-01-03 | F86: 00:00:00 | G86: MYR | H86: 2021-09-30 | I86: SIME DARBY BERHAD | J86: NOT APPLICABLE | K86: MY | L86: EQT | M86: NAMM | N86: 2020-12-31 | O86: 2010 | P86: 401769 | Q86: N/A | R86: 0 | S86: 1 | T86: 0 | U86: 0 | W86: SOCSO | Z86: MY | AA86: PERTUBUHAN KESELAMATAN SOCIAL(SOCSO) | AB86: 4 | AC86: 03-2166 2636 | AD86: 03-20709387 | AE86: N/A | AF86: 1 | AG86: 3000-01-01 | AH86: 2021-09-30 | AI86: 2021-09-10 | AJ86: 3000-01-01 | AK86: 0 | AL86: -24318 | AM86: 00:00:00 | AN86: 00:00:00 | AO86: 0.01 | AP86: 0 | AQ86: MY | AR86: N/A | AS86: 24318 | AT86: 24318 | AU86: MYR | AV86: 24318 | AW86: SOCSO-MYR000-500000 | AX86: 0 | AZ86: 0 | BB86: 0 | BC86: 0 | BD86: 0 | BE86: 0 | BF86: DDT | BG86: 0 | BH86: -24318 | BI86: DF | BJ86: SOCSO-MYR010-299000 | BK86: 0 | BM86: VCH-210903213 | BN86: 2431800 | BO86: Received | BP86: 2021-09-13 | BQ86: 1 | BR86: 4197 | BS86: MYL4197OO009
A87: B29TTR1 | B87: PERTUBUHAN KESELAMATAN SOSIAL(SOCSO) | C87: MYR | D87: SIME DARBY BERHAD | E87: 1900-01-03 | F87: 00:00:00 | G87: MYR | H87: 2021-09-30 | I87: SIME DARBY BERHAD | J87: NOT APPLICABLE | K87: MY | L87: EQT | M87: NAMM | N87: 2020-12-31 | O87: 2010 | P87: 401769 | Q87: N/A | R87: 0 | S87: 1 | T87: 0 | U87: 0 | W87: SOCSO | Z87: MY | AA87: PERTUBUHAN KESELAMATAN SOCIAL(SOCSO) | AB87: 4 | AC87: 03-2166 2636 | AD87: 03-20709387 | AE87: N/A | AF87: 1 | AG87: 3000-01-01 | AH87: 2021-09-30 | AI87: 2021-09-10 | AJ87: 3000-01-01 | AK87: 0 | AL87: -194544 | AM87: 00:00:00 | AN87: 00:00:00 | AO87: 0.08 | AP87: 0 | AQ87: MY | AR87: N/A | AS87: 194544 | AT87: 194544 | AU87: MYR | AV87: 194544 | AW87: SOCSO-MYR000-500000 | AX87: 0 | AZ87: 0 | BB87: 0 | BC87: 0 | BD87: 0 | BE87: 0 | BF87: DDT | BG87: 0 | BH87: -194544 | BI87: DF | BJ87: SOCSO-MYR010-299000 | BK87: 0 | BM87: VCH-210903225 | BN87: 2431800 | BO87: Received | BP87: 2021-09-13 | BQ87: 1 | BR87: 4197 | BS87: MYL4197OO009
A88: B03DHR1 | B88: PERTUBUHAN KESELAMATAN SOSIAL(SOCSO) | C88: MYR | D88: SKP RESOURCES BHD | E88: 1900-01-03 | F88: 00:00:00 | G88: MYR | H88: 2021-10-29 | I88: SKP RESOURCES BHD | J88: NOT APPLICABLE | K88: MY | L88: EQT | M88: NAMM | N88: 2021-01-18 | O88: 4520 | P88: 401769 | Q88: N/A | R88: 0 | S88: 1 | T88: 0 | U88: 0 | W88: SOCSO | Z88: MY | AA88: PERTUBUHAN KESELAMATAN SOCIAL(SOCSO) | AB88: 4 | AC88: 03-2166 2636 | AD88: 03-20709387 | AE88: N/A | AF88: 1 | AG88: 3000-01-01 | AH88: 2021-10-29 | AI88: 2021-10-01 | AJ88: 3000-01-01 | AK88: 0 | AL88: -51731.05 | AM88: 00:00:00 | AN88: 00:00:00 | AO88: 0.0427 | AP88: 0 | AQ88: MY | AR88: N/A | AS88: 51731.05 | AT88: 51731.05 | AU88: MYR | AV88: 51731.05 | AW88: SOCSO-MYR000-500000 | AX88: 0 | AZ88: 0 | BB88: 0 | BC88: 0 | BD88: 0 | BE88: 0 | BF88: DDT | BG88: 0 | BH88: -51731.05 | BI88: DF | BJ88: SOCSO-MYR010-299000 | BK88: 0 | BM88: VCH-211002812 | BN88: 1211500 | BO88: Accrual | BP88: 2021-10-04 | BQ88: 1 | BR88: 7155 | BS88: MYL7155OO004
A89: B6VGS93 | B89: PERTUBUHAN KESELAMATAN SOSIAL(SOCSO) | C89: MYR | D89: SUNWAY BHD | E89: 1900-01-03 | F89: 00:00:00 | G89: MYR | H89: 2021-10-21 | I89: SUNWAY BHD | J89: NOT APPLICABLE | K89: MY | L89: EQT | M89: NAMM | N89: 2020-12-31 | O89: 2010 | P89: 401769 | Q89: N/A | R89: 0 | S89: 1 | T89: 0 | U89: 0 | W89: SOCSO | Z89: MY | AA89: PERTUBUHAN KESELAMATAN SOCIAL(SOCSO) | AB89: 4 | AC89: 03-2166 2636 | AD89: 03-20709387 | AE89: N/A | AF89: 1 | AG89: 3000-01-01 | AH89: 2021-10-21 | AI89: 2021-09-30 | AJ89: 3000-01-01 | AK89: 0 | AL89: -24815 | AM89: 00:00:00 | AN89: 00:00:00 | AO89: 0.01 | AP89: 0 | AQ89: MY | AR89: N/A | AS89: 24815 | AT89: 24815 | AU89: MYR | AV89: 24815 | AW89: SOCSO-MYR000-500000 | AX89: 0 | AZ89: 0 | BB89: 0 | BC89: 0 | BD89: 0 | BE89: 0 | BF89: DDT | BG89: 0 | BH89: -24815 | BI89: DF | BJ89: SOCSO-MYR010-299000 | BK89: 0 | BM89: VCH-211002004 | BN89: 2481500 | BO89: Received | BP89: 2021-10-01 | BQ89: 1 | BR89: 5211 | BS89: MYL5211OO007
A90: B6VGS93 | B90: PERTUBUHAN KESELAMATAN SOSIAL(SOCSO) | C90: MYR | D90: SUNWAY BHD | E90: 1900-01-03 | F90: 00:00:00 | G90: MYR | H90: 2021-04-28 | I90: SUNWAY BHD | J90: NOT APPLICABLE | K90: MY | L90: EQT | M90: NAMM | N90: 2020-12-31 | O90: 2010 | P90: 401769 | Q90: N/A | R90: 0 | S90: 1 | T90: 0 | U90: 0 | W90: SOCSO | Z90: MY | AA90: PERTUBUHAN KESELAMATAN SOCIAL(SOCSO) | AB90: 4 | AC90: 03-2166 2636 | AD90: 03-20709387 | AE90: N/A | AF90: 1 | AG90: 3000-01-01 | AH90: 2021-04-28 | AI90: 2021-04-14 | AJ90: 3000-01-01 | AK90: 0 | AL90: -37222.5 | AM90: 00:00:00 | AN90: 00:00:00 | AO90: 0.015 | AP90: 0 | AQ90: MY | AR90: N/A | AS90: 37222.5 | AT90: 37222.5 | AU90: MYR | AV90: 37222.5 | AW90: SOCSO-MYR000-500000 | AX90: 0 | AZ90: 0 | BB90: 0 | BC90: 0 | BD90: 0 | BE90: 0 | BF90: DDT | BG90: 0 | BH90: -37222.5 | BI90: DF | BJ90: SOCSO-MYR010-299000 | BK90: 0 | BM90: VCH-210402598 | BN90: 2481500 | BO90: Received | BP90: 2021-04-15 | BQ90: 1 | BR90: 5211 | BS90: MYL5211OO007
A91: BX909K4 | B91: PERTUBUHAN KESELAMATAN SOSIAL(SOCSO) | C91: MYR | D91: SUNWAY CONSTRUCTION GROUP BH | E91: 1900-01-03 | F91: 00:00:00 | G91: MYR | H91: 2021-09-29 | I91: SUNWAY CONSTRUCTION GROUP BH | J91: NOT APPLICABLE | K91: MY | L91: EQT | M91: NAMM | N91: 2020-12-31 | O91: 2010 | P91: 401769 | Q91: N/A | R91: 0 | S91: 1 | T91: 0 | U91: 0 | W91: SOCSO | Z91: MY | AA91: PERTUBUHAN KESELAMATAN SOCIAL(SOCSO) | AB91: 4 | AC91: 03-2166 2636 | AD91: 03-20709387 | AE91: N/A | AF91: 1 | AG91: 3000-01-01 | AH91: 2021-09-29 | AI91: 2021-09-09 | AJ91: 3000-01-01 | AK91: 0 | AL91: -18128.75 | AM91: 00:00:00 | AN91: 00:00:00 | AO91: 0.0125 | AP91: 0 | AQ91: MY | AR91: N/A | AS91: 18128.75 | AT91: 18128.75 | AU91: MYR | AV91: 18128.75 | AW91: SOCSO-MYR000-500000 | AX91: 0 | AZ91: 0 | BB91: 0 | BC91: 0 | BD91: 0 | BE91: 0 | BF91: DDT | BG91: 0 | BH91: -18128.75 | BI91: DF | BJ91: SOCSO-MYR010-299000 | BK91: 0 | BM91: VCH-210903013 | BN91: 1450300 | BO91: Received | BP91: 2021-09-10 | BQ91: 1 | BR91: 5263 | BS91: MYL5263OO008
A92: BX909K4 | B92: PERTUBUHAN KESELAMATAN SOSIAL(SOCSO) | C92: MYR | D92: SUNWAY CONSTRUCTION GROUP BH | E92: 1900-01-03 | F92: 00:00:00 | G92: MYR | H92: 2021-04-07 | I92: SUNWAY CONSTRUCTION GROUP BH | J92: NOT APPLICABLE | K92: MY | L92: EQT | M92: NAMM | N92: 2020-12-31 | O92: 2010 | P92: 401769 | Q92: N/A | R92: 0 | S92: 1 | T92: 0 | U92: 0 | W92: SOCSO | Z92: MY | AA92: PERTUBUHAN KESELAMATAN SOCIAL(SOCSO) | AB92: 4 | AC92: 03-2166 2636 | AD92: 03-20709387 | AE92: N/A | AF92: 1 | AG92: 3000-01-01 | AH92: 2021-04-07 | AI92: 2021-03-12 | AJ92: 3000-01-01 | AK92: 0 | AL92: -39883.25 | AM92: 00:00:00 | AN92: 00:00:00 | AO92: 0.0275 | AP92: 0 | AQ92: MY | AR92: N/A | AS92: 39883.25 | AT92: 39883.25 | AU92: MYR | AV92: 39883.25 | AW92: SOCSO-MYR000-500000 | AX92: 0 | AZ92: 0 | BB92: 0 | BC92: 0 | BD92: 0 | BE92: 0 | BF92: DDT | BG92: 0 | BH92: -39883.25 | BI92: DF | BJ92: SOCSO-MYR010-299000 | BK92: 0 | BM92: VCH-210400547 | BN92: 1450300 | BO92: Received | BP92: 2021-03-15 | BQ92: 1 | BR92: 5263 | BS92: MYL5263OO008
A93: B62QFR9 | B93: PERTUBUHAN KESELAMATAN SOSIAL(SOCSO) | C93: MYR | D93: SUNWAY REAL ESTATE INVESTMEN | E93: 1900-01-03 | F93: 00:00:00 | G93: MYR | H93: 2021-03-11 | I93: SUNWAY REAL ESTATE INVESTMEN | J93: NOT APPLICABLE | K93: MY | L93: EQT | M93: NAMM | N93: 2020-12-31 | O93: 6010 | P93: 401769 | Q93: N/A | R93: 0 | S93: 1 | T93: 0 | U93: 0 | W93: SOCSO | Z93: MY | AA93: PERTUBUHAN KESELAMATAN SOCIAL(SOCSO) | AB93: 4 | AC93: 03-2166 2636 | AD93: 03-20709387 | AE93: N/A | AF93: 1 | AG93: 3000-01-01 | AH93: 2021-03-11 | AI93: 2021-02-24 | AJ93: 3000-01-01 | AK93: 0 | AL93: -3850 | AM93: 00:00:00 | AN93: 00:00:00 | AO93: 0.0077 | AP93: 0 | AQ93: MY | AR93: N/A | AS93: 3850 | AT93: 3850 | AU93: MYR | AV93: 3850 | AW93: SOCSO-MYR000-500000 | AX93: 0 | AZ93: 0 | BB93: 0 | BC93: 0 | BD93: 0 | BE93: 0 | BF93: DDT | BG93: 0 | BH93: -3850 | BI93: DF | BJ93: SOCSO-MYR010-299000 | BK93: 0 | BM93: VCH-210301556 | BN93: 500000 | BO93: Received | BP93: 2021-02-25 | BQ93: 1 | BR93: 5176 | BS93: MYL5176TO001
A94: B62QFR9 | B94: PERTUBUHAN KESELAMATAN SOSIAL(SOCSO) | C94: MYR | D94: SUNWAY REAL ESTATE INVESTMEN | E94: 1900-01-03 | F94: 00:00:00 | G94: MYR | H94: 2021-09-29 | I94: SUNWAY REAL ESTATE INVESTMEN | J94: NOT APPLICABLE | K94: MY | L94: EQT | M94: NAMM | N94: 2020-12-31 | O94: 6010 | P94: 401769 | Q94: N/A | R94: 0 | S94: 1 | T94: 0 | U94: 0 | W94: SOCSO | Z94: MY | AA94: PERTUBUHAN KESELAMATAN SOCIAL(SOCSO) | AB94: 4 | AC94: 03-2166 2636 | AD94: 03-20709387 | AE94: N/A | AF94: 1 | AG94: 3000-01-01 | AH94: 2021-09-29 | AI94: 2021-09-14 | AJ94: 3000-01-01 | AK94: 0 | AL94: -5850 | AM94: 00:00:00 | AN94: 00:00:00 | AO94: 0.0117 | AP94: 0 | AQ94: MY | AR94: N/A | AS94: 5850 | AT94: 5850 | AU94: MYR | AV94: 5850 | AW94: SOCSO-MYR000-500000 | AX94: 0 | AZ94: 0 | BB94: 0 | BC94: 0 | BD94: 0 | BE94: 0 | BF94: DDT | BG94: 0 | BH94: -5850 | BI94: DF | BJ94: SOCSO-MYR010-299000 | BK94: 0 | BM94: VCH-210903030 | BN94: 500000 | BO94: Received | BP94: 2021-09-15 | BQ94: 1 | BR94: 5176 | BS94: MYL5176TO001
A95: B62QFR9 | B95: PERTUBUHAN KESELAMATAN SOSIAL(SOCSO) | C95: MYR | D95: SUNWAY REAL ESTATE INVESTMEN | E95: 1900-01-03 | F95: 00:00:00 | G95: MYR | H95: 2021-09-29 | I95: SUNWAY REAL ESTATE INVESTMEN | J95: NOT APPLICABLE | K95: MY | L95: EQT | M95: NAMM | N95: 2020-12-31 | O95: 6010 | P95: 401769 | Q95: N/A | R95: 0 | S95: 1 | T95: 0 | U95: 0 | W95: SOCSO | Z95: MY | AA95: PERTUBUHAN KESELAMATAN SOCIAL(SOCSO) | AB95: 4 | AC95: 03-2166 2636 | AD95: 03-20709387 | AE95: N/A | AF95: 1 | AG95: 3000-01-01 | AH95: 2021-09-29 | AI95: 2021-09-14 | AJ95: 3000-01-01 | AK95: 0 | AL95: -1750 | AM95: 00:00:00 | AN95: 00:00:00 | AO95: 0.0035 | AP95: 0 | AQ95: MY | AR95: N/A | AS95: 1750 | AT95: 1750 | AU95: MYR | AV95: 1750 | AW95: SOCSO-MYR000-500000 | AX95: 0 | AZ95: 0 | BB95: 0 | BC95: 0 | BD95: 0 | BE95: 0 | BF95: DDT | BG95: 0 | BH95: -1750 | BI95: DF | BJ95: SOCSO-MYR010-299000 | BK95: 0 | BM95: VCH-210903032 | BN95: 500000 | BO95: Received | BP95: 2021-09-15 | BQ95: 1 | BR95: 5176 | BS95: MYL5176TO001
A96: B62QFR9 | B96: PERTUBUHAN KESELAMATAN SOSIAL(SOCSO) | C96: MYR | D96: SUNWAY REAL ESTATE INVESTMEN | E96: 1900-01-03 | F96: 00:00:00 | G96: MYR | H96: 2021-09-29 | I96: SUNWAY REAL ESTATE INVESTMEN | J96: NOT APPLICABLE | K96: MY | L96: EQT | M96: NAMM | N96: 2020-12-31 | O96: 6010 | P96: 401769 | Q96: N/A | R96: 0 | S96: 1 | T96: 0 | U96: 0 | W96: SOCSO | Z96: MY | AA96: PERTUBUHAN KESELAMATAN SOCIAL(SOCSO) | AB96: 4 | AC96: 03-2166 2636 | AD96: 03-20709387 | AE96: N/A | AF96: 1 | AG96: 3000-01-01 | AH96: 2021-09-29 | AI96: 2021-09-14 | AJ96: 3000-01-01 | AK96: 0 | AL96: -550 | AM96: 00:00:00 | AN96: 00:00:00 | AO96: 0.0011 | AP96: 0 | AQ96: MY | AR96: N/A | AS96: 550 | AT96: 550 | AU96: MYR | AV96: 550 | AW96: SOCSO-MYR000-500000 | AX96: 0 | AZ96: 0 | BB96: 0 | BC96: 0 | BD96: 0 | BE96: 0 | BF96: DDT | BG96: 0 | BH96: -550 | BI96: DF | BJ96: SOCSO-MYR010-299000 | BK96: 0 | BM96: VCH-210903035 | BN96: 500000 | BO96: Received | BP96: 2021-09-15 | BQ96: 1 | BR96: 5176 | BS96: MYL5176TO001
A97: 6868398 | B97: PERTUBUHAN KESELAMATAN SOSIAL(SOCSO) | C97: MYR | D97: TELEKOM MALAYSIA BHD | E97: 1900-01-03 | F97: 00:00:00 | G97: MYR | H97: 2021-09-30 | I97: TELEKOM MALAYSIA BHD | J97: NOT APPLICABLE | K97: MY | L97: EQT | M97: NAMM | N97: 2020-12-31 | O97: 5010 | P97: 401769 | Q97: N/A | R97: 0 | S97: 1 | T97: 0 | U97: 0 | W97: SOCSO | Z97: MY | AA97: PERTUBUHAN KESELAMATAN SOCIAL(SOCSO) | AB97: 4 | AC97: 03-2166 2636 | AD97: 03-20709387 | AE97: N/A | AF97: 1 | AG97: 3000-01-01 | AH97: 2021-09-30 | AI97: 2021-09-13 | AJ97: 3000-01-01 | AK97: 0 | AL97: -54600 | AM97: 00:00:00 | AN97: 00:00:00 | AO97: 0.07 | AP97: 0 | AQ97: MY | AR97: N/A | AS97: 54600 | AT97: 54600 | AU97: MYR | AV97: 54600 | AW97: SOCSO-MYR000-500000 | AX97: 0 | AZ97: 0 | BB97: 0 | BC97: 0 | BD97: 0 | BE97: 0 | BF97: DDT | BG97: 0 | BH97: -54600 | BI97: DF | BJ97: SOCSO-MYR010-299000 | BK97: 0 | BM97: VCH-210903251 | BN97: 780000 | BO97: Received | BP97: 2021-09-14 | BQ97: 1 | BR97: 4863 | BS97: MYL4863OO006
A98: 6868398 | B98: PERTUBUHAN KESELAMATAN SOSIAL(SOCSO) | C98: MYR | D98: TELEKOM MALAYSIA BHD | E98: 1900-01-03 | F98: 00:00:00 | G98: MYR | H98: 2021-03-31 | I98: TELEKOM MALAYSIA BHD | J98: NOT APPLICABLE | K98: MY | L98: EQT | M98: NAMM | N98: 2020-12-31 | O98: 5010 | P98: 401769 | Q98: N/A | R98: 0 | S98: 1 | T98: 0 | U98: 0 | W98: SOCSO | Z98: MY | AA98: PERTUBUHAN KESELAMATAN SOCIAL(SOCSO) | AB98: 4 | AC98: 03-2166 2636 | AD98: 03-20709387 | AE98: N/A | AF98: 1 | AG98: 3000-01-01 | AH98: 2021-03-31 | AI98: 2021-03-11 | AJ98: 3000-01-01 | AK98: 0 | AL98: -58500 | AM98: 00:00:00 | AN98: 00:00:00 | AO98: 0.075 | AP98: 0 | AQ98: MY | AR98: N/A | AS98: 58500 | AT98: 58500 | AU98: MYR | AV98: 58500 | AW98: SOCSO-MYR000-500000 | AX98: 0 | AZ98: 0 | BB98: 0 | BC98: 0 | BD98: 0 | BE98: 0 | BF98: DDT | BG98: 0 | BH98: -58500 | BI98: DF | BJ98: SOCSO-MYR010-299000 | BK98: 0 | BM98: VCH-210303910 | BN98: 780000 | BO98: Received | BP98: 2021-03-12 | BQ98: 1 | BR98: 4863 | BS98: MYL4863OO006
A99: 6904612 | B99: PERTUBUHAN KESELAMATAN SOSIAL(SOCSO) | C99: MYR | D99: TENAGA NASIONAL BHD | E99: 1900-01-03 | F99: 00:00:00 | G99: MYR | H99: 2021-10-15 | I99: TENAGA NASIONAL BHD | J99: NOT APPLICABLE | K99: MY | L99: EQT | M99: NAMM | N99: 2020-12-31 | O99: 5510 | P99: 401769 | Q99: N/A | R99: 0 | S99: 1 | T99: 0 | U99: 0 | W99: SOCSO | Z99: MY | AA99: PERTUBUHAN KESELAMATAN SOCIAL(SOCSO) | AB99: 4 | AC99: 03-2166 2636 | AD99: 03-20709387 | AE99: N/A | AF99: 1 | AG99: 3000-01-01 | AH99: 2021-10-15 | AI99: 2021-09-29 | AJ99: 3000-01-01 | AK99: 0 | AL99: -220115.5 | AM99: 00:00:00 | AN99: 00:00:00 | AO99: 0.22 | AP99: 0 | AQ99: MY | AR99: N/A | AS99: 220115.5 | AT99: 220115.5 | AU99: MYR | AV99: 220115.5 | AW99: SOCSO-MYR000-500000 | AX99: 0 | AZ99: 0 | BB99: 0 | BC99: 0 | BD99: 0 | BE99: 0 | BF99: DDT | BG99: 0 | BH99: -220115.5 | BI99: DF | BJ99: SOCSO-MYR010-299000 | BK99: 0 | BM99: VCH-211001418 | BN99: 1000525 | BO99: Received | BP99: 2021-09-30 | BQ99: 1 | BR99: 5347 | BS99: MYL5347OO009
A100: 6904612 | B100: PERTUBUHAN KESELAMATAN SOSIAL(SOCSO) | C100: MYR | D100: TENAGA NASIONAL BHD | E100: 1900-01-03 | F100: 00:00:00 | G100: MYR | H100: 2021-04-16 | I100: TENAGA NASIONAL BHD | J100: NOT APPLICABLE | K100: MY | L100: EQT | M100: NAMM | N100: 2020-12-31 | O100: 5510 | P100: 401769 | Q100: N/A | R100: 0 | S100: 1 | T100: 0 | U100: 0 | W100: SOCSO | Z100: MY | AA100: PERTUBUHAN KESELAMATAN SOCIAL(SOCSO) | AB100: 4 | AC100: 03-2166 2636 | AD100: 03-20709387 | AE100: N/A | AF100: 1 | AG100: 3000-01-01 | AH100: 2021-04-16 | AI100: 2021-03-30 | AJ100: 3000-01-01 | AK100: 0 | AL100: -454210 | AM100: 00:00:00 | AN100: 00:00:00 | AO100: 0.4 | AP100: 0 | AQ100: MY | AR100: N/A | AS100: 454210 | AT100: 454210 | AU100: MYR | AV100: 454210 | AW100: SOCSO-MYR000-500000 | AX100: 0 | AZ100: 0 | BB100: 0 | BC100: 0 | BD100: 0 | BE100: 0 | BF100: DDT | BG100: 0 | BH100: -454210 | BI100: DF | BJ100: SOCSO-MYR010-299000 | BK100: 0 | BM100: VCH-210401470 | BN100: 1135525 | BO100: Received | BP100: 2021-03-31 | BQ100: 1 | BR100: 5347 | BS100: MYL5347OO009
A101: 6904612 | B101: PERTUBUHAN KESELAMATAN SOSIAL(SOCSO) | C101: MYR | D101: TENAGA NASIONAL BHD | E101: 1900-01-03 | F101: 00:00:00 | G101: MYR | H101: 2021-04-16 | I101: TENAGA NASIONAL BHD | J101: NOT APPLICABLE | K101: MY | L101: EQT | M101: NAMM | N101: 2020-12-31 | O101: 5510 | P101: 401769 | Q101: N/A | R101: 0 | S101: 1 | T101: 0 | U101: 0 | W101: SOCSO | Z101: MY | AA101: PERTUBUHAN KESELAMATAN SOCIAL(SOCSO) | AB101: 4 | AC101: 03-2166 2636 | AD101: 03-20709387 | AE101: N/A | AF101: 1 | AG101: 3000-01-01 | AH101: 2021-04-16 | AI101: 2021-03-30 | AJ101: 3000-01-01 | AK101: 0 | AL101: -204394.5 | AM101: 00:00:00 | AN101: 00:00:00 | AO101: 0.18 | AP101: 0 | AQ101: MY | AR101: N/A | AS101: 204394.5 | AT101: 204394.5 | AU101: MYR | AV101: 204394.5 | AW101: SOCSO-MYR000-500000 | AX101: 0 | AZ101: 0 | BB101: 0 | BC101: 0 | BD101: 0 | BE101: 0 | BF101: DDT | BG101: 0 | BH101: -204394.5 | BI101: DF | BJ101: SOCSO-MYR010-299000 | BK101: 0 | BM101: VCH-210401480 | BN101: 1135525 | BO101: Received | BP101: 2021-03-31 | BQ101: 1 | BR101: 5347 | BS101: MYL5347OO009
A102: 6336538 | B102: PERTUBUHAN KESELAMATAN SOSIAL(SOCSO) | C102: MYR | D102: TIME DOTCOM BHD | E102: 1900-01-03 | F102: 00:00:00 | G102: MYR | H102: 2021-03-30 | I102: TIME DOTCOM BHD | J102: NOT APPLICABLE | K102: MY | L102: EQT | M102: NAMM | N102: 2020-12-31 | O102: 5010 | P102: 401769 | Q102: N/A | R102: 0 | S102: 1 | T102: 0 | U102: 0 | W102: SOCSO | Z102: MY | AA102: PERTUBUHAN KESELAMATAN SOCIAL(SOCSO) | AB102: 4 | AC102: 03-2166 2636 | AD102: 03-20709387 | AE102: N/A | AF102: 1 | AG102: 3000-01-01 | AH102: 2021-03-30 | AI102: 2021-03-16 | AJ102: 3000-01-01 | AK102: 0 | AL102: -55620 | AM102: 00:00:00 | AN102: 00:00:00 | AO102: 0.206 | AP102: 0 | AQ102: MY | AR102: N/A | AS102: 55620 | AT102: 55620 | AU102: MYR | AV102: 55620 | AW102: SOCSO-MYR000-500000 | AX102: 0 | AZ102: 0 | BB102: 0 | BC102: 0 | BD102: 0 | BE102: 0 | BF102: DDT | BG102: 0 | BH102: -55620 | BI102: DF | BJ102: SOCSO-MYR010-299000 | BK102: 0 | BM102: VCH-210303698 | BN102: 270000 | BO102: Received | BP102: 2021-03-17 | BQ102: 1 | BR102: 5031 | BS102: MYL5031OO009
A103: 6336538 | B103: PERTUBUHAN KESELAMATAN SOSIAL(SOCSO) | C103: MYR | D103: TIME DOTCOM BHD | E103: 1900-01-03 | F103: 00:00:00 | G103: MYR | H103: 2021-03-30 | I103: TIME DOTCOM BHD | J103: NOT APPLICABLE | K103: MY | L103: EQT | M103: NAMM | N103: 2020-12-31 | O103: 5010 | P103: 401769 | Q103: N/A | R103: 0 | S103: 1 | T103: 0 | U103: 0 | W103: SOCSO | Z103: MY | AA103: PERTUBUHAN KESELAMATAN SOCIAL(SOCSO) | AB103: 4 | AC103: 03-2166 2636 | AD103: 03-20709387 | AE103: N/A | AF103: 1 | AG103: 3000-01-01 | AH103: 2021-03-30 | AI103: 2021-03-16 | AJ103: 3000-01-01 | AK103: 0 | AL103: -33750 | AM103: 00:00:00 | AN103: 00:00:00 | AO103: 0.125 | AP103: 0 | AQ103: MY | AR103: N/A | AS103: 33750 | AT103: 33750 | AU103: MYR | AV103: 33750 | AW103: SOCSO-MYR000-500000 | AX103: 0 | AZ103: 0 | BB103: 0 | BC103: 0 | BD103: 0 | BE103: 0 | BF103: DDT | BG103: 0 | BH103: -33750 | BI103: DF | BJ103: SOCSO-MYR010-299000 | BK103: 0 | BM103: VCH-210303710 | BN103: 270000 | BO103: Received | BP103: 2021-03-17 | BQ103: 1 | BR103: 5031 | BS103: MYL5031OO009
A104: B05L892 | B104: PERTUBUHAN KESELAMATAN SOSIAL(SOCSO) | C104: MYR | D104: TOP GLOVE CORP BHD | E104: 1900-01-03 | F104: 00:00:00 | G104: MYR | H104: 2021-01-11 | I104: TOP GLOVE CORP BHD | J104: NOT APPLICABLE | K104: MY | L104: EQT | M104: NAMM | N104: 2020-12-24 | O104: 3510 | P104: 401769 | Q104: N/A | R104: 0 | S104: 1 | T104: 0 | U104: 0 | W104: SOCSO | Z104: MY | AA104: PERTUBUHAN KESELAMATAN SOCIAL(SOCSO) | AB104: 4 | AC104: 03-2166 2636 | AD104: 03-20709387 | AE104: N/A | AF104: 1 | AG104: 3000-01-01 | AH104: 2021-01-11 | AI104: 2020-12-24 | AJ104: 3000-01-01 | AK104: 0 | AL104: 00:00:00 | AM104: -102597 | AN104: 00:00:00 | AO104: 0.165 | AP104: 0 | AQ104: MY | AR104: N/A | AS104: 102597 | AT104: 102597 | AU104: MYR | AV104: 102597 | AW104: SOCSO-MYR000-500000 | AX104: 0 | AZ104: 0 | BB104: 0 | BC104: 0 | BD104: 0 | BE104: 0 | BF104: DDT | BG104: 0 | BH104: -102597 | BI104: DF | BJ104: SOCSO-MYR010-299000 | BK104: 0 | BM104: VCH-210100957 | BN104: 621800 | BO104: Received | BP104: 2020-12-28 | BQ104: 1 | BR104: 7113 | BS104: MYL7113OO003
A105: B00PSW2 | B105: PERTUBUHAN KESELAMATAN SOSIAL(SOCSO) | C105: MYR | D105: UCHI TECHNOLOGIES BHD | E105: 1900-01-03 | F105: 00:00:00 | G105: MYR | H105: 2021-01-26 | I105: UCHI TECHNOLOGIES BHD | J105: NOT APPLICABLE | K105: MY | L105: EQT | M105: NAMM | N105: 2020-12-30 | O105: 4520 | P105: 401769 | Q105: N/A | R105: 0 | S105: 1 | T105: 0 | U105: 0 | W105: SOCSO | Z105: MY | AA105: PERTUBUHAN KESELAMATAN SOCIAL(SOCSO) | AB105: 4 | AC105: 03-2166 2636 | AD105: 03-20709387 | AE105: N/A | AF105: 1 | AG105: 3000-01-01 | AH105: 2021-01-26 | AI105: 2020-12-30 | AJ105: 3000-01-01 | AK105: 0 | AL105: 00:00:00 | AM105: -99322.5 | AN105: 00:00:00 | AO105: 0.075 | AP105: 0 | AQ105: MY | AR105: N/A | AS105: 99322.5 | AT105: 99322.5 | AU105: MYR | AV105: 99322.5 | AW105: SOCSO-MYR000-500000 | AX105: 0 | AZ105: 0 | BB105: 0 | BC105: 0 | BD105: 0 | BE105: 0 | BF105: DDT | BG105: 0 | BH105: -99322.5 | BI105: DF | BJ105: SOCSO-MYR010-299000 | BK105: 0 | BM105: VCH-210103734 | BN105: 1324300 | BO105: Received | BP105: 2020-12-31 | BQ105: 1 | BR105: 7100 | BS105: MYL7100OO000
A106: BJ17CJ5 | B106: PERTUBUHAN KESELAMATAN SOSIAL(SOCSO) | C106: MYR | D106: UWC BHD | E106: 1900-01-03 | F106: 00:00:00 | G106: MYR | H106: 2021-10-08 | I106: UWC BHD | J106: NOT APPLICABLE | K106: MY | L106: EQT | M106: NAMM | N106: 2020-12-31 | O106: 2010 | P106: 401769 | Q106: N/A | R106: 0 | S106: 1 | T106: 0 | U106: 0 | W106: SOCSO | Z106: MY | AA106: PERTUBUHAN KESELAMATAN SOCIAL(SOCSO) | AB106: 4 | AC106: 03-2166 2636 | AD106: 03-20709387 | AE106: N/A | AF106: 1 | AG106: 3000-01-01 | AH106: 2021-10-08 | AI106: 2021-09-22 | AJ106: 3000-01-01 | AK106: 0 | AL106: -4342 | AM106: 00:00:00 | AN106: 00:00:00 | AO106: 0.0167 | AP106: 0 | AQ106: MY | AR106: N/A | AS106: 4342 | AT106: 4342 | AU106: MYR | AV106: 4342 | AW106: SOCSO-MYR000-500000 | AX106: 0 | AZ106: 0 | BB106: 0 | BC106: 0 | BD106: 0 | BE106: 0 | BF106: DDT | BG106: 0 | BH106: -4342 | BI106: DF | BJ106: SOCSO-MYR010-299000 | BK106: 0 | BM106: VCH-211000686 | BN106: 260000 | BO106: Received | BP106: 2021-09-23 | BQ106: 1 | BR106: 5292 | BS106: MYL5292OO007
A107: 6113429 | B107: PERTUBUHAN KESELAMATAN SOSIAL(SOCSO) | C107: MYR | D107: V.S. INDUSTRY BERHAD | E107: 1900-01-03 | F107: 00:00:00 | G107: MYR | H107: 2021-10-29 | I107: V.S. INDUSTRY BERHAD | J107: NOT APPLICABLE | K107: MY | L107: EQT | M107: NAMM | N107: 2021-01-11 | O107: 4520 | P107: 401769 | Q107: N/A | R107: 0 | S107: 1 | T107: 0 | U107: 0 | W107: SOCSO | Z107: MY | AA107: PERTUBUHAN KESELAMATAN SOCIAL(SOCSO) | AB107: 4 | AC107: 03-2166 2636 | AD107: 03-20709387 | AE107: N/A | AF107: 1 | AG107: 3000-01-01 | AH107: 2021-10-29 | AI107: 2021-10-14 | AJ107: 3000-01-01 | AK107: 0 | AL107: -9928.5 | AM107: 00:00:00 | AN107: 00:00:00 | AO107: 0.005 | AP107: 0 | AQ107: MY | AR107: N/A | AS107: 9928.5 | AT107: 9928.5 | AU107: MYR | AV107: 9928.5 | AW107: SOCSO-MYR000-500000 | AX107: 0 | AZ107: 0 | BB107: 0 | BC107: 0 | BD107: 0 | BE107: 0 | BF107: DDT | BG107: 0 | BH107: -9928.5 | BI107: DF | BJ107: SOCSO-MYR010-299000 | BK107: 0 | BM107: VCH-211002825 | BN107: 1985700 | BO107: Accrual | BP107: 2021-10-15 | BQ107: 1 | BR107: 6963 | BS107: MYL6963OO002
A108: 6113429 | B108: PERTUBUHAN KESELAMATAN SOSIAL(SOCSO) | C108: MYR | D108: V.S. INDUSTRY BERHAD | E108: 1900-01-03 | F108: 00:00:00 | G108: MYR | H108: 2021-04-30 | I108: V.S. INDUSTRY BERHAD | J108: NOT APPLICABLE | K108: MY | L108: EQT | M108: NAMM | N108: 2021-01-11 | O108: 4520 | P108: 401769 | Q108: N/A | R108: 0 | S108: 1 | T108: 0 | U108: 0 | W108: SOCSO | Z108: MY | AA108: PERTUBUHAN KESELAMATAN SOCIAL(SOCSO) | AB108: 4 | AC108: 03-2166 2636 | AD108: 03-20709387 | AE108: N/A | AF108: 1 | AG108: 3000-01-01 | AH108: 2021-04-30 | AI108: 2021-04-14 | AJ108: 3000-01-01 | AK108: 0 | AL108: -8738.4 | AM108: 00:00:00 | AN108: 00:00:00 | AO108: 0.012 | AP108: 0 | AQ108: MY | AR108: N/A | AS108: 8738.4 | AT108: 8738.4 | AU108: MYR | AV108: 8738.4 | AW108: SOCSO-MYR000-500000 | AX108: 0 | AZ108: 0 | BB108: 0 | BC108: 0 | BD108: 0 | BE108: 0 | BF108: DDT | BG108: 0 | BH108: -8738.4 | BI108: DF | BJ108: SOCSO-MYR010-299000 | BK108: 0 | BM108: VCH-210402772 | BN108: 728200 | BO108: Received | BP108: 2021-04-15 | BQ108: 1 | BR108: 6963 | BS108: MYL6963OO002
A109: 6113429 | B109: PERTUBUHAN KESELAMATAN SOSIAL(SOCSO) | C109: MYR | D109: V.S. INDUSTRY BERHAD | E109: 1900-01-03 | F109: 00:00:00 | G109: MYR | H109: 2021-07-30 | I109: V.S. INDUSTRY BERHAD | J109: NOT APPLICABLE | K109: MY | L109: EQT | M109: NAMM | N109: 2021-01-11 | O109: 4520 | P109: 401769 | Q109: N/A | R109: 0 | S109: 1 | T109: 0 | U109: 0 | W109: SOCSO | Z109: MY | AA109: PERTUBUHAN KESELAMATAN SOCIAL(SOCSO) | AB109: 4 | AC109: 03-2166 2636 | AD109: 03-20709387 | AE109: N/A | AF109: 1 | AG109: 3000-01-01 | AH109: 2021-07-30 | AI109: 2021-07-09 | AJ109: 3000-01-01 | AK109: 0 | AL109: -10851.2 | AM109: 00:00:00 | AN109: 00:00:00 | AO109: 0.008 | AP109: 0 | AQ109: MY | AR109: N/A | AS109: 10851.2 | AT109: 10851.2 | AU109: MYR | AV109: 10851.2 | AW109: SOCSO-MYR000-500000 | AX109: 0 | AZ109: 0 | BB109: 0 | BC109: 0 | BD109: 0 | BE109: 0 | BF109: DDT | BG109: 0 | BH109: -10851.2 | BI109: DF | BJ109: SOCSO-MYR010-299000 | BK109: 0 | BM109: VCH-210702837 | BN109: 1356400 | BO109: Received | BP109: 2021-07-12 | BQ109: 1 | BR109: 6963 | BS109: MYL6963OO002
A110: 6113429 | B110: PERTUBUHAN KESELAMATAN SOSIAL(SOCSO) | C110: MYR | D110: V.S. INDUSTRY BERHAD | E110: 1900-01-03 | F110: 00:00:00 | G110: MYR | H110: 2021-02-05 | I110: V.S. INDUSTRY BERHAD | J110: NOT APPLICABLE | K110: MY | L110: EQT | M110: NAMM | N110: 2021-01-11 | O110: 4520 | P110: 401769 | Q110: N/A | R110: 0 | S110: 1 | T110: 0 | U110: 0 | W110: SOCSO | Z110: MY | AA110: PERTUBUHAN KESELAMATAN SOCIAL(SOCSO) | AB110: 4 | AC110: 03-2166 2636 | AD110: 03-20709387 | AE110: N/A | AF110: 1 | AG110: 3000-01-01 | AH110: 2021-02-05 | AI110: 2021-01-21 | AJ110: 3000-01-01 | AK110: 0 | AL110: -8800 | AM110: 00:00:00 | AN110: 00:00:00 | AO110: 0.008 | AP110: 0 | AQ110: MY | AR110: N/A | AS110: 8800 | AT110: 8800 | AU110: MYR | AV110: 8800 | AW110: SOCSO-MYR000-500000 | AX110: 0 | AZ110: 0 | BB110: 0 | BC110: 0 | BD110: 0 | BE110: 0 | BF110: DDT | BG110: 0 | BH110: -8800 | BI110: DF | BJ110: SOCSO-MYR010-299000 | BK110: 0 | BM110: VCH-210200533 | BN110: 1100000 | BO110: Received | BP110: 2021-01-22 | BQ110: 1 | BR110: 6963 | BS110: MYL6963OO002
A111: 6113429 | B111: PERTUBUHAN KESELAMATAN SOSIAL(SOCSO) | C111: MYR | D111: V.S. INDUSTRY BERHAD | E111: 1900-01-03 | F111: 00:00:00 | G111: MYR | H111: 2021-03-05 | I111: V.S. INDUSTRY BERHAD | J111: NOT APPLICABLE | K111: MY | L111: EQT | M111: NAMM | N111: 2021-01-11 | O111: 4520 | P111: 401769 | Q111: N/A | R111: 0 | S111: 1 | T111: 0 | U111: 0 | W111: SOCSO | Z111: MY | AA111: PERTUBUHAN KESELAMATAN SOCIAL(SOCSO) | AB111: 4 | AC111: 03-2166 2636 | AD111: 03-20709387 | AE111: N/A | AF111: 1 | AG111: 3000-01-01 | AH111: 2021-03-05 | AI111: 2021-02-17 | AJ111: 3000-01-01 | AK111: 0 | AL111: -15600 | AM111: 00:00:00 | AN111: 00:00:00 | AO111: 0.012 | AP111: 0 | AQ111: MY | AR111: N/A | AS111: 15600 | AT111: 15600 | AU111: MYR | AV111: 15600 | AW111: SOCSO-MYR000-500000 | AX111: 0 | AZ111: 0 | BB111: 0 | BC111: 0 | BD111: 0 | BE111: 0 | BF111: DDT | BG111: 0 | BH111: -15600 | BI111: DF | BJ111: SOCSO-MYR010-299000 | BK111: 0 | BM111: VCH-210300740 | BN111: 1300000 | BO111: Received | BP111: 2021-02-18 | BQ111: 1 | BR111: 6963 | BS111: MYL6963OO002
A112: B0KLDR0 | B112: PERTUBUHAN KESELAMATAN SOSIAL(SOCSO) | C112: MYR | D112: VITROX CORP BHD | E112: 1900-01-03 | F112: 00:00:00 | G112: MYR | H112: 2021-01-21 | I112: VITROX CORP BHD | J112: NOT APPLICABLE | K112: MY | L112: EQT | M112: NAMM | N112: 2020-12-30 | O112: 4530 | P112: 401769 | Q112: N/A | R112: 0 | S112: 1 | T112: 0 | U112: 0 | W112: SOCSO | Z112: MY | AA112: PERTUBUHAN KESELAMATAN SOCIAL(SOCSO) | AB112: 4 | AC112: 03-2166 2636 | AD112: 03-20709387 | AE112: N/A | AF112: 1 | AG112: 3000-01-01 | AH112: 2021-01-21 | AI112: 2020-12-30 | AJ112: 3000-01-01 | AK112: 0 | AL112: 00:00:00 | AM112: -2892.75 | AN112: 00:00:00 | AO112: 0.0175 | AP112: 0 | AQ112: MY | AR112: N/A | AS112: 2892.75 | AT112: 2892.75 | AU112: MYR | AV112: 2892.75 | AW112: SOCSO-MYR000-500000 | AX112: 0 | AZ112: 0 | BB112: 0 | BC112: 0 | BD112: 0 | BE112: 0 | BF112: DDT | BG112: 0 | BH112: -2892.75 | BI112: DF | BJ112: SOCSO-MYR010-299000 | BK112: 0 | BM112: VCH-210103238 | BN112: 165300 | BO112: Received | BP112: 2020-12-31 | BQ112: 1 | BR112: 97 | BS112: MYQ0097OO004
A113: B0KLDR0 | B113: PERTUBUHAN KESELAMATAN SOSIAL(SOCSO) | C113: MYR | D113: VITROX CORP BHD | E113: 1900-01-03 | F113: 00:00:00 | G113: MYR | H113: 2021-07-16 | I113: VITROX CORP BHD | J113: NOT APPLICABLE | K113: MY | L113: EQT | M113: NAMM | N113: 2020-12-31 | O113: 4530 | P113: 401769 | Q113: N/A | R113: 0 | S113: 1 | T113: 0 | U113: 0 | W113: SOCSO | Z113: MY | AA113: PERTUBUHAN KESELAMATAN SOCIAL(SOCSO) | AB113: 4 | AC113: 03-2166 2636 | AD113: 03-20709387 | AE113: N/A | AF113: 1 | AG113: 3000-01-01 | AH113: 2021-07-16 | AI113: 2021-06-29 | AJ113: 3000-01-01 | AK113: 0 | AL113: -8741.35 | AM113: 00:00:00 | AN113: 00:00:00 | AO113: 0.0395 | AP113: 0 | AQ113: MY | AR113: N/A | AS113: 8741.35 | AT113: 8741.35 | AU113: MYR | AV113: 8741.35 | AW113: SOCSO-MYR000-500000 | AX113: 0 | AZ113: 0 | BB113: 0 | BC113: 0 | BD113: 0 | BE113: 0 | BF113: DDT | BG113: 0 | BH113: -8741.35 | BI113: DF | BJ113: SOCSO-MYR010-299000 | BK113: 0 | BM113: VCH-210701643 | BN113: 221300 | BO113: Received | BP113: 2021-06-30 | BQ113: 1 | BR113: 97 | BS113: MYQ0097OO004
A114: BDFM1K8 | B114: PERTUBUHAN KESELAMATAN SOSIAL(SOCSO) | C114: MYR | D114: WESTPORTS HOLDINGS BHD | E114: 1900-01-03 | F114: 00:00:00 | G114: MYR | H114: 2021-08-26 | I114: WESTPORTS HOLDINGS BHD | J114: NOT APPLICABLE | K114: MY | L114: EQT | M114: NAMM | N114: 2020-12-31 | O114: 2030 | P114: 401769 | Q114: N/A | R114: 0 | S114: 1 | T114: 0 | U114: 0 | W114: SOCSO | Z114: MY | AA114: PERTUBUHAN KESELAMATAN SOCIAL(SOCSO) | AB114: 4 | AC114: 03-2166 2636 | AD114: 03-20709387 | AE114: N/A | AF114: 1 | AG114: 3000-01-01 | AH114: 2021-08-26 | AI114: 2021-08-16 | AJ114: 3000-01-01 | AK114: 0 | AL114: -52411 | AM114: 00:00:00 | AN114: 00:00:00 | AO114: 0.085 | AP114: 0 | AQ114: MY | AR114: N/A | AS114: 52411 | AT114: 52411 | AU114: MYR | AV114: 52411 | AW114: SOCSO-MYR000-500000 | AX114: 0 | AZ114: 0 | BB114: 0 | BC114: 0 | BD114: 0 | BE114: 0 | BF114: DDT | BG114: 0 | BH114: -52411 | BI114: DF | BJ114: SOCSO-MYR010-299000 | BK114: 0 | BM114: VCH-210802569 | BN114: 616600 | BO114: Received | BP114: 2021-08-17 | BQ114: 1 | BR114: 5246 | BS114: MYL5246OO003
A115: BDFM1K8 | B115: PERTUBUHAN KESELAMATAN SOSIAL(SOCSO) | C115: MYR | D115: WESTPORTS HOLDINGS BHD | E115: 1900-01-03 | F115: 00:00:00 | G115: MYR | H115: 2021-03-01 | I115: WESTPORTS HOLDINGS BHD | J115: NOT APPLICABLE | K115: MY | L115: EQT | M115: NAMM | N115: 2020-12-31 | O115: 2030 | P115: 401769 | Q115: N/A | R115: 0 | S115: 1 | T115: 0 | U115: 0 | W115: SOCSO | Z115: MY | AA115: PERTUBUHAN KESELAMATAN SOCIAL(SOCSO) | AB115: 4 | AC115: 03-2166 2636 | AD115: 03-20709387 | AE115: N/A | AF115: 1 | AG115: 3000-01-01 | AH115: 2021-03-01 | AI115: 2021-02-17 | AJ115: 3000-01-01 | AK115: 0 | AL115: -53215.75 | AM115: 00:00:00 | AN115: 00:00:00 | AO115: 0.0647 | AP115: 0 | AQ115: MY | AR115: N/A | AS115: 53215.75 | AT115: 53215.75 | AU115: MYR | AV115: 53215.75 | AW115: SOCSO-MYR000-500000 | AX115: 0 | AZ115: 0 | BB115: 0 | BC115: 0 | BD115: 0 | BE115: 0 | BF115: DDT | BG115: 0 | BH115: -53215.75 | BI115: DF | BJ115: SOCSO-MYR010-299000 | BK115: 0 | BM115: VCH-210300108 | BN115: 822500 | BO115: Received | BP115: 2021-02-18 | BQ115: 1 | BR115: 5246 | BS115: MYL5246OO003
A116: 6986717 | B116: PERTUBUHAN KESELAMATAN SOSIAL(SOCSO) | C116: MYR | D116: YINSON HOLDINGS BHD | E116: 1900-01-03 | F116: 00:00:00 | G116: MYR | H116: 2021-08-30 | I116: YINSON HOLDINGS BHD | J116: NOT APPLICABLE | K116: MY | L116: EQT | M116: NAMM | N116: 2020-12-31 | O116: 1010 | P116: 401769 | Q116: N/A | R116: 0 | S116: 1 | T116: 0 | U116: 0 | W116: SOCSO | Z116: MY | AA116: PERTUBUHAN KESELAMATAN SOCIAL(SOCSO) | AB116: 4 | AC116: 03-2166 2636 | AD116: 03-20709387 | AE116: N/A | AF116: 1 | AG116: 3000-01-01 | AH116: 2021-08-30 | AI116: 2021-08-04 | AJ116: 3000-01-01 | AK116: 0 | AL116: -19600 | AM116: 00:00:00 | AN116: 00:00:00 | AO116: 0.02 | AP116: 0 | AQ116: MY | AR116: N/A | AS116: 19600 | AT116: 19600 | AU116: MYR | AV116: 19600 | AW116: SOCSO-MYR000-500000 | AX116: 0 | AZ116: 0 | BB116: 0 | BC116: 0 | BD116: 0 | BE116: 0 | BF116: DDT | BG116: 0 | BH116: -19600 | BI116: DF | BJ116: SOCSO-MYR010-299000 | BK116: 0 | BM116: VCH-210802905 | BN116: 980000 | BO116: Received | BP116: 2021-08-05 | BQ116: 1 | BR116: 7293 | BS116: MYL7293OO003

Sheet InTrn (hidden)
A1: qFundCode | B1: qProductType | C1: qTrnCode | D1: TradeDate | E1: AccDate | F1: PayDate | G1: MaturityDate | H1: TranIncome | I1: costfc | J1: costsc | K1: SCNetProceed | L1: FCNetProceed | M1: TranGains
A2: SOCSO | B2: EQT | C2: SX | D2: 2021-01-01 | E2: 2021-01-01 | F2: 2021-01-01 | G2: 3000-01-01 | H2: 0 | I2: -252280.45 | J2: -252280.45 | K2: 0 | L2: 0 | M2: 252280.45
A3: SOCSO | B3: EQT | C3: SX | D3: 2021-01-01 | E3: 2021-01-01 | F3: 2021-01-01 | G3: 3000-01-01 | H3: 0 | I3: -1205600.61 | J3: -1205600.61 | K3: 0 | L3: 0 | M3: 1205600.61
A4: SOCSO | B4: EQT | C4: SX | D4: 2021-01-01 | E4: 2021-01-01 | F4: 2021-01-01 | G4: 3000-01-01 | H4: 0 | I4: -1290545.64 | J4: -1290545.64 | K4: 0 | L4: 0 | M4: 1290545.64
A5: SOCSO | B5: EQT | C5: SX | D5: 2021-01-01 | E5: 2021-01-01 | F5: 2021-01-01 | G5: 3000-01-01 | H5: 0 | I5: -3224891 | J5: -3224891 | K5: 0 | L5: 0 | M5: 3224891
A6: SOCSO | B6: EQT | C6: SX | D6: 2021-01-01 | E6: 2021-01-01 | F6: 2021-01-01 | G6: 3000-01-01 | H6: 0 | I6: -930569.67 | J6: -930569.67 | K6: 0 | L6: 0 | M6: 930569.67
A7: SOCSO | B7: EQT | C7: SX | D7: 2021-01-01 | E7: 2021-01-01 | F7: 2021-01-01 | G7: 3000-01-01 | H7: 0 | I7: -643156.65 | J7: -643156.65 | K7: 0 | L7: 0 | M7: 643156.65
A8: SOCSO | B8: EQT | C8: SX | D8: 2021-01-01 | E8: 2021-01-01 | F8: 2021-01-01 | G8: 3000-01-01 | H8: 0 | I8: -128090.02 | J8: -128090.02 | K8: 0 | L8: 0 | M8: 128090.02
A9: SOCSO | B9: CSH | C9: RM | D9: 2021-01-04 | E9: 2021-01-04 | F9: 2021-01-04 | G9: 2021-01-04 | H9: -1601.64 | I9: -7900000 | J9: -7900000 | K9: 7901601.64 | L9: 7901601.64 | M9: 0
A10: SOCSO | B10: CSH | C10: RP | D10: 2021-01-04 | E10: 2021-01-04 | F10: 2021-01-04 | G10: 2021-01-05 | H10: 0 | I10: 7800000 | J10: 7800000 | K10: -7800000 | L10: -7800000 | M10: 0
A11: SOCSO | B11: EQT | C11: SI | D11: 2021-01-04 | E11: 2021-01-13 | F11: 2021-02-03 | G11: 3000-01-01 | H11: 0 | I11: 0 | J11: 0 | K11: 5200 | L11: 5200 | M11: -5200
A12: SOCSO | B12: EQT | C12: SI | D12: 2021-01-04 | E12: 2021-01-13 | F12: 2021-01-13 | G12: 3000-01-01 | H12: 0 | I12: 0 | J12: 0 | K12: 32734 | L12: 32734 | M12: -32734
A13: SOCSO | B13: EQT | C13: SP | D13: 2021-01-04 | E13: 2021-01-04 | F13: 2021-01-06 | G13: 3000-01-01 | H13: 0 | I13: 80908.76 | J13: 80908.76 | K13: -80908.76 | L13: -80908.76 | M13: 0
A14: SOCSO | B14: EQT | C14: SP | D14: 2021-01-04 | E14: 2021-01-04 | F14: 2021-01-06 | G14: 3000-01-01 | H14: 0 | I14: 39731.89 | J14: 39731.89 | K14: -39731.89 | L14: -39731.89 | M14: 0
A15: SOCSO | B15: EQT | C15: SS | D15: 2021-01-04 | E15: 2021-01-04 | F15: 2021-01-06 | G15: 3000-01-01 | H15: 0 | I15: -309121.81 | J15: -309121.81 | K15: 498599.47 | L15: 498599.47 | M15: -189477.66
A16: SOCSO | B16: EQT | C16: SS | D16: 2021-01-04 | E16: 2021-01-04 | F16: 2021-01-06 | G16: 3000-01-01 | H16: 0 | I16: -42454.52 | J16: -42454.52 | K16: 118096.37 | L16: 118096.37 | M16: -75641.85
A17: SOCSO | B17: CSH | C17: RM | D17: 2021-01-05 | E17: 2021-01-05 | F17: 2021-01-05 | G17: 2021-01-05 | H17: -373.97 | I17: -7800000 | J17: -7800000 | K17: 7800373.97 | L17: 7800373.97 | M17: 0
A18: SOCSO | B18: CSH | C18: RP | D18: 2021-01-05 | E18: 2021-01-05 | F18: 2021-01-05 | G18: 2021-01-06 | H18: 0 | I18: 7800373.97 | J18: 7800373.97 | K18: -7800373.97 | L18: -7800373.97 | M18: 0
A19: SOCSO | B19: EQT | C19: SP | D19: 2021-01-05 | E19: 2021-01-05 | F19: 2021-01-07 | G19: 3000-01-01 | H19: 0 | I19: 20281.97 | J19: 20281.97 | K19: -20281.97 | L19: -20281.97 | M19: 0
A20: SOCSO | B20: EQT | C20: SP | D20: 2021-01-05 | E20: 2021-01-05 | F20: 2021-01-07 | G20: 3000-01-01 | H20: 0 | I20: 22042 | J20: 22042 | K20: -22042 | L20: -22042 | M20: 0
A21: SOCSO | B21: EQT | C21: SS | D21: 2021-01-05 | E21: 2021-01-05 | F21: 2021-01-07 | G21: 3000-01-01 | H21: 0 | I21: -143546.28 | J21: -143546.28 | K21: 156101.51 | L21: 156101.51 | M21: -12555.23
A22: SOCSO | B22: EQT | C22: SS | D22: 2021-01-05 | E22: 2021-01-05 | F22: 2021-01-07 | G22: 3000-01-01 | H22: 0 | I22: -74295.41 | J22: -74295.41 | K22: 205352.34 | L22: 205352.34 | M22: -131056.93
A23: SOCSO | B23: CSH | C23: RM | D23: 2021-01-06 | E23: 2021-01-06 | F23: 2021-01-06 | G23: 2021-01-06 | H23: -373.99 | I23: -7800373.97 | J23: -7800373.97 | K23: 7800747.96 | L23: 7800747.96 | M23: 0
A24: SOCSO | B24: CSH | C24: RP | D24: 2021-01-06 | E24: 2021-01-06 | F24: 2021-01-06 | G24: 2021-01-07 | H24: 0 | I24: 8300000 | J24: 8300000 | K24: -8300000 | L24: -8300000 | M24: 0
A25: SOCSO | B25: EQT | C25: SP | D25: 2021-01-06 | E25: 2021-01-06 | F25: 2021-01-08 | G25: 3000-01-01 | H25: 0 | I25: 15917.79 | J25: 15917.79 | K25: -15917.79 | L25: -15917.79 | M25: 0
A26: SOCSO | B26: EQT | C26: SP | D26: 2021-01-06 | E26: 2021-01-06 | F26: 2021-01-08 | G26: 3000-01-01 | H26: 0 | I26: 82190 | J26: 82190 | K26: -82190 | L26: -82190 | M26: 0
A27: SOCSO | B27: EQT | C27: SS | D27: 2021-01-06 | E27: 2021-01-06 | F27: 2021-01-08 | G27: 3000-01-01 | H27: 0 | I27: -213033.54 | J27: -213033.54 | K27: 274456.67 | L27: 274456.67 | M27: -61423.13
A28: SOCSO | B28: EQT | C28: SS | D28: 2021-01-06 | E28: 2021-01-06 | F28: 2021-01-08 | G28: 3000-01-01 | H28: 0 | I28: -31713.71 | J28: -31713.71 | K28: 34406.81 | L28: 34406.81 | M28: -2693.1
A29: SOCSO | B29: EQT | C29: SS | D29: 2021-01-06 | E29: 2021-01-06 | F29: 2021-01-08 | G29: 3000-01-01 | H29: 0 | I29: -81371.17 | J29: -81371.17 | K29: 222292.67 | L29: 222292.67 | M29: -140921.5
A30: SOCSO | B30: CSH | C30: RM | D30: 2021-01-07 | E30: 2021-01-07 | F30: 2021-01-07 | G30: 2021-01-07 | H30: -397.95 | I30: -8300000 | J30: -8300000 | K30: 8300397.95 | L30: 8300397.95 | M30: 0
A31: SOCSO | B31: CSH | C31: RP | D31: 2021-01-07 | E31: 2021-01-07 | F31: 2021-01-07 | G31: 2021-01-08 | H31: 0 | I31: 8600000 | J31: 8600000 | K31: -8600000 | L31: -8600000 | M31: 0
A32: SOCSO | B32: EQT | C32: SP | D32: 2021-01-07 | E32: 2021-01-07 | F32: 2021-01-11 | G32: 3000-01-01 | H32: 0 | I32: 269908.79 | J32: 269908.79 | K32: -269908.79 | L32: -269908.79 | M32: 0
A33: SOCSO | B33: EQT | C33: SP | D33: 2021-01-07 | E33: 2021-01-07 | F33: 2021-01-11 | G33: 3000-01-01 | H33: 0 | I33: 323570.02 | J33: 323570.02 | K33: -323570.02 | L33: -323570.02 | M33: 0
A34: SOCSO | B34: EQT | C34: SP | D34: 2021-01-07 | E34: 2021-01-07 | F34: 2021-01-11 | G34: 3000-01-01 | H34: 0 | I34: 25362.57 | J34: 25362.57 | K34: -25362.57 | L34: -25362.57 | M34: 0
A35: SOCSO | B35: EQT | C35: SP | D35: 2021-01-07 | E35: 2021-01-07 | F35: 2021-01-11 | G35: 3000-01-01 | H35: 0 | I35: 52200.15 | J35: 52200.15 | K35: -52200.15 | L35: -52200.15 | M35: 0
A36: SOCSO | B36: CSH | C36: CN | D36: 2021-01-08 | E36: 2021-01-08 | F36: 2021-01-08 | G36: 3000-01-01 | H36: 225231.42 | I36: 225231.42 | J36: 225231.42 | K36: -225231.42 | L36: -225231.42 | M36: 0
A37: SOCSO | B37: CSH | C37: RM | D37: 2021-01-08 | E37: 2021-01-08 | F37: 2021-01-08 | G37: 2021-01-08 | H37: -412.33 | I37: -8600000 | J37: -8600000 | K37: 8600412.33 | L37: 8600412.33 | M37: 0
A38: SOCSO | B38: CSH | C38: RP | D38: 2021-01-08 | E38: 2021-01-08 | F38: 2021-01-08 | G38: 2021-01-11 | H38: 0 | I38: 8900000 | J38: 8900000 | K38: -8900000 | L38: -8900000 | M38: 0
A39: SOCSO | B39: EQT | C39: SP | D39: 2021-01-08 | E39: 2021-01-08 | F39: 2021-01-12 | G39: 3000-01-01 | H39: 0 | I39: 55953.05 | J39: 55953.05 | K39: -55953.05 | L39: -55953.05 | M39: 0
A40: SOCSO | B40: EQT | C40: SP | D40: 2021-01-08 | E40: 2021-01-08 | F40: 2021-01-12 | G40: 3000-01-01 | H40: 0 | I40: 20559.45 | J40: 20559.45 | K40: -20559.45 | L40: -20559.45 | M40: 0
A41: SOCSO | B41: EQT | C41: SS | D41: 2021-01-08 | E41: 2021-01-08 | F41: 2021-01-12 | G41: 3000-01-01 | H41: 0 | I41: -99332.35 | J41: -99332.35 | K41: 124170.02 | L41: 124170.02 | M41: -24837.67
A42: SOCSO | B42: CSH | C42: RM | D42: 2021-01-11 | E42: 2021-01-11 | F42: 2021-01-11 | G42: 2021-01-11 | H42: -1280.14 | I42: -8900000 | J42: -8900000 | K42: 8901280.14 | L42: 8901280.14 | M42: 0
A43: SOCSO | B43: CSH | C43: RP | D43: 2021-01-11 | E43: 2021-01-11 | F43: 2021-01-11 | G43: 2021-01-12 | H43: 0 | I43: 8200000 | J43: 8200000 | K43: -8200000 | L43: -8200000 | M43: 0
A44: SOCSO | B44: EQT | C44: SP | D44: 2021-01-11 | E44: 2021-01-11 | F44: 2021-01-13 | G44: 3000-01-01 | H44: 0 | I44: 1412444.11 | J44: 1412444.11 | K44: -1412444.11 | L44: -1412444.11 | M44: 0
A45: SOCSO | B45: EQT | C45: SP | D45: 2021-01-11 | E45: 2021-01-11 | F45: 2021-01-13 | G45: 3000-01-01 | H45: 0 | I45: 353746.51 | J45: 353746.51 | K45: -353746.51 | L45: -353746.51 | M45: 0
A46: SOCSO | B46: EQT | C46: SP | D46: 2021-01-11 | E46: 2021-01-11 | F46: 2021-01-13 | G46: 3000-01-01 | H46: 0 | I46: 51262.85 | J46: 51262.85 | K46: -51262.85 | L46: -51262.85 | M46: 0
A47: SOCSO | B47: EQT | C47: SP | D47: 2021-01-11 | E47: 2021-01-11 | F47: 2021-01-13 | G47: 3000-01-01 | H47: 0 | I47: 909360.08 | J47: 909360.08 | K47: -909360.08 | L47: -909360.08 | M47: 0
A48: SOCSO | B48: CSH | C48: RM | D48: 2021-01-12 | E48: 2021-01-12 | F48: 2021-01-12 | G48: 2021-01-12 | H48: -393.15 | I48: -8200000 | J48: -8200000 | K48: 8200393.15 | L48: 8200393.15 | M48: 0
A49: SOCSO | B49: CSH | C49: RP | D49: 2021-01-12 | E49: 2021-01-12 | F49: 2021-01-12 | G49: 2021-01-13 | H49: 0 | I49: 8400000 | J49: 8400000 | K49: -8400000 | L49: -8400000 | M49: 0
A50: SOCSO | B50: EQT | C50: SS | D50: 2021-01-12 | E50: 2021-01-12 | F50: 2021-01-14 | G50: 3000-01-01 | H50: 0 | I50: -682859.41 | J50: -682859.41 | K50: 694903.76 | L50: 694903.76 | M50: -12044.35
A51: SOCSO | B51: EQT | C51: SS | D51: 2021-01-12 | E51: 2021-01-12 | F51: 2021-01-14 | G51: 3000-01-01 | H51: 0 | I51: -418886.68 | J51: -418886.68 | K51: 559041.03 | L51: 559041.03 | M51: -140154.35
A52: SOCSO | B52: EQT | C52: SS | D52: 2021-01-12 | E52: 2021-01-12 | F52: 2021-01-14 | G52: 3000-01-01 | H52: 0 | I52: -540963.16 | J52: -540963.16 | K52: 852213.89 | L52: 852213.89 | M52: -311250.73
A53: SOCSO | B53: EQT | C53: SS | D53: 2021-01-12 | E53: 2021-01-12 | F53: 2021-01-14 | G53: 3000-01-01 | H53: 0 | I53: -624731.79 | J53: -624731.79 | K53: 787248.9 | L53: 787248.9 | M53: -162517.11
A54: SOCSO | B54: CSH | C54: RM | D54: 2021-01-13 | E54: 2021-01-13 | F54: 2021-01-13 | G54: 2021-01-13 | H54: -402.74 | I54: -8400000 | J54: -8400000 | K54: 8400402.74 | L54: 8400402.74 | M54: 0
A55: SOCSO | B55: CSH | C55: RP | D55: 2021-01-13 | E55: 2021-01-13 | F55: 2021-01-13 | G55: 2021-01-14 | H55: 0 | I55: 5600000 | J55: 5600000 | K55: -5600000 | L55: -5600000 | M55: 0
A56: SOCSO | B56: EQT | C56: SB | D56: 2021-01-13 | E56: 2021-01-13 | F56: 2021-01-15 | G56: 3000-01-01 | H56: 0 | I56: 0 | J56: 0 | K56: 0 | L56: 0 | M56: 0
A57: SOCSO | B57: EQT | C57: SB | D57: 2021-01-13 | E57: 2021-01-20 | F57: 2021-01-20 | G57: 3000-01-01 | H57: 0 | I57: 0 | J57: 0 | K57: 0 | L57: 0 | M57: 0
A58: SOCSO | B58: EQT | C58: SP | D58: 2021-01-13 | E58: 2021-01-13 | F58: 2021-01-15 | G58: 3000-01-01 | H58: 0 | I58: 669141.92 | J58: 669141.92 | K58: -669141.92 | L58: -669141.92 | M58: 0
A59: SOCSO | B59: EQT | C59: SS | D59: 2021-01-13 | E59: 2021-01-13 | F59: 2021-01-15 | G59: 3000-01-01 | H59: 0 | I59: -31758.28 | J59: -31758.28 | K59: 34501.78 | L59: 34501.78 | M59: -2743.5
A60: SOCSO | B60: EQT | C60: SS | D60: 2021-01-13 | E60: 2021-01-13 | F60: 2021-01-15 | G60: 3000-01-01 | H60: 0 | I60: -585621.11 | J60: -585621.11 | K60: 634463.21 | L60: 634463.21 | M60: -48842.1
A61: SOCSO | B61: EQT | C61: SS | D61: 2021-01-13 | E61: 2021-01-13 | F61: 2021-01-15 | G61: 3000-01-01 | H61: 0 | I61: -67219.66 | J61: -67219.66 | K61: 188594.07 | L61: 188594.07 | M61: -121374.41
A62: SOCSO | B62: EQT | C62: SS | D62: 2021-01-13 | E62: 2021-01-13 | F62: 2021-01-15 | G62: 3000-01-01 | H62: 0 | I62: -191582.98 | J62: -191582.98 | K62: 335563.74 | L62: 335563.74 | M62: -143980.76
A63: SOCSO | B63: CSH | C63: RM | D63: 2021-01-14 | E63: 2021-01-14 | F63: 2021-01-14 | G63: 2021-01-14 | H63: -268.49 | I63: -5600000 | J63: -5600000 | K63: 5600268.49 | L63: 5600268.49 | M63: 0
A64: SOCSO | B64: CSH | C64: RP | D64: 2021-01-14 | E64: 2021-01-14 | F64: 2021-01-14 | G64: 2021-01-15 | H64: 0 | I64: 8600000 | J64: 8600000 | K64: -8600000 | L64: -8600000 | M64: 0
A65: SOCSO | B65: EQT | C65: SP | D65: 2021-01-14 | E65: 2021-01-14 | F65: 2021-01-18 | G65: 3000-01-01 | H65: 0 | I65: 766044.72 | J65: 766044.72 | K65: -766044.72 | L65: -766044.72 | M65: 0
A66: SOCSO | B66: EQT | C66: SP | D66: 2021-01-14 | E66: 2021-01-14 | F66: 2021-01-18 | G66: 3000-01-01 | H66: 0 | I66: 756526.76 | J66: 756526.76 | K66: -756526.76 | L66: -756526.76 | M66: 0
A67: SOCSO | B67: EQT | C67: SP | D67: 2021-01-14 | E67: 2021-01-14 | F67: 2021-01-18 | G67: 3000-01-01 | H67: 0 | I67: 85572.9 | J67: 85572.9 | K67: -85572.9 | L67: -85572.9 | M67: 0
A68: SOCSO | B68: EQT | C68: SP | D68: 2021-01-14 | E68: 2021-01-14 | F68: 2021-01-18 | G68: 3000-01-01 | H68: 0 | I68: 524911.83 | J68: 524911.83 | K68: -524911.83 | L68: -524911.83 | M68: 0
A69: SOCSO | B69: EQT | C69: SS | D69: 2021-01-14 | E69: 2021-01-14 | F69: 2021-01-18 | G69: 3000-01-01 | H69: 0 | I69: -15319.69 | J69: -15319.69 | K69: 22807.73 | L69: 22807.73 | M69: -7488.04
A70: SOCSO | B70: EQT | C70: SS | D70: 2021-01-14 | E70: 2021-01-14 | F70: 2021-01-18 | G70: 3000-01-01 | H70: 0 | I70: -390414.08 | J70: -390414.08 | K70: 431578.4 | L70: 431578.4 | M70: -41164.32
A71: SOCSO | B71: CSH | C71: RM | D71: 2021-01-15 | E71: 2021-01-15 | F71: 2021-01-15 | G71: 2021-01-15 | H71: -412.33 | I71: -8600000 | J71: -8600000 | K71: 8600412.33 | L71: 8600412.33 | M71: 0
A72: SOCSO | B72: CSH | C72: RP | D72: 2021-01-15 | E72: 2021-01-15 | F72: 2021-01-15 | G72: 2021-01-18 | H72: 0 | I72: 9100000 | J72: 9100000 | K72: -9100000 | L72: -9100000 | M72: 0
A73: SOCSO | B73: EQT | C73: SI | D73: 2021-01-15 | E73: 2021-01-15 | F73: 2021-02-05 | G73: 3000-01-01 | H73: 0 | I73: 0 | J73: 0 | K73: 16375 | L73: 16375 | M73: -16375
A74: SOCSO | B74: EQT | C74: SP | D74: 2021-01-15 | E74: 2021-01-15 | F74: 2021-01-19 | G74: 3000-01-01 | H74: 0 | I74: 628418.09 | J74: 628418.09 | K74: -628418.09 | L74: -628418.09 | M74: 0
A75: SOCSO | B75: EQT | C75: SP | D75: 2021-01-15 | E75: 2021-01-15 | F75: 2021-01-19 | G75: 3000-01-01 | H75: 0 | I75: 784498.43 | J75: 784498.43 | K75: -784498.43 | L75: -784498.43 | M75: 0
A76: SOCSO | B76: EQT | C76: SP | D76: 2021-01-15 | E76: 2021-01-15 | F76: 2021-01-19 | G76: 3000-01-01 | H76: 0 | I76: 384093.8 | J76: 384093.8 | K76: -384093.8 | L76: -384093.8 | M76: 0
A77: SOCSO | B77: EQT | C77: SS | D77: 2021-01-15 | E77: 2021-01-15 | F77: 2021-01-19 | G77: 3000-01-01 | H77: 0 | I77: -122704.79 | J77: -122704.79 | K77: 182779.52 | L77: 182779.52 | M77: -60074.73
A78: SOCSO | B78: EQT | C78: SS | D78: 2021-01-15 | E78: 2021-01-15 | F78: 2021-01-19 | G78: 3000-01-01 | H78: 0 | I78: -315180.88 | J78: -315180.88 | K78: 353170.64 | L78: 353170.64 | M78: -37989.76
A79: SOCSO | B79: EQT | C79: SS | D79: 2021-01-15 | E79: 2021-01-15 | F79: 2021-01-19 | G79: 3000-01-01 | H79: 0 | I79: -173299.8 | J79: -173299.8 | K79: 198815.74 | L79: 198815.74 | M79: -25515.94
A80: SOCSO | B80: EQT | C80: SS | D80: 2021-01-15 | E80: 2021-01-15 | F80: 2021-01-19 | G80: 3000-01-01 | H80: 0 | I80: -52028.44 | J80: -52028.44 | K80: 90787.39 | L80: 90787.39 | M80: -38758.95
A81: SOCSO | B81: CSH | C81: RM | D81: 2021-01-18 | E81: 2021-01-18 | F81: 2021-01-18 | G81: 2021-01-18 | H81: -1308.9 | I81: -9100000 | J81: -9100000 | K81: 9101308.9 | L81: 9101308.9 | M81: 0
A82: SOCSO | B82: CSH | C82: RP | D82: 2021-01-18 | E82: 2021-01-18 | F82: 2021-01-18 | G82: 2021-01-19 | H82: 0 | I82: 7600000 | J82: 7600000 | K82: -7600000 | L82: -7600000 | M82: 0
A83: SOCSO | B83: EQT | C83: SP | D83: 2021-01-18 | E83: 2021-01-18 | F83: 2021-01-20 | G83: 3000-01-01 | H83: 0 | I83: 79032.19 | J83: 79032.19 | K83: -79032.19 | L83: -79032.19 | M83: 0
A84: SOCSO | B84: EQT | C84: SP | D84: 2021-01-18 | E84: 2021-01-18 | F84: 2021-01-20 | G84: 3000-01-01 | H84: 0 | I84: 345315.72 | J84: 345315.72 | K84: -345315.72 | L84: -345315.72 | M84: 0
A85: SOCSO | B85: EQT | C85: SP | D85: 2021-01-18 | E85: 2021-01-18 | F85: 2021-01-20 | G85: 3000-01-01 | H85: 0 | I85: 745280.55 | J85: 745280.55 | K85: -745280.55 | L85: -745280.55 | M85: 0
A86: SOCSO | B86: EQT | C86: SP | D86: 2021-01-18 | E86: 2021-01-18 | F86: 2021-01-20 | G86: 3000-01-01 | H86: 0 | I86: 140663.69 | J86: 140663.69 | K86: -140663.69 | L86: -140663.69 | M86: 0
A87: SOCSO | B87: EQT | C87: SS | D87: 2021-01-18 | E87: 2021-01-18 | F87: 2021-01-20 | G87: 3000-01-01 | H87: 0 | I87: -10187.24 | J87: -10187.24 | K87: 10103.11 | L87: 10103.11 | M87: 84.13
A88: SOCSO | B88: EQT | C88: SS | D88: 2021-01-18 | E88: 2021-01-18 | F88: 2021-01-20 | G88: 3000-01-01 | H88: 0 | I88: -1584233.82 | J88: -1584233.82 | K88: 1602335.39 | L88: 1602335.39 | M88: -18101.57
A89: SOCSO | B89: EQT | C89: SS | D89: 2021-01-18 | E89: 2021-01-18 | F89: 2021-01-20 | G89: 3000-01-01 | H89: 0 | I89: -230237.19 | J89: -230237.19 | K89: 351153.54 | L89: 351153.54 | M89: -120916.35
A90: SOCSO | B90: EQT | C90: SS | D90: 2021-01-18 | E90: 2021-01-18 | F90: 2021-01-20 | G90: 3000-01-01 | H90: 0 | I90: -161271.37 | J90: -161271.37 | K90: 221575.1 | L90: 221575.1 | M90: -60303.73
A91: SOCSO | B91: EQT | C91: SS | D91: 2021-01-18 | E91: 2021-01-18 | F91: 2021-01-20 | G91: 3000-01-01 | H91: 0 | I91: -483138.85 | J91: -483138.85 | K91: 560089.92 | L91: 560089.92 | M91: -76951.07
A92: SOCSO | B92: EQT | C92: SS | D92: 2021-01-18 | E92: 2021-01-18 | F92: 2021-01-20 | G92: 3000-01-01 | H92: 0 | I92: -24619.86 | J92: -24619.86 | K92: 25990.15 | L92: 25990.15 | M92: -1370.29
A93: SOCSO | B93: EQT | C93: SS | D93: 2021-01-18 | E93: 2021-01-18 | F93: 2021-01-20 | G93: 3000-01-01 | H93: 0 | I93: -176893.84 | J93: -176893.84 | K93: 570534.27 | L93: 570534.27 | M93: -393640.43
A94: SOCSO | B94: CSH | C94: RM | D94: 2021-01-19 | E94: 2021-01-19 | F94: 2021-01-19 | G94: 2021-01-19 | H94: -364.38 | I94: -7600000 | J94: -7600000 | K94: 7600364.38 | L94: 7600364.38 | M94: 0
A95: SOCSO | B95: CSH | C95: RP | D95: 2021-01-19 | E95: 2021-01-19 | F95: 2021-01-19 | G95: 2021-01-20 | H95: 0 | I95: 6600000 | J95: 6600000 | K95: -6600000 | L95: -6600000 | M95: 0
A96: SOCSO | B96: EQT | C96: SI | D96: 2021-01-19 | E96: 2021-01-19 | F96: 2021-02-09 | G96: 3000-01-01 | H96: 0 | I96: 0 | J96: 0 | K96: 97180 | L96: 97180 | M96: -97180
A97: SOCSO | B97: EQT | C97: SP | D97: 2021-01-19 | E97: 2021-01-19 | F97: 2021-01-21 | G97: 3000-01-01 | H97: 0 | I97: 446997.49 | J97: 446997.49 | K97: -446997.49 | L97: -446997.49 | M97: 0
A98: SOCSO | B98: EQT | C98: SP | D98: 2021-01-19 | E98: 2021-01-19 | F98: 2021-01-21 | G98: 3000-01-01 | H98: 0 | I98: 320354.36 | J98: 320354.36 | K98: -320354.36 | L98: -320354.36 | M98: 0
A99: SOCSO | B99: EQT | C99: SP | D99: 2021-01-19 | E99: 2021-01-19 | F99: 2021-01-21 | G99: 3000-01-01 | H99: 0 | I99: 274036.23 | J99: 274036.23 | K99: -274036.23 | L99: -274036.23 | M99: 0
A100: SOCSO | B100: EQT | C100: SS | D100: 2021-01-19 | E100: 2021-01-19 | F100: 2021-01-21 | G100: 3000-01-01 | H100: 0 | I100: -257615.31 | J100: -257615.31 | K100: 367703.59 | L100: 367703.59 | M100: -110088.28
A101: SOCSO | B101: EQT | C101: SS | D101: 2021-01-19 | E101: 2021-01-19 | F101: 2021-01-21 | G101: 3000-01-01 | H101: 0 | I101: -934066.97 | J101: -934066.97 | K101: 1063980.27 | L101: 1063980.27 | M101: -129913.3
A102: SOCSO | B102: EQT | C102: SS | D102: 2021-01-19 | E102: 2021-01-19 | F102: 2021-01-21 | G102: 3000-01-01 | H102: 0 | I102: -391237.44 | J102: -391237.44 | K102: 462132.75 | L102: 462132.75 | M102: -70895.31
A103: SOCSO | B103: EQT | C103: SS | D103: 2021-01-19 | E103: 2021-01-19 | F103: 2021-01-21 | G103: 3000-01-01 | H103: 0 | I103: -20029.71 | J103: -20029.71 | K103: 20846.32 | L103: 20846.32 | M103: -816.61
A104: SOCSO | B104: CSH | C104: RM | D104: 2021-01-20 | E104: 2021-01-20 | F104: 2021-01-20 | G104: 2021-01-20 | H104: -316.44 | I104: -6600000 | J104: -6600000 | K104: 6600316.44 | L104: 6600316.44 | M104: 0
A105: SOCSO | B105: CSH | C105: RP | D105: 2021-01-20 | E105: 2021-01-20 | F105: 2021-01-20 | G105: 2021-01-21 | H105: 0 | I105: 8700000 | J105: 8700000 | K105: -8700000 | L105: -8700000 | M105: 0
A106: SOCSO | B106: EQT | C106: SP | D106: 2021-01-20 | E106: 2021-01-20 | F106: 2021-01-22 | G106: 3000-01-01 | H106: 0 | I106: 629461.15 | J106: 629461.15 | K106: -629461.15 | L106: -629461.15 | M106: 0
A107: SOCSO | B107: EQT | C107: SP | D107: 2021-01-20 | E107: 2021-01-20 | F107: 2021-01-22 | G107: 3000-01-01 | H107: 0 | I107: 331119.96 | J107: 331119.96 | K107: -331119.96 | L107: -331119.96 | M107: 0
A108: SOCSO | B108: EQT | C108: SS | D108: 2021-01-20 | E108: 2021-01-20 | F108: 2021-01-22 | G108: 3000-01-01 | H108: 0 | I108: -265201.21 | J108: -265201.21 | K108: 322467.77 | L108: 322467.77 | M108: -57266.56
A109: SOCSO | B109: EQT | C109: SS | D109: 2021-01-20 | E109: 2021-01-20 | F109: 2021-01-22 | G109: 3000-01-01 | H109: 0 | I109: -13353.14 | J109: -13353.14 | K109: 14191.12 | L109: 14191.12 | M109: -837.98
A110: SOCSO | B110: CSH | C110: RM | D110: 2021-01-21 | E110: 2021-01-21 | F110: 2021-01-21 | G110: 2021-01-21 | H110: -417.12 | I110: -8700000 | J110: -8700000 | K110: 8700417.12 | L110: 8700417.12 | M110: 0
A111: SOCSO | B111: CSH | C111: RP | D111: 2021-01-21 | E111: 2021-01-21 | F111: 2021-01-21 | G111: 2021-01-22 | H111: 0 | I111: 9600000 | J111: 9600000 | K111: -9600000 | L111: -9600000 | M111: 0
A112: SOCSO | B112: EQT | C112: SI | D112: 2021-01-21 | E112: 2021-01-21 | F112: 2021-02-05 | G112: 3000-01-01 | H112: 0 | I112: 0 | J112: 0 | K112: 8800 | L112: 8800 | M112: -8800
A113: SOCSO | B113: EQT | C113: SS | D113: 2021-01-21 | E113: 2021-01-21 | F113: 2021-01-25 | G113: 3000-01-01 | H113: 0 | I113: -10849.43 | J113: -10849.43 | K113: 11262.6 | L113: 11262.6 | M113: -413.17
A114: SOCSO | B114: CSH | C114: RM | D114: 2021-01-22 | E114: 2021-01-22 | F114: 2021-01-22 | G114: 2021-01-22 | H114: -460.27 | I114: -9600000 | J114: -9600000 | K114: 9600460.27 | L114: 9600460.27 | M114: 0
A115: SOCSO | B115: CSH | C115: RP | D115: 2021-01-22 | E115: 2021-01-22 | F115: 2021-01-22 | G115: 2021-01-25 | H115: 0 | I115: 8900000 | J115: 8900000 | K115: -8900000 | L115: -8900000 | M115: 0
A116: SOCSO | B116: EQT | C116: SP | D116: 2021-01-22 | E116: 2021-01-22 | F116: 2021-01-26 | G116: 3000-01-01 | H116: 0 | I116: 477697.97 | J116: 477697.97 | K116: -477697.97 | L116: -477697.97 | M116: 0
A117: SOCSO | B117: EQT | C117: SP | D117: 2021-01-22 | E117: 2021-01-22 | F117: 2021-01-26 | G117: 3000-01-01 | H117: 0 | I117: 221266.69 | J117: 221266.69 | K117: -221266.69 | L117: -221266.69 | M117: 0
A118: SOCSO | B118: EQT | C118: SS | D118: 2021-01-22 | E118: 2021-01-22 | F118: 2021-01-26 | G118: 3000-01-01 | H118: 0 | I118: -29627.29 | J118: -29627.29 | K118: 30894.12 | L118: 30894.12 | M118: -1266.83
A119: SOCSO | B119: CSH | C119: RM | D119: 2021-01-25 | E119: 2021-01-25 | F119: 2021-01-25 | G119: 2021-01-25 | H119: -1280.14 | I119: -8900000 | J119: -8900000 | K119: 8901280.14 | L119: 8901280.14 | M119: 0
A120: SOCSO | B120: CSH | C120: RP | D120: 2021-01-25 | E120: 2021-01-25 | F120: 2021-01-25 | G120: 2021-01-26 | H120: 0 | I120: 8901280.14 | J120: 8901280.14 | K120: -8901280.14 | L120: -8901280.14 | M120: 0
A121: SOCSO | B121: EQT | C121: SP | D121: 2021-01-25 | E121: 2021-01-25 | F121: 2021-01-27 | G121: 3000-01-01 | H121: 0 | I121: 101953.5 | J121: 101953.5 | K121: -101953.5 | L121: -101953.5 | M121: 0
A122: SOCSO | B122: EQT | C122: SP | D122: 2021-01-25 | E122: 2021-01-25 | F122: 2021-01-27 | G122: 3000-01-01 | H122: 0 | I122: 163147.27 | J122: 163147.27 | K122: -163147.27 | L122: -163147.27 | M122: 0
A123: SOCSO | B123: EQT | C123: SS | D123: 2021-01-25 | E123: 2021-01-25 | F123: 2021-01-27 | G123: 3000-01-01 | H123: 0 | I123: -780828.15 | J123: -780828.15 | K123: 850345.43 | L123: 850345.43 | M123: -69517.28
A124: SOCSO | B124: CSH | C124: RM | D124: 2021-01-26 | E124: 2021-01-26 | F124: 2021-01-26 | G124: 2021-01-26 | H124: -426.77 | I124: -8901280.14 | J124: -8901280.14 | K124: 8901706.91 | L124: 8901706.91 | M124: 0
A125: SOCSO | B125: CSH | C125: RP | D125: 2021-01-26 | E125: 2021-01-26 | F125: 2021-01-26 | G125: 2021-01-27 | H125: 0 | I125: 8300000 | J125: 8300000 | K125: -8300000 | L125: -8300000 | M125: 0
A126: SOCSO | B126: EQT | C126: SB | D126: 2021-01-26 | E126: 2021-01-29 | F126: 2021-01-29 | G126: 3000-01-01 | H126: 0 | I126: 0 | J126: 0 | K126: 0 | L126: 0 | M126: 0
A127: SOCSO | B127: EQT | C127: SP | D127: 2021-01-26 | E127: 2021-01-26 | F127: 2021-01-29 | G127: 3000-01-01 | H127: 0 | I127: 329141.89 | J127: 329141.89 | K127: -329141.89 | L127: -329141.89 | M127: 0
A128: SOCSO | B128: EQT | C128: SP | D128: 2021-01-26 | E128: 2021-01-26 | F128: 2021-01-29 | G128: 3000-01-01 | H128: 0 | I128: 111941.57 | J128: 111941.57 | K128: -111941.57 | L128: -111941.57 | M128: 0
A129: SOCSO | B129: EQT | C129: SP | D129: 2021-01-26 | E129: 2021-01-26 | F129: 2021-01-29 | G129: 3000-01-01 | H129: 0 | I129: 460978.56 | J129: 460978.56 | K129: -460978.56 | L129: -460978.56 | M129: 0
A130: SOCSO | B130: EQT | C130: SS | D130: 2021-01-26 | E130: 2021-01-26 | F130: 2021-01-29 | G130: 3000-01-01 | H130: 0 | I130: -780828.15 | J130: -780828.15 | K130: 903109.51 | L130: 903109.51 | M130: -122281.36
A131: SOCSO | B131: CSH | C131: RM | D131: 2021-01-27 | E131: 2021-01-27 | F131: 2021-01-27 | G131: 2021-01-27 | H131: -397.95 | I131: -8300000 | J131: -8300000 | K131: 8300397.95 | L131: 8300397.95 | M131: 0
A132: SOCSO | B132: CSH | C132: RP | D132: 2021-01-27 | E132: 2021-01-27 | F132: 2021-01-27 | G132: 2021-01-29 | H132: 0 | I132: 9000000 | J132: 9000000 | K132: -9000000 | L132: -9000000 | M132: 0
A133: SOCSO | B133: EQT | C133: SP | D133: 2021-01-27 | E133: 2021-01-27 | F133: 2021-02-02 | G133: 3000-01-01 | H133: 0 | I133: 291745.06 | J133: 291745.06 | K133: -291745.06 | L133: -291745.06 | M133: 0
A134: SOCSO | B134: EQT | C134: SS | D134: 2021-01-27 | E134: 2021-01-27 | F134: 2021-02-02 | G134: 3000-01-01 | H134: 0 | I134: 0 | J134: 0 | K134: 15034.57 | L134: 15034.57 | M134: -15034.57
A135: SOCSO | B135: CSH | C135: RM | D135: 2021-01-29 | E135: 2021-01-29 | F135: 2021-01-29 | G135: 2021-01-29 | H135: -863.01 | I135: -9000000 | J135: -9000000 | K135: 9000863.01 | L135: 9000863.01 | M135: 0
A136: SOCSO | B136: CSH | C136: RP | D136: 2021-01-29 | E136: 2021-01-29 | F136: 2021-01-29 | G136: 2021-02-02 | H136: 0 | I136: 9000863.01 | J136: 9000863.01 | K136: -9000863.01 | L136: -9000863.01 | M136: 0
A137: SOCSO | B137: EQT | C137: SP | D137: 2021-01-29 | E137: 2021-01-29 | F137: 2021-02-03 | G137: 3000-01-01 | H137: 0 | I137: 269845.8 | J137: 269845.8 | K137: -269845.8 | L137: -269845.8 | M137: 0
A138: SOCSO | B138: EQT | C138: SP | D138: 2021-01-29 | E138: 2021-01-29 | F138: 2021-02-03 | G138: 3000-01-01 | H138: 0 | I138: 514812.05 | J138: 514812.05 | K138: -514812.05 | L138: -514812.05 | M138: 0
A139: SOCSO | B139: EQT | C139: SS | D139: 2021-01-29 | E139: 2021-01-29 | F139: 2021-02-03 | G139: 3000-01-01 | H139: 0 | I139: -15439.57 | J139: -15439.57 | K139: 16035.94 | L139: 16035.94 | M139: -596.37
A140: SOCSO | B140: EQT | C140: SS | D140: 2021-01-29 | E140: 2021-01-29 | F140: 2021-02-03 | G140: 3000-01-01 | H140: 0 | I140: -185738.54 | J140: -185738.54 | K140: 669922.06 | L140: 669922.06 | M140: -484183.52
A141: SOCSO | B141: EQT | C141: SS | D141: 2021-01-29 | E141: 2021-01-29 | F141: 2021-02-03 | G141: 3000-01-01 | H141: 0 | I141: 0 | J141: 0 | K141: 17885.66 | L141: 17885.66 | M141: -17885.66
A142: SOCSO | B142: CSH | C142: RM | D142: 2021-02-02 | E142: 2021-02-02 | F142: 2021-02-02 | G142: 2021-02-02 | H142: -1726.19 | I142: -9000863.01 | J142: -9000863.01 | K142: 9002589.2 | L142: 9002589.2 | M142: 0
A143: SOCSO | B143: CSH | C143: RP | D143: 2021-02-02 | E143: 2021-02-02 | F143: 2021-02-02 | G143: 2021-02-03 | H143: 0 | I143: 8700000 | J143: 8700000 | K143: -8700000 | L143: -8700000 | M143: 0
A144: SOCSO | B144: EQT | C144: SP | D144: 2021-02-02 | E144: 2021-02-02 | F144: 2021-02-04 | G144: 3000-01-01 | H144: 0 | I144: 266792.59 | J144: 266792.59 | K144: -266792.59 | L144: -266792.59 | M144: 0
A145: SOCSO | B145: EQT | C145: SS | D145: 2021-02-02 | E145: 2021-02-02 | F145: 2021-02-04 | G145: 3000-01-01 | H145: 0 | I145: -32131 | J145: -32131 | K145: 34314.33 | L145: 34314.33 | M145: -2183.33
A146: SOCSO | B146: EQT | C146: SS | D146: 2021-02-02 | E146: 2021-02-02 | F146: 2021-02-04 | G146: 3000-01-01 | H146: 0 | I146: -17689.38 | J146: -17689.38 | K146: 62890.28 | L146: 62890.28 | M146: -45200.9
A147: SOCSO | B147: CSH | C147: RM | D147: 2021-02-03 | E147: 2021-02-03 | F147: 2021-02-03 | G147: 2021-02-03 | H147: -417.12 | I147: -8700000 | J147: -8700000 | K147: 8700417.12 | L147: 8700417.12 | M147: 0
A148: SOCSO | B148: CSH | C148: RP | D148: 2021-02-03 | E148: 2021-02-03 | F148: 2021-02-03 | G148: 2021-02-04 | H148: 0 | I148: 8600000 | J148: 8600000 | K148: -8600000 | L148: -8600000 | M148: 0
A149: SOCSO | B149: EQT | C149: SP | D149: 2021-02-03 | E149: 2021-02-03 | F149: 2021-02-05 | G149: 3000-01-01 | H149: 0 | I149: 306220.89 | J149: 306220.89 | K149: -306220.89 | L149: -306220.89 | M149: 0
A150: SOCSO | B150: EQT | C150: SS | D150: 2021-02-03 | E150: 2021-02-03 | F150: 2021-02-05 | G150: 3000-01-01 | H150: 0 | I150: -41311.28 | J150: -41311.28 | K150: 44634.23 | L150: 44634.23 | M150: -3322.95
A151: SOCSO | B151: EQT | C151: SS | D151: 2021-02-03 | E151: 2021-02-03 | F151: 2021-02-05 | G151: 3000-01-01 | H151: 0 | I151: -8844.69 | J151: -8844.69 | K151: 32802.82 | L151: 32802.82 | M151: -23958.13
A152: SOCSO | B152: CSH | C152: RM | D152: 2021-02-04 | E152: 2021-02-04 | F152: 2021-02-04 | G152: 2021-02-04 | H152: -412.33 | I152: -8600000 | J152: -8600000 | K152: 8600412.33 | L152: 8600412.33 | M152: 0
A153: SOCSO | B153: CSH | C153: RP | D153: 2021-02-04 | E153: 2021-02-04 | F153: 2021-02-04 | G153: 2021-02-05 | H153: 0 | I153: 8400000 | J153: 8400000 | K153: -8400000 | L153: -8400000 | M153: 0
A154: SOCSO | B154: EQT | C154: SI | D154: 2021-02-04 | E154: 2021-02-04 | F154: 2021-03-11 | G154: 3000-01-01 | H154: 0 | I154: 0 | J154: 0 | K154: 17964.54 | L154: 17964.54 | M154: -17964.54
A155: SOCSO | B155: EQT | C155: SI | D155: 2021-02-04 | E155: 2021-02-04 | F155: 2021-03-11 | G155: 3000-01-01 | H155: 0 | I155: 0 | J155: 0 | K155: 13555.06 | L155: 13555.06 | M155: -13555.06
A156: SOCSO | B156: EQT | C156: SI | D156: 2021-02-04 | E156: 2021-02-04 | F156: 2021-03-11 | G156: 3000-01-01 | H156: 0 | I156: 0 | J156: 0 | K156: 5226.05 | L156: 5226.05 | M156: -5226.05
A157: SOCSO | B157: CSH | C157: RM | D157: 2021-02-05 | E157: 2021-02-05 | F157: 2021-02-05 | G157: 2021-02-05 | H157: -402.74 | I157: -8400000 | J157: -8400000 | K157: 8400402.74 | L157: 8400402.74 | M157: 0
A158: SOCSO | B158: CSH | C158: RP | D158: 2021-02-05 | E158: 2021-02-05 | F158: 2021-02-05 | G158: 2021-02-08 | H158: 0 | I158: 8200000 | J158: 8200000 | K158: -8200000 | L158: -8200000 | M158: 0
A159: SOCSO | B159: EQT | C159: SP | D159: 2021-02-05 | E159: 2021-02-05 | F159: 2021-02-09 | G159: 3000-01-01 | H159: 0 | I159: 31123.61 | J159: 31123.61 | K159: -31123.61 | L159: -31123.61 | M159: 0
A160: SOCSO | B160: EQT | C160: SS | D160: 2021-02-05 | E160: 2021-02-05 | F160: 2021-02-09 | G160: 3000-01-01 | H160: 0 | I160: -220073.17 | J160: -220073.17 | K160: 397123.93 | L160: 397123.93 | M160: -177050.76
A161: SOCSO | B161: EQT | C161: SS | D161: 2021-02-05 | E161: 2021-02-05 | F161: 2021-02-09 | G161: 3000-01-01 | H161: 0 | I161: -22116.14 | J161: -22116.14 | K161: 23213.22 | L161: 23213.22 | M161: -1097.08
A162: SOCSO | B162: CSH | C162: CN | D162: 2021-02-08 | E162: 2021-02-08 | F162: 2021-02-08 | G162: 3000-01-01 | H162: 1329502.8 | I162: 1329502.8 | J162: 1329502.8 | K162: -1329502.8 | L162: -1329502.8 | M162: 0
A163: SOCSO | B163: CSH | C163: RM | D163: 2021-02-08 | E163: 2021-02-08 | F163: 2021-02-08 | G163: 2021-02-08 | H163: -1179.45 | I163: -8200000 | J163: -8200000 | K163: 8201179.45 | L163: 8201179.45 | M163: 0
A164: SOCSO | B164: EQT | C164: SP | D164: 2021-02-08 | E164: 2021-02-08 | F164: 2021-02-10 | G164: 3000-01-01 | H164: 0 | I164: 400482.31 | J164: 400482.31 | K164: -400482.31 | L164: -400482.31 | M164: 0
A165: SOCSO | B165: EQT | C165: SP | D165: 2021-02-08 | E165: 2021-02-08 | F165: 2021-02-10 | G165: 3000-01-01 | H165: 0 | I165: 46877.75 | J165: 46877.75 | K165: -46877.75 | L165: -46877.75 | M165: 0
A166: SOCSO | B166: EQT | C166: SS | D166: 2021-02-08 | E166: 2021-02-08 | F166: 2021-02-10 | G166: 3000-01-01 | H166: 0 | I166: -74536.16 | J166: -74536.16 | K166: 132122.77 | L166: 132122.77 | M166: -57586.61
A167: SOCSO | B167: EQT | C167: SS | D167: 2021-02-08 | E167: 2021-02-08 | F167: 2021-02-10 | G167: 3000-01-01 | H167: 0 | I167: -10849.43 | J167: -10849.43 | K167: 11252.2 | L167: 11252.2 | M167: -402.77
A168: SOCSO | B168: CSH | C168: RP | D168: 2021-02-09 | E168: 2021-02-09 | F168: 2021-02-09 | G168: 2021-02-10 | H168: 0 | I168: 7300000 | J168: 7300000 | K168: -7300000 | L168: -7300000 | M168: 0
A169: SOCSO | B169: EQT | C169: SI | D169: 2021-02-09 | E169: 2021-02-09 | F169: 2021-02-26 | G169: 3000-01-01 | H169: 0 | I169: 0 | J169: 0 | K169: 20882.6 | L169: 20882.6 | M169: -20882.6
A170: SOCSO | B170: EQT | C170: SI | D170: 2021-02-09 | E170: 2021-02-09 | F170: 2021-02-26 | G170: 3000-01-01 | H170: 0 | I170: 0 | J170: 0 | K170: 22688.84 | L170: 22688.84 | M170: -22688.84
A171: SOCSO | B171: EQT | C171: SI | D171: 2021-02-09 | E171: 2021-02-09 | F171: 2021-02-26 | G171: 3000-01-01 | H171: 0 | I171: 0 | J171: 0 | K171: 220.28 | L171: 220.28 | M171: -220.28
A172: SOCSO | B172: EQT | C172: SP | D172: 2021-02-09 | E172: 2021-02-09 | F172: 2021-02-11 | G172: 3000-01-01 | H172: 0 | I172: 153218.56 | J172: 153218.56 | K172: -153218.56 | L172: -153218.56 | M172: 0
A173: SOCSO | B173: EQT | C173: SP | D173: 2021-02-09 | E173: 2021-02-09 | F173: 2021-02-11 | G173: 3000-01-01 | H173: 0 | I173: 108568.39 | J173: 108568.39 | K173: -108568.39 | L173: -108568.39 | M173: 0
A174: SOCSO | B174: EQT | C174: SP | D174: 2021-02-09 | E174: 2021-02-09 | F174: 2021-02-11 | G174: 3000-01-01 | H174: 0 | I174: 979491.38 | J174: 979491.38 | K174: -979491.38 | L174: -979491.38 | M174: 0
A175: SOCSO | B175: EQT | C175: SS | D175: 2021-02-09 | E175: 2021-02-09 | F175: 2021-02-11 | G175: 3000-01-01 | H175: 0 | I175: -147304.67 | J175: -147304.67 | K175: 264059.6 | L175: 264059.6 | M175: -116754.93
A176: SOCSO | B176: CSH | C176: RM | D176: 2021-02-10 | E176: 2021-02-10 | F176: 2021-02-10 | G176: 2021-02-10 | H176: -350 | I176: -7300000 | J176: -7300000 | K176: 7300350 | L176: 7300350 | M176: 0
A177: SOCSO | B177: CSH | C177: RP | D177: 2021-02-10 | E177: 2021-02-10 | F177: 2021-02-10 | G177: 2021-02-11 | H177: 0 | I177: 7100000 | J177: 7100000 | K177: -7100000 | L177: -7100000 | M177: 0
A178: SOCSO | B178: CSH | C178: RM | D178: 2021-02-11 | E178: 2021-02-11 | F178: 2021-02-11 | G178: 2021-02-11 | H178: -340.41 | I178: -7100000 | J178: -7100000 | K178: 7100340.41 | L178: 7100340.41 | M178: 0
A179: SOCSO | B179: CSH | C179: RP | D179: 2021-02-11 | E179: 2021-02-11 | F179: 2021-02-11 | G179: 2021-02-15 | H179: 0 | I179: 6100000 | J179: 6100000 | K179: -6100000 | L179: -6100000 | M179: 0
A180: SOCSO | B180: EQT | C180: SI | D180: 2021-02-11 | E180: 2021-02-11 | F180: 2021-02-26 | G180: 3000-01-01 | H180: 0 | I180: 0 | J180: 0 | K180: 25014.88 | L180: 25014.88 | M180: -25014.88
A181: SOCSO | B181: EQT | C181: SI | D181: 2021-02-11 | E181: 2021-02-11 | F181: 2021-02-26 | G181: 3000-01-01 | H181: 0 | I181: 0 | J181: 0 | K181: 820.16 | L181: 820.16 | M181: -820.16
A182: SOCSO | B182: CSH | C182: RM | D182: 2021-02-15 | E182: 2021-02-15 | F182: 2021-02-15 | G182: 2021-02-15 | H182: -1169.86 | I182: -6100000 | J182: -6100000 | K182: 6101169.86 | L182: 6101169.86 | M182: 0
A183: SOCSO | B183: CSH | C183: RP | D183: 2021-02-15 | E183: 2021-02-15 | F183: 2021-02-15 | G183: 2021-02-16 | H183: 0 | I183: 6101169.86 | J183: 6101169.86 | K183: -6101169.86 | L183: -6101169.86 | M183: 0
A184: SOCSO | B184: EQT | C184: SP | D184: 2021-02-15 | E184: 2021-02-15 | F184: 2021-02-17 | G184: 3000-01-01 | H184: 0 | I184: 182547.16 | J184: 182547.16 | K184: -182547.16 | L184: -182547.16 | M184: 0
A185: SOCSO | B185: EQT | C185: SP | D185: 2021-02-15 | E185: 2021-02-15 | F185: 2021-02-17 | G185: 3000-01-01 | H185: 0 | I185: 23239.35 | J185: 23239.35 | K185: -23239.35 | L185: -23239.35 | M185: 0
A186: SOCSO | B186: EQT | C186: SP | D186: 2021-02-15 | E186: 2021-02-15 | F186: 2021-02-17 | G186: 3000-01-01 | H186: 0 | I186: 1136764.06 | J186: 1136764.06 | K186: -1136764.06 | L186: -1136764.06 | M186: 0
A187: SOCSO | B187: EQT | C187: SS | D187: 2021-02-15 | E187: 2021-02-15 | F187: 2021-02-17 | G187: 3000-01-01 | H187: 0 | I187: -252332.89 | J187: -252332.89 | K187: 479285.77 | L187: 479285.77 | M187: -226952.88
A188: SOCSO | B188: EQT | C188: SS | D188: 2021-02-15 | E188: 2021-02-15 | F188: 2021-02-17 | G188: 3000-01-01 | H188: 0 | I188: -558239.75 | J188: -558239.75 | K188: 615015.41 | L188: 615015.41 | M188: -56775.66
A189: SOCSO | B189: EQT | C189: SS | D189: 2021-02-15 | E189: 2021-02-15 | F189: 2021-02-17 | G189: 3000-01-01 | H189: 0 | I189: -21698.86 | J189: -21698.86 | K189: 22820.21 | L189: 22820.21 | M189: -1121.35
A190: SOCSO | B190: CSH | C190: RM | D190: 2021-02-16 | E190: 2021-02-16 | F190: 2021-02-16 | G190: 2021-02-16 | H190: -292.52 | I190: -6101169.86 | J190: -6101169.86 | K190: 6101462.38 | L190: 6101462.38 | M190: 0
A191: SOCSO | B191: CSH | C191: RP | D191: 2021-02-16 | E191: 2021-02-16 | F191: 2021-02-16 | G191: 2021-02-17 | H191: 0 | I191: 6101462.38 | J191: 6101462.38 | K191: -6101462.38 | L191: -6101462.38 | M191: 0
A192: SOCSO | B192: EQT | C192: SB | D192: 2021-02-16 | E192: 2021-02-16 | F192: 2021-02-18 | G192: 3000-01-01 | H192: 0 | I192: 0 | J192: 0 | K192: 0 | L192: 0 | M192: 0
A193: SOCSO | B193: CSH | C193: RM | D193: 2021-02-17 | E193: 2021-02-17 | F193: 2021-02-17 | G193: 2021-02-17 | H193: -292.54 | I193: -6101462.38 | J193: -6101462.38 | K193: 6101754.92 | L193: 6101754.92 | M193: 0
A194: SOCSO | B194: CSH | C194: RP | D194: 2021-02-17 | E194: 2021-02-17 | F194: 2021-02-17 | G194: 2021-02-18 | H194: 0 | I194: 5900000 | J194: 5900000 | K194: -5900000 | L194: -5900000 | M194: 0
A195: SOCSO | B195: EQT | C195: SI | D195: 2021-02-17 | E195: 2021-02-17 | F195: 2021-03-05 | G195: 3000-01-01 | H195: 0 | I195: 0 | J195: 0 | K195: 15600 | L195: 15600 | M195: -15600
A196: SOCSO | B196: EQT | C196: SI | D196: 2021-02-17 | E196: 2021-02-17 | F196: 2021-03-01 | G196: 3000-01-01 | H196: 0 | I196: 0 | J196: 0 | K196: 53215.75 | L196: 53215.75 | M196: -53215.75
A197: SOCSO | B197: EQT | C197: SP | D197: 2021-02-17 | E197: 2021-02-17 | F197: 2021-02-19 | G197: 3000-01-01 | H197: 0 | I197: 495060.36 | J197: 495060.36 | K197: -495060.36 | L197: -495060.36 | M197: 0
A198: SOCSO | B198: EQT | C198: SP | D198: 2021-02-17 | E198: 2021-02-17 | F198: 2021-02-19 | G198: 3000-01-01 | H198: 0 | I198: 753571.2 | J198: 753571.2 | K198: -753571.2 | L198: -753571.2 | M198: 0
A199: SOCSO | B199: EQT | C199: SS | D199: 2021-02-17 | E199: 2021-02-17 | F199: 2021-02-19 | G199: 3000-01-01 | H199: 0 | I199: -115928.77 | J199: -115928.77 | K199: 230253.67 | L199: 230253.67 | M199: -114324.9
A200: SOCSO | B200: CSH | C200: RM | D200: 2021-02-18 | E200: 2021-02-18 | F200: 2021-02-18 | G200: 2021-02-18 | H200: -282.88 | I200: -5900000 | J200: -5900000 | K200: 5900282.88 | L200: 5900282.88 | M200: 0
... 795 more rows

Sheet InFund (hidden)
A1: qFundCode | B1: FundName | C1: qFundType | D1: Islamic | E1: FinanceYrStart | F1: FinanceYrEnd | G1: qCompanyID | H1: RollEOYFlag | I1: Fundcurrency
A2: AJC-MASHAREQ | B2: ALJAZIRA JAPANESE EQUITY FUND | C2: 1 | D2: 1 | E2: 2013-03-01 | F2: 2020-12-31 | G2: NI | H2: 1 | I2: USD
A3: BNM-ICLIF | B3: IFM ICLIF SHARIAH EQUITY NOMURA-I | C3: 1 | D3: 1 | E3: 2013-08-26 | F3: 2020-12-31 | G3: NI | H3: 1 | I3: MYR
A4: BNM-ICLIF-FI2 | B4: IFM ICLIF CORP BOND NOMURA | C4: 2 | D4: 0 | E4: 2021-01-04 | F4: 2020-12-31 | G4: NM | H4: 1 | I4: MYR
A5: BNM-INCEIF | B5: IFM INCEIF SHARIAH EQUITY NOMURA-I | C5: 1 | D5: 1 | E5: 2013-08-26 | F5: 2020-12-31 | G5: NI | H5: 1 | I5: MYR
A6: BNM-INCEIF-FI | B6: IFM INCEIF SUKUK NOMURA-I | C6: 2 | D6: 1 | E6: 2016-11-28 | F6: 2020-12-31 | G6: NI | H6: 1 | I6: MYR
A7: BNM-MEDF-FI | B7: IFM MEDF CORP BOND NOMURA | C7: 2 | D7: 0 | E7: 2016-11-28 | F7: 2020-12-31 | G7: NM | H7: 1 | I7: MYR
A8: BNMMF | B8: IFM MEDF CONV EQUITY NOMURA | C8: 1 | D8: 0 | E8: 2011-08-08 | F8: 2020-12-31 | G8: NM | H8: 1 | I8: MYR
A9: BNM-NTF | B9: IFM NTF CONV EQUITY NOMURA | C9: 1 | D9: 0 | E9: 2020-09-17 | F9: 2020-12-31 | G9: NM | H9: 1 | I9: MYR
A10: BNM-NTF-FI | B10: IFM NTF CORP BOND NOMURA | C10: 2 | D10: 0 | E10: 2016-11-28 | F10: 2020-12-31 | G10: NM | H10: 1 | I10: MYR
A11: CGC | B11: CREDIT GUARANTEE CORPORATION MALAYSIA BERHAD | C11: 2 | D11: 0 | E11: 2017-03-16 | F11: 2020-12-31 | G11: NM | H11: 1 | I11: MYR
A12: EPF | B12: EMPLOYEES PROVIDENT FUND BOARD | C12: 1 | D12: 0 | E12: 1994-07-05 | F12: 2020-12-31 | G12: NM | H12: 1 | I12: MYR
A13: EPF-ASEAN | B13: EPF ASEAN 40 EX MALAYSIA EQUITY | C13: 1 | D13: 0 | E13: 2007-01-23 | F13: 2020-12-31 | G13: NM | H13: 1 | I13: USD
A14: EPF-ASIA | B14: EPF-ASIA EX JAPAN EX MALAYSIA EQUITY | C14: 1 | D14: 0 | E14: 2007-05-24 | F14: 2020-12-31 | G14: NM | H14: 1 | I14: USD
A15: EPF-DMSUKUK | B15: EMPLOYEES PROVIDENT FUND BOARD (NIAM-FI RR) - IC | C15: 2 | D15: 1 | E15: 2013-07-16 | F15: 2020-12-31 | G15: NI | H15: 1 | I15: MYR
A16: EPF-GLOBAL | B16: NOMURA FOR EPF GLOBAL EQUITY FUND | C16: 1 | D16: 0 | E16: 2007-12-10 | F16: 2020-12-31 | G16: NM | H16: 1 | I16: USD
A17: EPFMSIANFI | B17: EMPLOYEES PROVIDENT FUND BOARD (NAM-FI RR) | C17: 3 | D17: 0 | E17: 2010-04-23 | F17: 2020-12-31 | G17: NM | H17: 1 | I17: MYR
A18: EPF-NIAMEQ | B18: EMPLOYEES PROVIDENT FUND BOARD (NIAM EQ) | C18: 1 | D18: 1 | E18: 2018-11-01 | F18: 2020-12-31 | G18: NI | H18: 1 | I18: MYR
A19: EPF-SHASIA | B19: EPF SHARIAH ASIA NOMURA ISLAMIC | C19: 1 | D19: 1 | E19: 2010-09-20 | F19: 2020-12-31 | G19: NI | H19: 1 | I19: USD
A20: EPF-SHWORLD | B20: EPF SHARIAH WORLD NOMURA ISLAMIC | C20: 1 | D20: 1 | E20: 2010-09-15 | F20: 2020-12-31 | G20: NI | H20: 1 | I20: USD
A21: i-CASH | B21: NOMURA i-CASH FUND | C21: 4 | D21: 1 | E21: 2012-11-07 | F21: 2020-04-30 | G21: NI | H21: 1 | I21: MYR
A22: i-INCOME2 | B22: NOMURA I-INCOME FUND 2 | C22: 2 | D22: 1 | E22: 2021-06-30 | F22: 2022-10-31 | G22: NM | H22: 0 | I22: MYR
A23: i-INCOME2H | B23: NOMURA I-INCOME FUND 2 - CLASS H | C23: 2 | D23: 1 | E23: 2021-06-30 | F23: 2022-10-31 | G23: NM | H23: 0 | I23: MYR
A24: i-INCOME2I | B24: NOMURA I-INCOME FUND 2 - CLASS I | C24: 2 | D24: 1 | E24: 2021-06-30 | F24: 2022-10-31 | G24: NM | H24: 0 | I24: MYR
A25: i-INCOME2S | B25: NOMURA I-INCOME FUND 2 - CLASS S | C25: 2 | D25: 1 | E25: 2021-06-30 | F25: 2022-10-31 | G25: NM | H25: 0 | I25: MYR
A26: i-MONEY | B26: NOMURA i-INCOME FUND | C26: 2 | D26: 1 | E26: 2012-11-07 | F26: 2020-12-31 | G26: NI | H26: 1 | I26: MYR
A27: KWAP | B27: KUMPULAN WANG PERSARAAN | C27: 1 | D27: 0 | E27: 2007-09-10 | F27: 2020-12-31 | G27: NM | H27: 1 | I27: MYR
A28: KWAP-NIAM | B28: KWAP (NOMURA ISLAMIC AM) | C28: 2 | D28: 1 | E28: 2014-07-23 | F28: 2020-12-31 | G28: NI | H28: 1 | I28: MYR
A29: LAB-NGBF | B29: LABUAN RE - NOMURA-GLOBAL BALANCED FUND | C29: 3 | D29: 0 | E29: 2015-06-08 | F29: 2020-12-31 | G29: NM | H29: 1 | I29: USD
A30: MHILJP-EQ | B30: BHT05 (MT HATTON INVT LTD JP PORTFOLIO) | C30: 1 | D30: 0 | E30: 2020-08-04 | F30: 2020-12-31 | G30: NM | H30: 1 | I30: JPY
A31: MSIG-EQ | B31: NOMURA FOR MSIG INSURANCE (MALAYSIA)BHD (EQ) | C31: 1 | D31: 0 | E31: 2021-05-03 | F31: 2021-12-31 | G31: NM | H31: 1 | I31: MYR
A32: NGDBF | B32: NOMURA GLOBAL DYNAMIC BOND FUND | C32: 2 | D32: 0 | E32: 2021-02-02 | F32: 2020-01-31 | G32: NM | H32: 1 | I32: USD
A33: NGDBFM | B33: NOMURA GLOBAL DYNAMIC BOND FUND - CLASS MYR | C33: 2 | D33: 0 | E33: 2021-02-02 | F33: 2020-01-31 | G33: NM | H33: 1 | I33: USD
A34: NGDBFU | B34: NOMURA GLOBAL DYNAMIC BOND FUND - CLASS USD | C34: 2 | D34: 0 | E34: 2021-02-02 | F34: 2020-01-31 | G34: NM | H34: 1 | I34: USD
A35: NGHC | B35: NOMURA GLOBAL HIGH CONVICTION FUND | C35: 1 | D35: 0 | E35: 2016-12-13 | F35: 2020-08-31 | G35: NM | H35: 1 | I35: USD
A36: NGHM | B36: NOMURA GLOBAL HIGH CONVICTION FUND - CLASS MYR | C36: 1 | D36: 0 | E36: 2016-12-13 | F36: 2020-08-31 | G36: NM | H36: 1 | I36: USD
A37: NGHU | B37: NOMURA GLOBAL HIGH CONVICTION FUND - CLASS USD | C37: 1 | D37: 0 | E37: 2016-12-13 | F37: 2020-08-31 | G37: NM | H37: 1 | I37: USD
A38: NGSEF | B38: NOMURA GLOBAL SUSTAINABLE EQUITY FUND | C38: 1 | D38: 0 | E38: 2021-06-18 | F38: 2021-07-31 | G38: NM | H38: 0 | I38: USD
A39: NGSEFA | B39: NOMURA GLOBAL SUSTAINABLE EQUITY FUND-MYR CLASS A | C39: 1 | D39: 0 | E39: 2021-06-18 | F39: 2021-07-31 | G39: NM | H39: 0 | I39: USD
A40: NGSEFB | B40: NOMURA GLOBAL SUSTAINABLE EQUITY FUND-MYR CLASS B | C40: 1 | D40: 0 | E40: 2021-06-18 | F40: 2021-07-31 | G40: NM | H40: 0 | I40: USD
A41: NGSEFU | B41: NOMURA GLOBAL SUSTAINABLE EQUITY FUND-USD CLASS | C41: 1 | D41: 0 | E41: 2021-06-18 | F41: 2021-07-31 | G41: NM | H41: 0 | I41: USD
A42: NGSSGF | B42: NOMURA GLOBAL SHARIAH STRATEGIC GROWTH FUND | C42: 1 | D42: 1 | E42: 2020-05-22 | F42: 2020-09-30 | G42: NM | H42: 1 | I42: MYR
A43: NGSSGFA | B43: NOMURA GLOBAL SHARIAH STRATEGIC GROWTH FUND A | C43: 1 | D43: 1 | E43: 2020-05-22 | F43: 2020-09-30 | G43: NM | H43: 1 | I43: MYR
A44: NGSSGFB | B44: NOMURA GLOBAL SHARIAH STRATEGIC GROWTH FUND B | C44: 1 | D44: 1 | E44: 2020-05-22 | F44: 2020-09-30 | G44: NM | H44: 1 | I44: MYR
A45: NRBF1 | B45: NOMURA RINGGIT BOND FUND 1 | C45: 2 | D45: 0 | E45: 2019-07-01 | F45: 2020-12-31 | G45: NM | H45: 1 | I45: MYR
A46: NRBF2 | B46: NOMURA RINGGIT BOND FUND 2 | C46: 2 | D46: 0 | E46: 2020-07-28 | F46: 2020-03-31 | G46: NM | H46: 1 | I46: MYR
A47: PET-ACF | B47: PETRONAS EFM (ACF-NOMURA) | C47: 2 | D47: 0 | E47: 3000-01-01 | F47: 2020-12-31 | G47: NM | H47: 1 | I47: MYR
A48: PET-FI | B48: PETRONAS EFM (NOMURA-FI) | C48: 2 | D48: 0 | E48: 2019-04-15 | F48: 2020-12-31 | G48: NM | H48: 1 | I48: MYR
A49: RHBI-GDMF | B49: RHB ISLAMIC GLOBAL DEVELOPED MARKETS FUND | C49: 1 | D49: 1 | E49: 2015-05-28 | F49: 2020-12-31 | G49: NI | H49: 1 | I49: MYR
A50: SLMAB-LFNP | B50: SUN LIFE (LIFE FUND NON PAR-NA) | C50: 1 | D50: 0 | E50: 2016-04-01 | F50: 2020-12-31 | G50: NM | H50: 1 | I50: MYR
A51: SLMAB-LNUL | B51: SUN LIFE (LNUL-NA) | C51: 1 | D51: 0 | E51: 3000-01-01 | F51: 2020-12-31 | G51: NM | H51: 1 | I51: MYR
A52: SLMTB-FTFPA | B52: SUN LIFE TAKAFUL(FTFPA) | C52: 1 | D52: 1 | E52: 2016-04-01 | F52: 2020-12-31 | G52: NI | H52: 1 | I52: MYR
A53: SOCSO | B53: PERTUBUHAN KESELAMATAN SOSIAL(SOCSO) | C53: 1 | D53: 0 | E53: 2009-11-16 | F53: 2020-12-31 | G53: NM | H53: 1 | I53: MYR
A54: TNB-RBTF | B54: TNB RETIREMENT BENEFIT TRUST FUND | C54: 1 | D54: 0 | E54: 2010-12-15 | F54: 2020-12-31 | G54: NM | H54: 1 | I54: MYR
A55: TNB-RBTFI | B55: MTRUSTEE BHD FOR NOMURA TNB RBTF (EQ) | C55: 1 | D55: 1 | E55: 2021-09-15 | F55: 2021-04-30 | G55: NI | H55: 1 | I55: MYR
A56: UJSB-EQ1 | B56: URUSHARTA JAMAAH SDN BHD (NOMURA 1) | C56: 1 | D56: 1 | E56: 2020-03-26 | F56: 2020-12-31 | G56: NI | H56: 1 | I56: MYR
A57: UJSB-EQ2 | B57: URUSHARTA JAMAAH SDN BHD (NOMURA 2) | C57: 1 | D57: 1 | E57: 2020-03-26 | F57: 2020-12-31 | G57: NI | H57: 1 | I57: MYR
A58: WB-EQ | B58: WARBA BANK K.S.C | C58: 1 | D58: 1 | E58: 2020-02-13 | F58: 2020-12-31 | G58: NM | H58: 1 | I58: USD

Sheet InPortfolio (hidden)
A1: qFundCode | B1: qProductType | C1: qStockCode | D1: qMasterID | E1: UnrealisedGainsStock | F1: UnrealisedGainsExchg | G1: MarketValueFC | H1: MarketValueSC | I1: MaturityDate | J1: UnitFaceValue | K1: PriceCurr | L1: ExchgRate | M1: AccruedInterest | N1: AmortAccreation | O1: CostFC | P1: CostSC | Q1: ExPreAcq | R1: ExPreAcqSC | S1: fRefPrice | T1: PurchaseYTM | U1: PurchaseDate | V1: ValueYTM | W1: BookValue1Int | X1: ValGains | Y1: MarketValueDate | Z1: PreAcqSC | AA1: PreAcqFC | AB1: LastMarketValue | AC1: LCD | AD1: NCD | AE1: Diminution | AF1: qInvType | AG1: CheckValReturn | AH1: AmortAccreationSC | AI1: TIncome | AJ1: PercNAV | AK1: NAV | AL1: CountryName | AM1: StockCurrency | AN1: ISINCode | AO1: BursaCode | AP1: StockName | AQ1: SectorName | AR1: DivReceivable | AS1: ProductGrp | AT1: qCountryID | AU1: UnGain | AV1: UnLoss | AW1: ReportGrp
A2: SOCSO | B2: CSH | C2: RPF*MYR*PBK | D2: CSH*211000973 | E2: 0 | F2: 0 | G2: 10300493.84 | H2: 10300493.84 | I2: 2021-10-25 | J2: 10300000 | K2: 0 | L2: 1 | M2: 493.84 | N2: 0 | O2: 10300000 | P2: 10300000 | Q2: 10301481.51 | R2: 10301481.51 | S2: 1 | T2: 0.0175 | U2: 2021-10-22 | V2: 0 | W2: 10300493.84 | X2: 1481.51 | Y2: 2021-10-22 | Z2: 0 | AA2: 0 | AB2: 0 | AC2: 3000-01-01 | AD2: 3000-01-01 | AE2: 0 | AF2: FVTPL | AG2: 0 | AH2: 0 | AI2: 987.67 | AJ2: 5.385399852 | AK2: 191267020.5 | AL2: MALAYSIA | AM2: MYR | AN2: N/A | AP2: RPF*MYR*PBK | AQ2: UNKNOWN | AR2: 0 | AS2: CSH | AT2: MY | AU2: 493.84 | AV2: 0 | AW2: CSH
A3: SOCSO | B3: EQT | C3: 6075745 | D3: SOCSO*6075745 | E3: 1128019.51 | F3: 0 | G3: 9065357.74 | H3: 9065357.74 | I3: 3000-01-01 | J3: 1733338 | K3: 5.23 | L3: 1 | M3: 0 | N3: 0 | O3: 7937338.23 | P3: 7937338.23 | Q3: 7937338.23 | R3: 7937338.23 | S3: 0 | T3: 0 | U3: 2020-12-31 | V3: 0 | W3: 7937338.23 | X3: 17333.38 | Y3: 2021-10-22 | Z3: 0 | AA3: 0 | AB3: 0 | AC3: 3000-01-01 | AD3: 3000-01-01 | AE3: 0 | AF3: FVTPL | AG3: 0 | AH3: 0 | AI3: 0 | AJ3: 4.739634526 | AK3: 191267020.5 | AL3: MALAYSIA | AM3: MYR | AN3: MYL1023OO000 | AO3: 1023 | AP3: CIMB GROUP HOLDINGS BHD | AQ3: FINANCIAL SERVICES | AR3: 180960.49 | AS3: EQT | AT3: MY | AU3: 1128019.51 | AV3: 0 | AW3: EQT
A4: SOCSO | B4: EQT | C4: 6086242 | D4: SOCSO*6086242 | E4: 96551.07 | F4: 0 | G4: 5152700 | H4: 5152700 | I4: 3000-01-01 | J4: 1190000 | K4: 4.33 | L4: 1 | M4: 0 | N4: 0 | O4: 5056148.93 | P4: 5056148.93 | Q4: 5056148.93 | R4: 5056148.93 | S4: 0 | T4: 0 | U4: 2021-04-09 | V4: 0 | W4: 5056148.93 | X4: 11230.39 | Y4: 2021-10-22 | Z4: 0 | AA4: 0 | AB4: 0 | AC4: 3000-01-01 | AD4: 3000-01-01 | AE4: 0 | AF4: FVTPL | AG4: 0 | AH4: 0 | AI4: 0 | AJ4: 2.693982468 | AK4: 191267020.5 | AL4: MALAYSIA | AM4: MYR | AN4: MYL6947OO005 | AO4: 6947 | AP4: DIGI.COM BHD | AQ4: TELECOMMUNICATIONS & MEDIA | AR4: 0 | AS4: EQT | AT4: MY | AU4: 96551.07 | AV4: 0 | AW4: EQT
A5: SOCSO | B5: EQT | C5: 6113429 | D5: SOCSO*6113429 | E5: 343609.44 | F5: 0 | G5: 3097692 | H5: 3097692 | I5: 3000-01-01 | J5: 1985700 | K5: 1.56 | L5: 1 | M5: 0 | N5: 0 | O5: 2754082.56 | P5: 2754082.56 | Q5: 2754082.56 | R5: 2754082.56 | S5: 0 | T5: 0 | U5: 2021-01-11 | V5: 0 | W5: 2754082.56 | X5: 100529.36 | Y5: 2021-10-22 | Z5: 0 | AA5: 0 | AB5: 0 | AC5: 3000-01-01 | AD5: 3000-01-01 | AE5: 0 | AF5: FVTPL | AG5: 0 | AH5: 0 | AI5: 0 | AJ5: 1.6195641 | AK5: 191267020.5 | AL5: MALAYSIA | AM5: MYR | AN5: MYL6963OO002 | AO5: 6963 | AP5: V.S. INDUSTRY BERHAD | AQ5: INDUSTRIAL PRODUCTS & SERVICES | AR5: 9928.5 | AS5: EQT | AT5: MY | AU5: 343609.44 | AV5: 0 | AW5: EQT
A6: SOCSO | B6: EQT | C6: 6188193 | D6: SOCSO*6188193 | E6: 142947.08 | F6: 0 | G6: 3948000 | H6: 3948000 | I6: 3000-01-01 | J6: 600000 | K6: 6.58 | L6: 1 | M6: 0 | N6: 0 | O6: 3805052.92 | P6: 3805052.92 | Q6: 3805052.92 | R6: 3805052.92 | S6: 0 | T6: 0 | U6: 2021-06-08 | V6: 0 | W6: 3805052.92 | X6: -60000 | Y6: 2021-10-22 | Z6: 0 | AA6: 0 | AB6: 0 | AC6: 3000-01-01 | AD6: 3000-01-01 | AE6: 0 | AF6: FVTPL | AG6: 0 | AH6: 0 | AI6: 0 | AJ6: 2.064130026 | AK6: 191267020.5 | AL6: MALAYSIA | AM6: MYR | AN6: MYL5014OO005 | AO6: 5014 | AP6: MALAYSIA AIRPORTS HLDGS BHD | AQ6: TRANSPORTATION & LOGISTICS | AR6: 0 | AS6: EQT | AT6: MY | AU6: 142947.08 | AV6: 0 | AW6: EQT
A7: SOCSO | B7: EQT | C7: 6244675 | D7: SOCSO*6244675 | E7: 170809.25 | F7: 0 | G7: 6780634.5 | H7: 6780634.5 | I7: 3000-01-01 | J7: 1189585 | K7: 5.7 | L7: 1 | M7: 0 | N7: 0 | O7: 6609825.25 | P7: 6609825.25 | Q7: 6609825.25 | R7: 6609825.25 | S7: 0 | T7: 0 | U7: 2020-12-31 | V7: 0 | W7: 6609825.25 | X7: 0 | Y7: 2021-10-22 | Z7: 0 | AA7: 0 | AB7: 0 | AC7: 3000-01-01 | AD7: 3000-01-01 | AE7: 0 | AF7: FVTPL | AG7: 0 | AH7: 0 | AI7: 0 | AJ7: 3.545114302 | AK7: 191267020.5 | AL7: MALAYSIA | AM7: MYR | AN7: MYL1066OO009 | AO7: 1066 | AP7: RHB BANK BHD | AQ7: FINANCIAL SERVICES | AR7: 178437.75 | AS7: EQT | AT7: MY | AU7: 170809.25 | AV7: 0 | AW7: EQT
A8: SOCSO | B8: EQT | C8: 6336538 | D8: SOCSO*6336538 | E8: 296204.64 | F8: 0 | G8: 1848234 | H8: 1848234 | I8: 3000-01-01 | J8: 407100 | K8: 4.54 | L8: 1 | M8: 0 | N8: 0 | O8: 1552029.36 | P8: 1552029.36 | Q8: 1552029.36 | R8: 1552029.36 | S8: 0 | T8: 0 | U8: 2020-12-31 | V8: 0 | W8: 1552029.36 | X8: 25981.86 | Y8: 2021-10-22 | Z8: 0 | AA8: 0 | AB8: 0 | AC8: 3000-01-01 | AD8: 3000-01-01 | AE8: 0 | AF8: FVTPL | AG8: 0 | AH8: 0 | AI8: 0 | AJ8: 0.9663108648 | AK8: 191267020.5 | AL8: MALAYSIA | AM8: MYR | AN8: MYL5031OO009 | AO8: 5031 | AP8: TIME DOTCOM BHD | AQ8: TELECOMMUNICATIONS & MEDIA | AR8: 0 | AS8: EQT | AT8: MY | AU8: 296204.64 | AV8: 0 | AW8: EQT
A9: SOCSO | B9: EQT | C9: 6359881 | D9: SOCSO*6359881 | E9: -544293.89 | F9: 0 | G9: 3793519.29 | H9: 3793519.29 | I9: 3000-01-01 | J9: 1189191 | K9: 3.19 | L9: 1 | M9: 0 | N9: 0 | O9: 4337813.18 | P9: 4337813.18 | Q9: 4337813.18 | R9: 4337813.18 | S9: 0 | T9: 0 | U9: 2020-12-31 | V9: 0 | W9: 4337813.18 | X9: -11891.91 | Y9: 2021-10-22 | Z9: 0 | AA9: 0 | AB9: 0 | AC9: 3000-01-01 | AD9: 3000-01-01 | AE9: 0 | AF9: FVTPL | AG9: 0 | AH9: 0 | AI9: 0 | AJ9: 1.983362986 | AK9: 191267020.5 | AL9: MALAYSIA | AM9: MYR | AN9: MYL5398OO002 | AO9: 5398 | AP9: GAMUDA BHD | AQ9: CONSTRUCTION | AR9: 0 | AS9: EQT | AT9: MY | AU9: 0 | AV9: -544293.89 | AW9: EQT
A10: SOCSO | B10: EQT | C10: 6436450 | D10: SOCSO*6436450 | E10: 312672.01 | F10: 0 | G10: 4392391.52 | H10: 4392391.52 | I10: 3000-01-01 | J10: 240284 | K10: 18.28 | L10: 1 | M10: 0 | N10: 0 | O10: 4079719.51 | P10: 4079719.51 | Q10: 4079719.51 | R10: 4079719.51 | S10: 0 | T10: 0 | U10: 2020-12-31 | V10: 0 | W10: 4079719.51 | X10: 0 | Y10: 2021-10-22 | Z10: 0 | AA10: 0 | AB10: 0 | AC10: 3000-01-01 | AD10: 3000-01-01 | AE10: 0 | AF10: FVTPL | AG10: 0 | AH10: 0 | AI10: 0 | AJ10: 2.296470928 | AK10: 191267020.5 | AL10: MALAYSIA | AM10: MYR | AN10: MYL1082OO006 | AO10: 1082 | AP10: HONG LEONG FINANCIAL GROUP | AQ10: FINANCIAL SERVICES | AR10: 0 | AS10: EQT | AT10: MY | AU10: 312672.01 | AV10: 0 | AW10: EQT
A11: SOCSO | B11: EQT | C11: 6455217 | D11: SOCSO*6455217 | E11: 389958.38 | F11: 0 | G11: 3064068 | H11: 3064068 | I11: 3000-01-01 | J11: 1621200 | K11: 1.89 | L11: 1 | M11: 0 | N11: 0 | O11: 2674109.62 | P11: 2674109.62 | Q11: 2674109.62 | R11: 2674109.62 | S11: 0 | T11: 0 | U11: 2020-12-31 | V11: 0 | W11: 2674109.62 | X11: -16212 | Y11: 2021-10-22 | Z11: 0 | AA11: 0 | AB11: 0 | AC11: 3000-01-01 | AD11: 3000-01-01 | AE11: 0 | AF11: FVTPL | AG11: 0 | AH11: 0 | AI11: 0 | AJ11: 1.601984488 | AK11: 191267020.5 | AL11: MALAYSIA | AM11: MYR | AN11: MYL3336OO004 | AO11: 3336 | AP11: IJM CORP BHD | AQ11: CONSTRUCTION | AR11: 0 | AS11: EQT | AT11: MY | AU11: 389958.38 | AV11: 0 | AW11: EQT
A12: SOCSO | B12: EQT | C12: 6497446 | D12: SOCSO*6497446 | E12: 25510.99 | F12: 0 | G12: 3045700 | H12: 3045700 | I12: 3000-01-01 | J12: 133000 | K12: 22.9 | L12: 1 | M12: 0 | N12: 0 | O12: 3020189.01 | P12: 3020189.01 | Q12: 3020189.01 | R12: 3020189.01 | S12: 0 | T12: 0 | U12: 2020-12-31 | V12: 0 | W12: 3020189.01 | X12: -26600 | Y12: 2021-10-22 | Z12: 0 | AA12: 0 | AB12: 0 | AC12: 3000-01-01 | AD12: 3000-01-01 | AE12: 0 | AF12: FVTPL | AG12: 0 | AH12: 0 | AI12: 0 | AJ12: 1.59238116 | AK12: 191267020.5 | AL12: MALAYSIA | AM12: MYR | AN12: MYL2445OO004 | AO12: 2445 | AP12: KUALA LUMPUR KEPONG BHD | AQ12: PLANTATION | AR12: 0 | AS12: EQT | AT12: MY | AU12: 25510.99 | AV12: 0 | AW12: EQT
A13: SOCSO | B13: EQT | C13: 6522672 | D13: SOCSO*6522672 | E13: -193704.45 | F13: 0 | G13: 2928800 | H13: 2928800 | I13: 3000-01-01 | J13: 209200 | K13: 14 | L13: 1 | M13: 0 | N13: 0 | O13: 3122504.45 | P13: 3122504.45 | Q13: 3122504.45 | R13: 3122504.45 | S13: 0 | T13: 0 | U13: 2020-12-31 | V13: 0 | W13: 3122504.45 | X13: 8368 | Y13: 2021-10-22 | Z13: 0 | AA13: 0 | AB13: 0 | AC13: 3000-01-01 | AD13: 3000-01-01 | AE13: 0 | AF13: FVTPL | AG13: 0 | AH13: 0 | AI13: 0 | AJ13: 1.531262416 | AK13: 191267020.5 | AL13: MALAYSIA | AM13: MYR | AN13: MYL8621OO004 | AO13: 8621 | AP13: LPI CAPITAL BERHAD | AQ13: FINANCIAL SERVICES | AR13: 0 | AS13: EQT | AT13: MY | AU13: 0 | AV13: -193704.45 | AW13: EQT
A14: SOCSO | B14: EQT | C14: 6556325 | D14: SOCSO*6556325 | E14: -494550.09 | F14: 0 | G14: 14340731.85 | H14: 14340731.85 | I14: 3000-01-01 | J14: 1759599 | K14: 8.15 | L14: 1 | M14: 0 | N14: 0 | O14: 14835281.94 | P14: 14835281.94 | Q14: 14835281.94 | R14: 14835281.94 | S14: 0 | T14: 0 | U14: 2020-12-31 | V14: 0 | W14: 14835281.94 | X14: 0 | Y14: 2021-10-22 | Z14: 0 | AA14: 0 | AB14: 0 | AC14: 3000-01-01 | AD14: 3000-01-01 | AE14: 0 | AF14: FVTPL | AG14: 0 | AH14: 0 | AI14: 0 | AJ14: 7.497754611 | AK14: 191267020.5 | AL14: MALAYSIA | AM14: MYR | AN14: MYL1155OO000 | AO14: 1155 | AP14: MALAYAN BANKING BHD | AQ14: FINANCIAL SERVICES | AR14: 0 | AS14: EQT | AT14: MY | AU14: 0 | AV14: -494550.09 | AW14: EQT
A15: SOCSO | B15: EQT | C15: 6556693 | D15: SOCSO*6556693 | E15: 171848.89 | F15: 0 | G15: 3732800 | H15: 3732800 | I15: 3000-01-01 | J15: 80000 | K15: 46.66 | L15: 1 | M15: 0 | N15: 0 | O15: 3560951.11 | P15: 3560951.11 | Q15: 3560951.11 | R15: 3560951.11 | S15: 0 | T15: 0 | U15: 2021-08-18 | V15: 0 | W15: 3560951.11 | X15: -68800 | Y15: 2021-10-22 | Z15: 0 | AA15: 0 | AB15: 0 | AC15: 3000-01-01 | AD15: 3000-01-01 | AE15: 0 | AF15: FVTPL | AG15: 0 | AH15: 0 | AI15: 0 | AJ15: 1.951617163 | AK15: 191267020.5 | AL15: MALAYSIA | AM15: MYR | AN15: MYL3867OO008 | AO15: 3867 | AP15: MALAYSIAN PACIFIC INDUSTRIES | AQ15: TECHNOLOGY | AR15: 0 | AS15: EQT | AT15: MY | AU15: 171848.89 | AV15: 0 | AW15: EQT
A16: SOCSO | B16: EQT | C16: 6575740 | D16: SOCSO*6575740 | E16: 1521309.8 | F16: 0 | G16: 3993462.4 | H16: 3993462.4 | I16: 3000-01-01 | J16: 1085180 | K16: 3.68 | L16: 1 | M16: 0 | N16: 0 | O16: 2472152.6 | P16: 2472152.6 | Q16: 2472152.6 | R16: 2472152.6 | S16: 0 | T16: 0 | U16: 2020-12-31 | V16: 0 | W16: 2472152.6 | X16: -32555.4 | Y16: 2021-10-22 | Z16: 0 | AA16: 0 | AB16: 0 | AC16: 3000-01-01 | AD16: 3000-01-01 | AE16: 0 | AF16: FVTPL | AG16: 0 | AH16: 0 | AI16: 0 | AJ16: 2.0878991 | AK16: 191267020.5 | AL16: MALAYSIA | AM16: MYR | AN16: MYL3069OO001 | AO16: 3069 | AP16: MEGA FIRST CORP BHD | AQ16: UTILITIES | AR16: 0 | AS16: EQT | AT16: MY | AU16: 1521309.8 | AV16: 0 | AW16: EQT
A17: SOCSO | B17: EQT | C17: 6658317 | D17: SOCSO*6658317 | E17: 66985.32 | F17: 0 | G17: 3252000 | H17: 3252000 | I17: 3000-01-01 | J17: 600000 | K17: 5.42 | L17: 1 | M17: 0 | N17: 0 | O17: 3185014.68 | P17: 3185014.68 | Q17: 3185014.68 | R17: 3185014.68 | S17: 0 | T17: 0 | U17: 2020-12-31 | V17: 0 | W17: 3185014.68 | X17: -108000 | Y17: 2021-10-22 | Z17: 0 | AA17: 0 | AB17: 0 | AC17: 3000-01-01 | AD17: 3000-01-01 | AE17: 0 | AF17: FVTPL | AG17: 0 | AH17: 0 | AI17: 0 | AJ17: 1.700240842 | AK17: 191267020.5 | AL17: MALAYSIA | AM17: MYR | AN17: MYL7160OO004 | AO17: 7160 | AP17: PENTAMASTER CORP BHD | AQ17: TECHNOLOGY | AR17: 0 | AS17: EQT | AT17: MY | AU17: 66985.32 | AV17: 0 | AW17: EQT
A18: SOCSO | B18: EQT | C18: 6703972 | D18: SOCSO*6703972 | E18: -42960.79 | F18: 0 | G18: 1911960 | H18: 1911960 | I18: 3000-01-01 | J18: 113000 | K18: 16.92 | L18: 1 | M18: 0 | N18: 0 | O18: 1954920.79 | P18: 1954920.79 | Q18: 1954920.79 | R18: 1954920.79 | S18: 0 | T18: 0 | U18: 2020-12-31 | V18: 0 | W18: 1954920.79 | X18: -2260 | Y18: 2021-10-22 | Z18: 0 | AA18: 0 | AB18: 0 | AC18: 3000-01-01 | AD18: 3000-01-01 | AE18: 0 | AF18: FVTPL | AG18: 0 | AH18: 0 | AI18: 0 | AJ18: 0.999628684 | AK18: 191267020.5 | AL18: MALAYSIA | AM18: MYR | AN18: MYL6033OO004 | AO18: 6033 | AP18: PETRONAS GAS BHD | AQ18: UTILITIES | AR18: 0 | AS18: EQT | AT18: MY | AU18: 0 | AV18: -42960.79 | AW18: EQT
A19: SOCSO | B19: EQT | C19: 6868398 | D19: SOCSO*6868398 | E19: 984405.04 | F19: 0 | G19: 4570800 | H19: 4570800 | I19: 3000-01-01 | J19: 780000 | K19: 5.86 | L19: 1 | M19: 0 | N19: 0 | O19: 3586394.96 | P19: 3586394.96 | Q19: 3586394.96 | R19: 3586394.96 | S19: 0 | T19: 0 | U19: 2020-12-31 | V19: 0 | W19: 3586394.96 | X19: -15600 | Y19: 2021-10-22 | Z19: 0 | AA19: 0 | AB19: 0 | AC19: 3000-01-01 | AD19: 3000-01-01 | AE19: 0 | AF19: FVTPL | AG19: 0 | AH19: 0 | AI19: 0 | AJ19: 2.389748106 | AK19: 191267020.5 | AL19: MALAYSIA | AM19: MYR | AN19: MYL4863OO006 | AO19: 4863 | AP19: TELEKOM MALAYSIA BHD | AQ19: TELECOMMUNICATIONS & MEDIA | AR19: 0 | AS19: EQT | AT19: MY | AU19: 984405.04 | AV19: 0 | AW19: EQT
A20: SOCSO | B20: EQT | C20: 6868774 | D20: SOCSO*6868774 | E20: 799365.36 | F20: 0 | G20: 4205000 | H20: 4205000 | I20: 3000-01-01 | J20: 2900000 | K20: 1.45 | L20: 1 | M20: 0 | N20: 0 | O20: 3405634.64 | P20: 3405634.64 | Q20: 3405634.64 | R20: 3405634.64 | S20: 0 | T20: 0 | U20: 2021-07-27 | V20: 0 | W20: 3405634.64 | X20: 58000 | Y20: 2021-10-22 | Z20: 0 | AA20: 0 | AB20: 0 | AC20: 3000-01-01 | AD20: 3000-01-01 | AE20: 0 | AF20: FVTPL | AG20: 0 | AH20: 0 | AI20: 0 | AJ20: 2.198497153 | AK20: 191267020.5 | AL20: MALAYSIA | AM20: MYR | AN20: MYL8664OO004 | AO20: 8664 | AP20: SP SETIA BHD | AQ20: PROPERTY | AR20: 0 | AS20: EQT | AT20: MY | AU20: 799365.36 | AV20: 0 | AW20: EQT
A21: SOCSO | B21: EQT | C21: 6904612 | D21: SOCSO*6904612 | E21: -660346.5 | F21: 0 | G21: 9765124 | H21: 9765124 | I21: 3000-01-01 | J21: 1000525 | K21: 9.76 | L21: 1 | M21: 0 | N21: 0 | O21: 10425470.5 | P21: 10425470.5 | Q21: 10425470.5 | R21: 10425470.5 | S21: 0 | T21: 0 | U21: 2020-12-31 | V21: 0 | W21: 10425470.5 | X21: 0 | Y21: 2021-10-22 | Z21: 0 | AA21: 0 | AB21: 0 | AC21: 3000-01-01 | AD21: 3000-01-01 | AE21: 0 | AF21: FVTPL | AG21: 0 | AH21: 0 | AI21: 0 | AJ21: 5.10549282 | AK21: 191267020.5 | AL21: MALAYSIA | AM21: MYR | AN21: MYL5347OO009 | AO21: 5347 | AP21: TENAGA NASIONAL BHD | AQ21: UTILITIES | AR21: 0 | AS21: EQT | AT21: MY | AU21: 0 | AV21: -660346.5 | AW21: EQT
A22: SOCSO | B22: EQT | C22: 6986717 | D22: SOCSO*6986717 | E22: -15666.1 | F22: 0 | G22: 2968200 | H22: 2968200 | I22: 3000-01-01 | J22: 510000 | K22: 5.82 | L22: 1 | M22: 0 | N22: 0 | O22: 2983866.1 | P22: 2983866.1 | Q22: 2983866.1 | R22: 2983866.1 | S22: 0 | T22: 0 | U22: 2020-12-31 | V22: 0 | W22: 2983866.1 | X22: 50985.54 | Y22: 2021-10-22 | Z22: 0 | AA22: 0 | AB22: 0 | AC22: 3000-01-01 | AD22: 3000-01-01 | AE22: 0 | AF22: FVTPL | AG22: 0 | AH22: 0 | AI22: 0 | AJ22: 1.55186189 | AK22: 191267020.5 | AL22: MALAYSIA | AM22: MYR | AN22: MYL7293OO003 | AO22: 7293 | AP22: YINSON HOLDINGS BHD | AQ22: ENERGY | AR22: 0 | AS22: EQT | AT22: MY | AU22: 0 | AV22: -15666.1 | AW22: EQT
A23: SOCSO | B23: EQT | C23: B00MRS2 | D23: SOCSO*B00MRS2 | E23: -465228.85 | F23: 0 | G23: 4597892.64 | H23: 4597892.64 | I23: 3000-01-01 | J23: 1548112 | K23: 2.97 | L23: 1 | M23: 0 | N23: 0 | O23: 5063121.49 | P23: 5063121.49 | Q23: 5063121.49 | R23: 5063121.49 | S23: 0 | T23: 0 | U23: 2020-12-31 | V23: 0 | W23: 5063121.49 | X23: 15481.12 | Y23: 2021-10-22 | Z23: 0 | AA23: 0 | AB23: 0 | AC23: 3000-01-01 | AD23: 3000-01-01 | AE23: 0 | AF23: FVTPL | AG23: 0 | AH23: 0 | AI23: 0 | AJ23: 2.403912932 | AK23: 191267020.5 | AL23: MALAYSIA | AM23: MYR | AN23: MYL7277OO006 | AO23: 7277 | AP23: DIALOG GROUP BHD | AQ23: ENERGY | AR23: 0 | AS23: EQT | AT23: MY | AU23: 0 | AV23: -465228.85 | AW23: EQT
A24: SOCSO | B24: EQT | C24: B012W42 | D24: SOCSO*B012W42 | E24: 868496.35 | F24: 0 | G24: 11274007.5 | H24: 11274007.5 | I24: 3000-01-01 | J24: 2665250 | K24: 4.23 | L24: 1 | M24: 0 | N24: 0 | O24: 10405511.15 | P24: 10405511.15 | Q24: 10405511.15 | R24: 10405511.15 | S24: 0 | T24: 0 | U24: 2020-12-31 | V24: 0 | W24: 10405511.15 | X24: 26652.5 | Y24: 2021-10-22 | Z24: 0 | AA24: 0 | AB24: 0 | AC24: 3000-01-01 | AD24: 3000-01-01 | AE24: 0 | AF24: FVTPL | AG24: 0 | AH24: 0 | AI24: 0 | AJ24: 5.894381305 | AK24: 191267020.5 | AL24: MALAYSIA | AM24: MYR | AN24: MYL1295OO004 | AO24: 1295 | AP24: PUBLIC BANK BERHAD | AQ24: FINANCIAL SERVICES | AR24: 0 | AS24: EQT | AT24: MY | AU24: 868496.35 | AV24: 0 | AW24: EQT
A25: SOCSO | B25: EQT | C25: B03DHR1 | D25: SOCSO*B03DHR1 | E25: -3553.45 | F25: 0 | G25: 1840930 | H25: 1840930 | I25: 3000-01-01 | J25: 1011500 | K25: 1.82 | L25: 1 | M25: 0 | N25: 0 | O25: 1844483.45 | P25: 1844483.45 | Q25: 1844483.45 | R25: 1844483.45 | S25: 0 | T25: 0 | U25: 2021-01-18 | V25: 0 | W25: 1844483.45 | X25: 20230 | Y25: 2021-10-22 | Z25: 0 | AA25: 0 | AB25: 0 | AC25: 3000-01-01 | AD25: 3000-01-01 | AE25: 0 | AF25: FVTPL | AG25: 0 | AH25: 0 | AI25: 0 | AJ25: 0.9624921197 | AK25: 191267020.5 | AL25: MALAYSIA | AM25: MYR | AN25: MYL7155OO004 | AO25: 7155 | AP25: SKP RESOURCES BHD | AQ25: INDUSTRIAL PRODUCTS & SERVICES | AR25: 51731.05 | AS25: EQT | AT25: MY | AU25: 0 | AV25: -3553.45 | AW25: EQT
A26: SOCSO | B26: EQT | C26: B05DWZ2 | D26: SOCSO*B05DWZ2 | E26: 231187.64 | F26: 0 | G26: 2204000 | H26: 2204000 | I26: 3000-01-01 | J26: 380000 | K26: 5.8 | L26: 1 | M26: 0 | N26: 0 | O26: 1972812.36 | P26: 1972812.36 | Q26: 1972812.36 | R26: 1972812.36 | S26: 0 | T26: 0 | U26: 2021-09-08 | V26: 0 | W26: 1972812.36 | X26: -19000 | Y26: 2021-10-22 | Z26: 0 | AA26: 0 | AB26: 0 | AC26: 3000-01-01 | AD26: 3000-01-01 | AE26: 0 | AF26: FVTPL | AG26: 0 | AH26: 0 | AI26: 0 | AJ26: 1.152315749 | AK26: 191267020.5 | AL26: MALAYSIA | AM26: MYR | AN26: MYL7204OO000 | AO26: 7204 | AP26: D&O GREEN TECHNOLOGIES BHD | AQ26: TECHNOLOGY | AR26: 0 | AS26: EQT | AT26: MY | AU26: 231187.64 | AV26: 0 | AW26: EQT
A27: SOCSO | B27: EQT | C27: B0CMCL8 | D27: SOCSO*B0CMCL8 | E27: 160300.02 | F27: 0 | G27: 3203255.25 | H27: 3203255.25 | I27: 3000-01-01 | J27: 1642695 | K27: 1.95 | L27: 1 | M27: 0 | N27: 0 | O27: 3042955.23 | P27: 3042955.23 | Q27: 3042955.23 | R27: 3042955.23 | S27: 0 | T27: 0 | U27: 2020-12-31 | V27: 0 | W27: 3042955.23 | X27: -16426.95 | Y27: 2021-10-22 | Z27: 0 | AA27: 0 | AB27: 0 | AC27: 3000-01-01 | AD27: 3000-01-01 | AE27: 0 | AF27: FVTPL | AG27: 0 | AH27: 0 | AI27: 0 | AJ27: 1.674755659 | AK27: 191267020.5 | AL27: MALAYSIA | AM27: MYR | AN27: MYL5106TO008 | AO27: 5106 | AP27: AXIS REAL ESTATE INVESTMENT | AQ27: REAL ESTATE INVESTMENT TRUSTS | AR27: 0 | AS27: EQT | AT27: MY | AU27: 160300.02 | AV27: 0 | AW27: EQT
A28: SOCSO | B28: EQT | C28: B0KLDR0 | D28: SOCSO*B0KLDR0 | E28: 349211.33 | F28: 0 | G28: 1901050 | H28: 1901050 | I28: 3000-01-01 | J28: 96500 | K28: 19.7 | L28: 1 | M28: 0 | N28: 0 | O28: 1551838.67 | P28: 1551838.67 | Q28: 1551838.67 | R28: 1551838.67 | S28: 0 | T28: 0 | U28: 2020-12-31 | V28: 0 | W28: 1551838.67 | X28: -29660.35 | Y28: 2021-10-22 | Z28: 0 | AA28: 0 | AB28: 0 | AC28: 3000-01-01 | AD28: 3000-01-01 | AE28: 0 | AF28: FVTPL | AG28: 0 | AH28: 0 | AI28: 0 | AJ28: 0.9939246165 | AK28: 191267020.5 | AL28: MALAYSIA | AM28: MYR | AN28: MYQ0097OO004 | AO28: 0097 | AP28: VITROX CORP BHD | AQ28: TECHNOLOGY | AR28: 0 | AS28: EQT | AT28: MY | AU28: 349211.33 | AV28: 0 | AW28: EQT
A29: SOCSO | B29: EQT | C29: B1VZ5G1 | D29: SOCSO*B1VZ5G1 | E29: 1120243.4 | F29: 0 | G29: 2525202 | H29: 2525202 | I29: 3000-01-01 | J29: 545400 | K29: 4.63 | L29: 1 | M29: 0 | N29: 0 | O29: 1404958.6 | P29: 1404958.6 | Q29: 1404958.6 | R29: 1404958.6 | S29: 0 | T29: 0 | U29: 2020-12-31 | V29: 0 | W29: 1404958.6 | X29: -32724 | Y29: 2021-10-22 | Z29: 0 | AA29: 0 | AB29: 0 | AC29: 3000-01-01 | AD29: 3000-01-01 | AE29: 0 | AF29: FVTPL | AG29: 0 | AH29: 0 | AI29: 0 | AJ29: 1.320249562 | AK29: 191267020.5 | AL29: MALAYSIA | AM29: MYR | AN29: MYL4731OO005 | AO29: 4731 | AP29: SCIENTEX BHD | AQ29: INDUSTRIAL PRODUCTS & SERVICES | AR29: 0 | AS29: EQT | AT29: MY | AU29: 1120243.4 | AV29: 0 | AW29: EQT
A30: SOCSO | B30: EQT | C30: B29H4P8 | D30: SOCSO*B29H4P8 | E30: 448042.83 | F30: 0 | G30: 2916679.92 | H30: 2916679.92 | I30: 3000-01-01 | J30: 212586 | K30: 13.72 | L30: 1 | M30: 0 | N30: 0 | O30: 2468637.09 | P30: 2468637.09 | Q30: 2468637.09 | R30: 2468637.09 | S30: 0 | T30: 0 | U30: 2020-12-31 | V30: 0 | W30: 2468637.09 | X30: 34013.76 | Y30: 2021-10-22 | Z30: 0 | AA30: 0 | AB30: 0 | AC30: 3000-01-01 | AD30: 3000-01-01 | AE30: 0 | AF30: FVTPL | AG30: 0 | AH30: 0 | AI30: 0 | AJ30: 1.524925684 | AK30: 191267020.5 | AL30: MALAYSIA | AM30: MYR | AN30: MYL5139OO000 | AO30: 5139 | AP30: AEON CREDIT SERVICE M BHD | AQ30: FINANCIAL SERVICES | AR30: 60587.01 | AS30: EQT | AT30: MY | AU30: 448042.83 | AV30: 0 | AW30: EQT
A31: SOCSO | B31: EQT | C31: B29TTR1 | D31: SOCSO*B29TTR1 | E31: 27808.8 | F31: 0 | G31: 5593140 | H31: 5593140 | I31: 3000-01-01 | J31: 2431800 | K31: 2.3 | L31: 1 | M31: 0 | N31: 0 | O31: 5565331.2 | P31: 5565331.2 | Q31: 5565331.2 | R31: 5565331.2 | S31: 0 | T31: 0 | U31: 2020-12-31 | V31: 0 | W31: 5565331.2 | X31: -24318 | Y31: 2021-10-22 | Z31: 0 | AA31: 0 | AB31: 0 | AC31: 3000-01-01 | AD31: 3000-01-01 | AE31: 0 | AF31: FVTPL | AG31: 0 | AH31: 0 | AI31: 0 | AJ31: 2.924257399 | AK31: 191267020.5 | AL31: MALAYSIA | AM31: MYR | AN31: MYL4197OO009 | AO31: 4197 | AP31: SIME DARBY BERHAD | AQ31: CONSUMER PRODUCTS & SERVICES | AR31: 0 | AS31: EQT | AT31: MY | AU31: 27808.8 | AV31: 0 | AW31: EQT
A32: SOCSO | B32: EQT | C32: B2QZGV5 | D32: SOCSO*B2QZGV5 | E32: 210124.63 | F32: 0 | G32: 3150800 | H32: 3150800 | I32: 3000-01-01 | J32: 787700 | K32: 4 | L32: 1 | M32: 0 | N32: 0 | O32: 2940675.37 | P32: 2940675.37 | Q32: 2940675.37 | R32: 2940675.37 | S32: 0 | T32: 0 | U32: 2020-12-31 | V32: 0 | W32: 2940675.37 | X32: -23631 | Y32: 2021-10-22 | Z32: 0 | AA32: 0 | AB32: 0 | AC32: 3000-01-01 | AD32: 3000-01-01 | AE32: 0 | AF32: FVTPL | AG32: 0 | AH32: 0 | AI32: 0 | AJ32: 1.647330518 | AK32: 191267020.5 | AL32: MALAYSIA | AM32: MYR | AN32: MYL6888OO001 | AO32: 6888 | AP32: AXIATA GROUP BERHAD | AQ32: TELECOMMUNICATIONS & MEDIA | AR32: 0 | AS32: EQT | AT32: MY | AU32: 210124.63 | AV32: 0 | AW32: EQT
A33: SOCSO | B33: EQT | C33: B54JP79 | D33: SOCSO*B54JP79 | E33: 1004997.98 | F33: 0 | G33: 2761900 | H33: 2761900 | I33: 3000-01-01 | J33: 710000 | K33: 3.89 | L33: 1 | M33: 0 | N33: 0 | O33: 1756902.02 | P33: 1756902.02 | Q33: 1756902.02 | R33: 1756902.02 | S33: 0 | T33: 0 | U33: 2020-12-31 | V33: 0 | W33: 1756902.02 | X33: -28400 | Y33: 2021-10-22 | Z33: 0 | AA33: 0 | AB33: 0 | AC33: 3000-01-01 | AD33: 3000-01-01 | AE33: 0 | AF33: FVTPL | AG33: 0 | AH33: 0 | AI33: 0 | AJ33: 1.444002208 | AK33: 191267020.5 | AL33: MALAYSIA | AM33: MYR | AN33: MYQ0166OO007 | AO33: 0166 | AP33: INARI AMERTRON BHD | AQ33: TECHNOLOGY | AR33: 0 | AS33: EQT | AT33: MY | AU33: 1004997.98 | AV33: 0 | AW33: EQT
A34: SOCSO | B34: EQT | C34: B5KQGT3 | D34: SOCSO*B5KQGT3 | E34: 1095872.17 | F34: 0 | G34: 9278692 | H34: 9278692 | I34: 3000-01-01 | J34: 1053200 | K34: 8.81 | L34: 1 | M34: 0 | N34: 0 | O34: 8182819.83 | P34: 8182819.83 | Q34: 8182819.83 | R34: 8182819.83 | S34: 0 | T34: 0 | U34: 2020-12-31 | V34: 0 | W34: 8182819.83 | X34: -10532 | Y34: 2021-10-22 | Z34: 0 | AA34: 0 | AB34: 0 | AC34: 3000-01-01 | AD34: 3000-01-01 | AE34: 0 | AF34: FVTPL | AG34: 0 | AH34: 0 | AI34: 0 | AJ34: 4.851171925 | AK34: 191267020.5 | AL34: MALAYSIA | AM34: MYR | AN34: MYL5183OO008 | AO34: 5183 | AP34: PETRONAS CHEMICALS GROUP BHD | AQ34: INDUSTRIAL PRODUCTS & SERVICES | AR34: 0 | AS34: EQT | AT34: MY | AU34: 1095872.17 | AV34: 0 | AW34: EQT
A35: SOCSO | B35: EQT | C35: B62QFR9 | D35: SOCSO*B62QFR9 | E35: -192692.34 | F35: 0 | G35: 730000 | H35: 730000 | I35: 3000-01-01 | J35: 500000 | K35: 1.46 | L35: 1 | M35: 0 | N35: 0 | O35: 922692.34 | P35: 922692.34 | Q35: 922692.34 | R35: 922692.34 | S35: 0 | T35: 0 | U35: 2020-12-31 | V35: 0 | W35: 922692.34 | X35: 0 | Y35: 2021-10-22 | Z35: 0 | AA35: 0 | AB35: 0 | AC35: 3000-01-01 | AD35: 3000-01-01 | AE35: 0 | AF35: FVTPL | AG35: 0 | AH35: 0 | AI35: 0 | AJ35: 0.3816653797 | AK35: 191267020.5 | AL35: MALAYSIA | AM35: MYR | AN35: MYL5176TO001 | AO35: 5176 | AP35: SUNWAY REAL ESTATE INVESTMEN | AQ35: REAL ESTATE INVESTMENT TRUSTS | AR35: 0 | AS35: EQT | AT35: MY | AU35: 0 | AV35: -192692.34 | AW35: EQT
A36: SOCSO | B36: EQT | C36: B6VGS93 | D36: SOCSO*B6VGS93 | E36: 340855.99 | F36: 0 | G36: 4392255 | H36: 4392255 | I36: 3000-01-01 | J36: 2481500 | K36: 1.77 | L36: 1 | M36: 0 | N36: 0 | O36: 4051399.01 | P36: 4051399.01 | Q36: 4051399.01 | R36: 4051399.01 | S36: 0 | T36: 0 | U36: 2020-12-31 | V36: 0 | W36: 4051399.01 | X36: 74445 | Y36: 2021-10-22 | Z36: 0 | AA36: 0 | AB36: 0 | AC36: 3000-01-01 | AD36: 3000-01-01 | AE36: 0 | AF36: FVTPL | AG36: 0 | AH36: 0 | AI36: 0 | AJ36: 2.296399551 | AK36: 191267020.5 | AL36: MALAYSIA | AM36: MYR | AN36: MYL5211OO007 | AO36: 5211 | AP36: SUNWAY BHD | AQ36: INDUSTRIAL PRODUCTS & SERVICES | AR36: 0 | AS36: EQT | AT36: MY | AU36: 340855.99 | AV36: 0 | AW36: EQT
A37: SOCSO | B37: EQT | C37: B79YDV3 | D37: SOCSO*B79YDV3 | E37: -222441.96 | F37: 0 | G37: 1435280 | H37: 1435280 | I37: 3000-01-01 | J37: 1025200 | K37: 1.4 | L37: 1 | M37: 0 | N37: 0 | O37: 1657721.96 | P37: 1657721.96 | Q37: 1657721.96 | R37: 1657721.96 | S37: 0 | T37: 0 | U37: 2020-12-31 | V37: 0 | W37: 1657721.96 | X37: 0 | Y37: 2021-10-22 | Z37: 0 | AA37: 0 | AB37: 0 | AC37: 3000-01-01 | AD37: 3000-01-01 | AE37: 0 | AF37: FVTPL | AG37: 0 | AH37: 0 | AI37: 0 | AJ37: 0.7504064193 | AK37: 191267020.5 | AL37: MALAYSIA | AM37: MYR | AN37: MYL5212TO004 | AO37: 5212 | AP37: PAVILION REAL ESTATE INVEST | AQ37: REAL ESTATE INVESTMENT TRUSTS | AR37: 0 | AS37: EQT | AT37: MY | AU37: 0 | AV37: -222441.96 | AW37: EQT
A38: SOCSO | B38: EQT | C38: B83X6P8 | D38: SOCSO*B83X6P8 | E38: 986215.17 | F38: 0 | G38: 6910200 | H38: 6910200 | I38: 3000-01-01 | J38: 1047000 | K38: 6.6 | L38: 1 | M38: 0 | N38: 0 | O38: 5923984.83 | P38: 5923984.83 | Q38: 5923984.83 | R38: 5923984.83 | S38: 0 | T38: 0 | U38: 2020-12-31 | V38: 0 | W38: 5923984.83 | X38: -52350 | Y38: 2021-10-22 | Z38: 0 | AA38: 0 | AB38: 0 | AC38: 3000-01-01 | AD38: 3000-01-01 | AE38: 0 | AF38: FVTPL | AG38: 0 | AH38: 0 | AI38: 0 | AJ38: 3.61285494 | AK38: 191267020.5 | AL38: MALAYSIA | AM38: MYR | AN38: MYL5225OO007 | AO38: 5225 | AP38: IHH HEALTHCARE BHD | AQ38: HEALTH CARE | AR38: 0 | AS38: EQT | AT38: MY | AU38: 986215.17 | AV38: 0 | AW38: EQT
A39: SOCSO | B39: EQT | C39: B89JCF2 | D39: SOCSO*B89JCF2 | E39: 16174.4 | F39: 0 | G39: 1850352 | H39: 1850352 | I39: 3000-01-01 | J39: 1101400 | K39: 1.68 | L39: 1 | M39: 0 | N39: 0 | O39: 1834177.6 | P39: 1834177.6 | Q39: 1834177.6 | R39: 1834177.6 | S39: 0 | T39: 0 | U39: 2020-12-31 | V39: 0 | W39: 1834177.6 | X39: -11014 | Y39: 2021-10-22 | Z39: 0 | AA39: 0 | AB39: 0 | AC39: 3000-01-01 | AD39: 3000-01-01 | AE39: 0 | AF39: FVTPL | AG39: 0 | AH39: 0 | AI39: 0 | AJ39: 0.9674182172 | AK39: 191267020.5 | AL39: MALAYSIA | AM39: MYR | AN39: MYL5227TO002 | AO39: 5227 | AP39: IGB REAL ESTATE INVESTMENT T | AQ39: REAL ESTATE INVESTMENT TRUSTS | AR39: 0 | AS39: EQT | AT39: MY | AU39: 16174.4 | AV39: 0 | AW39: EQT
A40: SOCSO | B40: EQT | C40: BDFM1K8 | D40: SOCSO*BDFM1K8 | E40: 219355.19 | F40: 0 | G40: 2583696 | H40: 2583696 | I40: 3000-01-01 | J40: 566600 | K40: 4.56 | L40: 1 | M40: 0 | N40: 0 | O40: 2364340.81 | P40: 2364340.81 | Q40: 2364340.81 | R40: 2364340.81 | S40: 0 | T40: 0 | U40: 2020-12-31 | V40: 0 | W40: 2364340.81 | X40: -5666 | Y40: 2021-10-22 | Z40: 0 | AA40: 0 | AB40: 0 | AC40: 3000-01-01 | AD40: 3000-01-01 | AE40: 0 | AF40: FVTPL | AG40: 0 | AH40: 0 | AI40: 0 | AJ40: 1.350831938 | AK40: 191267020.5 | AL40: MALAYSIA | AM40: MYR | AN40: MYL5246OO003 | AO40: 5246 | AP40: WESTPORTS HOLDINGS BHD | AQ40: TRANSPORTATION & LOGISTICS | AR40: 0 | AS40: EQT | AT40: MY | AU40: 219355.19 | AV40: 0 | AW40: EQT
A41: SOCSO | B41: EQT | C41: BF0J5S4 | D41: SOCSO*BF0J5S4 | E41: 1537618.1 | F41: 0 | G41: 7072500 | H41: 7072500 | I41: 3000-01-01 | J41: 1230000 | K41: 5.75 | L41: 1 | M41: 0 | N41: 0 | O41: 5534881.9 | P41: 5534881.9 | Q41: 5534881.9 | R41: 5534881.9 | S41: 0 | T41: 0 | U41: 2021-01-11 | V41: 0 | W41: 5534881.9 | X41: 61500 | Y41: 2021-10-22 | Z41: 0 | AA41: 0 | AB41: 0 | AC41: 3000-01-01 | AD41: 3000-01-01 | AE41: 0 | AF41: FVTPL | AG41: 0 | AH41: 0 | AI41: 0 | AJ41: 3.697710134 | AK41: 191267020.5 | AL41: MALAYSIA | AM41: MYR | AN41: MYL8869OO009 | AO41: 8869 | AP41: PRESS METAL ALUMINIUM HOLDIN | AQ41: INDUSTRIAL PRODUCTS & SERVICES | AR41: 0 | AS41: EQT | AT41: MY | AU41: 1537618.1 | AV41: 0 | AW41: EQT
A42: SOCSO | B42: EQT | C42: BJ17CJ5 | D42: SOCSO*BJ17CJ5 | E42: 997725.95 | F42: 0 | G42: 1591200 | H42: 1591200 | I42: 3000-01-01 | J42: 260000 | K42: 6.12 | L42: 1 | M42: 0 | N42: 0 | O42: 593474.05 | P42: 593474.05 | Q42: 593474.05 | R42: 593474.05 | S42: 0 | T42: 0 | U42: 2020-12-31 | V42: 0 | W42: 593474.05 | X42: -18200 | Y42: 2021-10-22 | Z42: 0 | AA42: 0 | AB42: 0 | AC42: 3000-01-01 | AD42: 3000-01-01 | AE42: 0 | AF42: FVTPL | AG42: 0 | AH42: 0 | AI42: 0 | AJ42: 0.8319259618 | AK42: 191267020.5 | AL42: MALAYSIA | AM42: MYR | AN42: MYL5292OO007 | AO42: 5292 | AP42: UWC BHD | AQ42: TECHNOLOGY | AR42: 0 | AS42: EQT | AT42: MY | AU42: 997725.95 | AV42: 0 | AW42: EQT
A43: SOCSO | B43: EQT | C43: BKRQ635 | D43: SOCSO*BKRQ635 | E43: 976074.34 | F43: 0 | G43: 3286485 | H43: 3286485 | I43: 3000-01-01 | J43: 1651500 | K43: 1.99 | L43: 1 | M43: 0 | N43: 0 | O43: 2310410.66 | P43: 2310410.66 | Q43: 2310410.66 | R43: 2310410.66 | S43: 0 | T43: 0 | U43: 2020-12-31 | V43: 0 | W43: 2310410.66 | X43: -165150 | Y43: 2021-10-22 | Z43: 0 | AA43: 0 | AB43: 0 | AC43: 3000-01-01 | AD43: 3000-01-01 | AE43: 0 | AF43: FVTPL | AG43: 0 | AH43: 0 | AI43: 0 | AJ43: 1.71827061 | AK43: 191267020.5 | AL43: MALAYSIA | AM43: MYR | AN43: MYL5293OO005 | AO43: 5293 | AP43: AME ELITE CONSORTIUM BHD | AQ43: CONSTRUCTION | AR43: 0 | AS43: EQT | AT43: MY | AU43: 976074.34 | AV43: 0 | AW43: EQT
A44: SOCSO | B44: EQT | C44: BN4JBJ9 | D44: SOCSO*BN4JBJ9 | E44: -37196.14 | F44: 0 | G44: 518256 | H44: 518256 | I44: 3000-01-01 | J44: 141600 | K44: 3.66 | L44: 1 | M44: 0 | N44: 0 | O44: 555452.14 | P44: 555452.14 | Q44: 555452.14 | R44: 555452.14 | S44: 0 | T44: 0 | U44: 2021-04-20 | V44: 0 | W44: 555452.14 | X44: 1416 | Y44: 2021-10-22 | Z44: 0 | AA44: 0 | AB44: 0 | AC44: 3000-01-01 | AD44: 3000-01-01 | AE44: 0 | AF44: FVTPL | AG44: 0 | AH44: 0 | AI44: 0 | AJ44: 0.2709594151 | AK44: 191267020.5 | AL44: MALAYSIA | AM44: MYR | AN44: MYL5296OO008 | AO44: 5296 | AP44: MR DIY GROUP M BHD | AQ44: CONSUMER PRODUCTS & SERVICES | AR44: 0 | AS44: EQT | AT44: MY | AU44: 0 | AV44: -37196.14 | AW44: EQT
A45: SOCSO | B45: EQT | C45: BN7GZ51 | D45: SOCSO*BN7GZ51 | E45: 397573.32 | F45: 0 | G45: 951180 | H45: 951180 | I45: 3000-01-01 | J45: 498000 | K45: 1.91 | L45: 1 | M45: 0 | N45: 0 | O45: 553606.68 | P45: 553606.68 | Q45: 553606.68 | R45: 553606.68 | S45: 0 | T45: 0 | U45: 2021-07-08 | V45: 0 | W45: 553606.68 | X45: 4980 | Y45: 2021-10-22 | Z45: 0 | AA45: 0 | AB45: 0 | AC45: 3000-01-01 | AD45: 3000-01-01 | AE45: 0 | AF45: FVTPL | AG45: 0 | AH45: 0 | AI45: 0 | AJ45: 0.4973047614 | AK45: 191267020.5 | AL45: MALAYSIA | AM45: MYR | AN45: MYL5301OO006 | AO45: 5301 | AP45: CTOS DIGITAL BHD | AQ45: TECHNOLOGY | AR45: 0 | AS45: EQT | AT45: MY | AU45: 397573.32 | AV45: 0 | AW45: EQT
A46: SOCSO | B46: EQT | C46: BX909K4 | D46: SOCSO*BX909K4 | E46: 381611.47 | F46: 0 | G46: 2465510 | H46: 2465510 | I46: 3000-01-01 | J46: 1450300 | K46: 1.7 | L46: 1 | M46: 0 | N46: 0 | O46: 2083898.53 | P46: 2083898.53 | Q46: 2083898.53 | R46: 2083898.53 | S46: 0 | T46: 0 | U46: 2020-12-31 | V46: 0 | W46: 2083898.53 | X46: 0 | Y46: 2021-10-22 | Z46: 0 | AA46: 0 | AB46: 0 | AC46: 3000-01-01 | AD46: 3000-01-01 | AE46: 0 | AF46: FVTPL | AG46: 0 | AH46: 0 | AI46: 0 | AJ46: 1.289040836 | AK46: 191267020.5 | AL46: MALAYSIA | AM46: MYR | AN46: MYL5263OO008 | AO46: 5263 | AP46: SUNWAY CONSTRUCTION GROUP BH | AQ46: CONSTRUCTION | AR46: 0 | AS46: EQT | AT46: MY | AU46: 381611.47 | AV46: 0 | AW46: EQT
A47: SOCSO | B47: TBI | C47: TradeDrVal | E47: 0 | F47: 0 | G47: 0 | H47: 0 | I47: 3000-01-01 | J47: 0 | K47: 0 | L47: 1 | M47: 0 | N47: 0 | O47: 0 | P47: 0 | Q47: 0 | R47: 0 | S47: 0 | T47: 0 | U47: 3000-01-01 | V47: 0 | W47: 0 | X47: 0 | Y47: 3000-01-01 | Z47: 0 | AA47: 0 | AB47: 0 | AC47: 3000-01-01 | AD47: 3000-01-01 | AE47: 0 | AF47: HFT | AG47: 0 | AH47: 0 | AI47: 0 | AJ47: 0 | AK47: 191267020.5 | AR47: 0 | AS47: TBI | AU47: 0 | AV47: 0 | AW47: TBI
A48: SOCSO | B48: TBI | C48: TradeCrVal | E48: 0 | F48: 0 | G48: -407481.39 | H48: -407481.39 | I48: 3000-01-01 | J48: 0 | K48: 0 | L48: 1 | M48: 0 | N48: 0 | O48: 0 | P48: 0 | Q48: 0 | R48: 0 | S48: 0 | T48: 0 | U48: 3000-01-01 | V48: 0 | W48: 0 | X48: 0 | Y48: 3000-01-01 | Z48: 0 | AA48: 0 | AB48: 0 | AC48: 3000-01-01 | AD48: 3000-01-01 | AE48: 0 | AF48: HFT | AG48: 0 | AH48: 0 | AI48: 0 | AJ48: -0.2130432047 | AK48: 191267020.5 | AR48: 0 | AS48: TBI | AU48: 0 | AV48: -407481.39 | AW48: TBI
A49: SOCSO | B49: TBI | C49: MngDb | E49: 0 | F49: 0 | G49: 0 | H49: 0 | I49: 3000-01-01 | J49: 0 | K49: 0 | L49: 1 | M49: 0 | N49: 0 | O49: 0 | P49: 0 | Q49: 0 | R49: 0 | S49: 0 | T49: 0 | U49: 3000-01-01 | V49: 0 | W49: 0 | X49: 0 | Y49: 3000-01-01 | Z49: 0 | AA49: 0 | AB49: 0 | AC49: 3000-01-01 | AD49: 3000-01-01 | AE49: 0 | AF49: HFT | AG49: 0 | AH49: 0 | AI49: 0 | AJ49: 0 | AK49: 191267020.5 | AR49: 0 | AS49: TBI | AU49: 0 | AV49: 0 | AW49: TBI
A50: SOCSO | B50: TBI | C50: MngCr | E50: 0 | F50: 0 | G50: 0 | H50: 0 | I50: 3000-01-01 | J50: 0 | K50: 0 | L50: 1 | M50: 0 | N50: 0 | O50: 0 | P50: 0 | Q50: 0 | R50: 0 | S50: 0 | T50: 0 | U50: 3000-01-01 | V50: 0 | W50: 0 | X50: 0 | Y50: 3000-01-01 | Z50: 0 | AA50: 0 | AB50: 0 | AC50: 3000-01-01 | AD50: 3000-01-01 | AE50: 0 | AF50: HFT | AG50: 0 | AH50: 0 | AI50: 0 | AJ50: 0 | AK50: 191267020.5 | AR50: 0 | AS50: TBI | AU50: 0 | AV50: 0 | AW50: TBI
A51: SOCSO | B51: TBI | C51: DivVal | E51: 0 | F51: 0 | G51: 481644.8 | H51: 481644.8 | I51: 3000-01-01 | J51: 0 | K51: 0 | L51: 1 | M51: 0 | N51: 0 | O51: 0 | P51: 0 | Q51: 0 | R51: 0 | S51: 0 | T51: 0 | U51: 3000-01-01 | V51: 0 | W51: 0 | X51: 0 | Y51: 3000-01-01 | Z51: 0 | AA51: 0 | AB51: 0 | AC51: 3000-01-01 | AD51: 3000-01-01 | AE51: 0 | AF51: HFT | AG51: 0 | AH51: 0 | AI51: 0 | AJ51: 0.2518180075 | AK51: 191267020.5 | AR51: 0 | AS51: TBI | AU51: 481644.8 | AV51: 0 | AW51: TBI
A52: SOCSO | B52: TBI | C52: OtherDbVal | E52: 0 | F52: 0 | G52: 0 | H52: 0 | I52: 3000-01-01 | J52: 0 | K52: 0 | L52: 1 | M52: 0 | N52: 0 | O52: 0 | P52: 0 | Q52: 0 | R52: 0 | S52: 0 | T52: 0 | U52: 3000-01-01 | V52: 0 | W52: 0 | X52: 0 | Y52: 3000-01-01 | Z52: 0 | AA52: 0 | AB52: 0 | AC52: 3000-01-01 | AD52: 3000-01-01 | AE52: 0 | AF52: HFT | AG52: 0 | AH52: 0 | AI52: 0 | AJ52: 0 | AK52: 191267020.5 | AR52: 0 | AS52: TBI | AU52: 0 | AV52: 0 | AW52: TBI
A53: SOCSO | B53: TBI | C53: OtherCrVal | E53: 0 | F53: 0 | G53: 0 | H53: 0 | I53: 3000-01-01 | J53: 0 | K53: 0 | L53: 1 | M53: 0 | N53: 0 | O53: 0 | P53: 0 | Q53: 0 | R53: 0 | S53: 0 | T53: 0 | U53: 3000-01-01 | V53: 0 | W53: 0 | X53: 0 | Y53: 3000-01-01 | Z53: 0 | AA53: 0 | AB53: 0 | AC53: 3000-01-01 | AD53: 3000-01-01 | AE53: 0 | AF53: HFT | AG53: 0 | AH53: 0 | AI53: 0 | AJ53: 0 | AK53: 191267020.5 | AR53: 0 | AS53: TBI | AU53: 0 | AV53: 0 | AW53: TBI
A54: SOCSO | B54: TBI | C54: TaxProvVal | E54: 0 | F54: 0 | G54: 0 | H54: 0 | I54: 3000-01-01 | J54: 0 | K54: 0 | L54: 1 | M54: 0 | N54: 0 | O54: 0 | P54: 0 | Q54: 0 | R54: 0 | S54: 0 | T54: 0 | U54: 3000-01-01 | V54: 0 | W54: 0 | X54: 0 | Y54: 3000-01-01 | Z54: 0 | AA54: 0 | AB54: 0 | AC54: 3000-01-01 | AD54: 3000-01-01 | AE54: 0 | AF54: HFT | AG54: 0 | AH54: 0 | AI54: 0 | AJ54: 0 | AK54: 191267020.5 | AR54: 0 | AS54: TBI | AU54: 0 | AV54: 0 | AW54: TBI
A55: SOCSO | B55: TBI | C55: DefTaxProvVal | E55: 0 | F55: 0 | G55: 0 | H55: 0 | I55: 3000-01-01 | J55: 0 | K55: 0 | L55: 1 | M55: 0 | N55: 0 | O55: 0 | P55: 0 | Q55: 0 | R55: 0 | S55: 0 | T55: 0 | U55: 3000-01-01 | V55: 0 | W55: 0 | X55: 0 | Y55: 3000-01-01 | Z55: 0 | AA55: 0 | AB55: 0 | AC55: 3000-01-01 | AD55: 3000-01-01 | AE55: 0 | AF55: HFT | AG55: 0 | AH55: 0 | AI55: 0 | AJ55: 0 | AK55: 191267020.5 | AR55: 0 | AS55: TBI | AU55: 0 | AV55: 0 | AW55: TBI
A56: SOCSO | B56: TBI | C56: ProvDistVal | E56: 0 | F56: 0 | G56: 0 | H56: 0 | I56: 3000-01-01 | J56: 0 | K56: 0 | L56: 1 | M56: 0 | N56: 0 | O56: 0 | P56: 0 | Q56: 0 | R56: 0 | S56: 0 | T56: 0 | U56: 3000-01-01 | V56: 0 | W56: 0 | X56: 0 | Y56: 3000-01-01 | Z56: 0 | AA56: 0 | AB56: 0 | AC56: 3000-01-01 | AD56: 3000-01-01 | AE56: 0 | AF56: HFT | AG56: 0 | AH56: 0 | AI56: 0 | AJ56: 0 | AK56: 191267020.5 | AR56: 0 | AS56: TBI | AU56: 0 | AV56: 0 | AW56: TBI
A57: SOCSO | B57: TBI | C57: MngFee_BF | E57: 0 | F57: 0 | G57: 0 | H57: 0 | I57: 3000-01-01 | J57: 0 | K57: 0 | L57: 1 | M57: 0 | N57: 0 | O57: 0 | P57: 0 | Q57: 0 | R57: 0 | S57: 0 | T57: 0 | U57: 3000-01-01 | V57: 0 | W57: 0 | X57: 0 | Y57: 3000-01-01 | Z57: 0 | AA57: 0 | AB57: 0 | AC57: 3000-01-01 | AD57: 3000-01-01 | AE57: 0 | AF57: HFT | AG57: 0 | AH57: 0 | AI57: 0 | AJ57: 0 | AK57: 191267020.5 | AR57: 0 | AS57: TBI | AU57: 0 | AV57: 0 | AW57: TBI
A58: SOCSO | B58: TBI | C58: MngFeeRebate_BF | E58: 0 | F58: 0 | G58: 0 | H58: 0 | I58: 3000-01-01 | J58: 0 | K58: 0 | L58: 1 | M58: 0 | N58: 0 | O58: 0 | P58: 0 | Q58: 0 | R58: 0 | S58: 0 | T58: 0 | U58: 3000-01-01 | V58: 0 | W58: 0 | X58: 0 | Y58: 3000-01-01 | Z58: 0 | AA58: 0 | AB58: 0 | AC58: 3000-01-01 | AD58: 3000-01-01 | AE58: 0 | AF58: HFT | AG58: 0 | AH58: 0 | AI58: 0 | AJ58: 0 | AK58: 191267020.5 | AR58: 0 | AS58: TBI | AU58: 0 | AV58: 0 | AW58: TBI
A59: SOCSO | B59: TBI | C59: TrusteeFee_BF | E59: 0 | F59: 0 | G59: 0 | H59: 0 | I59: 3000-01-01 | J59: 0 | K59: 0 | L59: 1 | M59: 0 | N59: 0 | O59: 0 | P59: 0 | Q59: 0 | R59: 0 | S59: 0 | T59: 0 | U59: 3000-01-01 | V59: 0 | W59: 0 | X59: 0 | Y59: 3000-01-01 | Z59: 0 | AA59: 0 | AB59: 0 | AC59: 3000-01-01 | AD59: 3000-01-01 | AE59: 0 | AF59: HFT | AG59: 0 | AH59: 0 | AI59: 0 | AJ59: 0 | AK59: 191267020.5 | AR59: 0 | AS59: TBI | AU59: 0 | AV59: 0 | AW59: TBI
A60: SOCSO | B60: TBI | C60: AuditorFee_BF | E60: 0 | F60: 0 | G60: 0 | H60: 0 | I60: 3000-01-01 | J60: 0 | K60: 0 | L60: 1 | M60: 0 | N60: 0 | O60: 0 | P60: 0 | Q60: 0 | R60: 0 | S60: 0 | T60: 0 | U60: 3000-01-01 | V60: 0 | W60: 0 | X60: 0 | Y60: 3000-01-01 | Z60: 0 | AA60: 0 | AB60: 0 | AC60: 3000-01-01 | AD60: 3000-01-01 | AE60: 0 | AF60: HFT | AG60: 0 | AH60: 0 | AI60: 0 | AJ60: 0 | AK60: 191267020.5 | AR60: 0 | AS60: TBI | AU60: 0 | AV60: 0 | AW60: TBI
A61: SOCSO | B61: TBI | C61: CustodianFee_BF | E61: 0 | F61: 0 | G61: 0 | H61: 0 | I61: 3000-01-01 | J61: 0 | K61: 0 | L61: 1 | M61: 0 | N61: 0 | O61: 0 | P61: 0 | Q61: 0 | R61: 0 | S61: 0 | T61: 0 | U61: 3000-01-01 | V61: 0 | W61: 0 | X61: 0 | Y61: 3000-01-01 | Z61: 0 | AA61: 0 | AB61: 0 | AC61: 3000-01-01 | AD61: 3000-01-01 | AE61: 0 | AF61: HFT | AG61: 0 | AH61: 0 | AI61: 0 | AJ61: 0 | AK61: 191267020.5 | AR61: 0 | AS61: TBI | AU61: 0 | AV61: 0 | AW61: TBI
A62: SOCSO | B62: TBI | C62: BrokerageFee_BF | E62: 0 | F62: 0 | G62: 0 | H62: 0 | I62: 3000-01-01 | J62: 0 | K62: 0 | L62: 1 | M62: 0 | N62: 0 | O62: 0 | P62: 0 | Q62: 0 | R62: 0 | S62: 0 | T62: 0 | U62: 3000-01-01 | V62: 0 | W62: 0 | X62: 0 | Y62: 3000-01-01 | Z62: 0 | AA62: 0 | AB62: 0 | AC62: 3000-01-01 | AD62: 3000-01-01 | AE62: 0 | AF62: HFT | AG62: 0 | AH62: 0 | AI62: 0 | AJ62: 0 | AK62: 191267020.5 | AR62: 0 | AS62: TBI | AU62: 0 | AV62: 0 | AW62: TBI
A63: SOCSO | B63: TBI | C63: OthVal | E63: 0 | F63: 0 | G63: 0 | H63: 0 | I63: 3000-01-01 | J63: 0 | K63: 0 | L63: 1 | M63: 0 | N63: 0 | O63: 0 | P63: 0 | Q63: 0 | R63: 0 | S63: 0 | T63: 0 | U63: 3000-01-01 | V63: 0 | W63: 0 | X63: 0 | Y63: 3000-01-01 | Z63: 0 | AA63: 0 | AB63: 0 | AC63: 3000-01-01 | AD63: 3000-01-01 | AE63: 0 | AF63: HFT | AG63: 0 | AH63: 0 | AI63: 0 | AJ63: 0 | AK63: 191267020.5 | AR63: 0 | AS63: TBI | AU63: 0 | AV63: 0 | AW63: TBI
A64: SOCSO | B64: TBI | C64: TaxVal | E64: 0 | F64: 0 | G64: 0 | H64: 0 | I64: 3000-01-01 | J64: 0 | K64: 0 | L64: 1 | M64: 0 | N64: 0 | O64: 0 | P64: 0 | Q64: 0 | R64: 0 | S64: 0 | T64: 0 | U64: 3000-01-01 | V64: 0 | W64: 0 | X64: 0 | Y64: 3000-01-01 | Z64: 0 | AA64: 0 | AB64: 0 | AC64: 3000-01-01 | AD64: 3000-01-01 | AE64: 0 | AF64: HFT | AG64: 0 | AH64: 0 | AI64: 0 | AJ64: 0 | AK64: 191267020.5 | AR64: 0 | AS64: TBI | AU64: 0 | AV64: 0 | AW64: TBI
A65: SOCSO | B65: TBI | C65: BankVal | E65: 0 | F65: 0 | G65: 724.65 | H65: 724.65 | I65: 3000-01-01 | J65: 0 | K65: 0 | L65: 1 | M65: 0 | N65: 0 | O65: 0 | P65: 0 | Q65: 0 | R65: 0 | S65: 0 | T65: 0 | U65: 3000-01-01 | V65: 0 | W65: 0 | X65: 0 | Y65: 3000-01-01 | Z65: 0 | AA65: 0 | AB65: 0 | AC65: 3000-01-01 | AD65: 3000-01-01 | AE65: 0 | AF65: HFT | AG65: 0 | AH65: 0 | AI65: 0 | AJ65: 0.000378868243 | AK65: 191267020.5 | AR65: 0 | AS65: TBI | AU65: 724.65 | AV65: 0 | AW65: TBI
A66: SOCSO | B66: TBI | C66: BankVal-FX | E66: 0 | F66: 0 | G66: 0 | H66: 0 | I66: 3000-01-01 | J66: 0 | K66: 0 | L66: 1 | M66: 0 | N66: 0 | O66: 0 | P66: 0 | Q66: 0 | R66: 0 | S66: 0 | T66: 0 | U66: 3000-01-01 | V66: 0 | W66: 0 | X66: 0 | Y66: 3000-01-01 | Z66: 0 | AA66: 0 | AB66: 0 | AC66: 3000-01-01 | AD66: 3000-01-01 | AE66: 0 | AF66: HFT | AG66: 0 | AH66: 0 | AI66: 0 | AJ66: 0 | AK66: 191267020.5 | AR66: 0 | AS66: TBI | AU66: 0 | AV66: 0 | AW66: TBI

Sheet PortVal
A1: =IF(R1="","",IF(AND(R1<>"",S1=""),"NAML Equity Total","NAML Equity")) ->  | B1: =IF(OR(R1=""),"",IF(AND(R1="EQT",S1=""),"Stock Total",IF(AND(R1="WRT",S1=""),"Warrant Total",IF(R1="EQT","Stock","Warrant")))) ->  | C1: =IF(S1="","",IF(S1="MY","MYS",S1)) ->  | D1: =IF(T1="","",T1) ->  | E1: =IF(V1="","",V1) ->  | F1: =IF(Y1="","",Y1) ->  | G1: =IF(Z1="","",Z1) ->  | H1: =IF(OR(R1="",C1=""),"",IF(Z1=0,0,ROUND(AA1/Z1,4))) ->  | I1: =IF(AA1="","",AA1) ->  | J1: =IF(OR(R1="",C1=""),"",IF(Z1=0,0,ROUND(AB1/Z1,4))) ->  | K1: =IF(AB1="","",AB1) ->  | L1: =IF(AB1="","",AB1+AC1) ->  | M1: =IF(AD1="","",AD1) ->  | N1: =IF(AE1="","",AE1) -> 
A2: =FundName -> PERTUBUHAN KESELAMATAN SOSIAL(SOCSO)
A3: PORTFOLIO HOLDING AS OF | C3: =EndDate -> 2021-10-22
A5: Classificatican | B5: Category | C5: Country | D5: Currency | E5: Issue code | F5: Issue name | G5: Quantity | H5: Unit Cost | I5: Book Cost | J5: Market Price | K5: Market Value | L5: Market Value with Dividend Receivable | M5: Unrealised Gain | N5: Unrealised Loss | R5: qProductType | S5: EQT
A6: Total | G6: =INDEX(PortVal!G:G,MATCH("NAML Equity Total",PortVal!A:A,FALSE))+INDEX(PortVal!G:G,MATCH("NAML Cash Total",PortVal!A:A,FALSE)) -> 54257988.26 | I6: =INDEX(PortVal!I:I,MATCH("NAML Equity Total",PortVal!A:A,FALSE))+INDEX(PortVal!I:I,MATCH("NAML Cash Total",PortVal!A:A,FALSE)) -> 175837830.6 | K6: =INDEX(PortVal!K:K,MATCH("NAML Equity Total",PortVal!A:A,FALSE))+INDEX(PortVal!K:K,MATCH("NAML Cash Total",PortVal!A:A,FALSE)) -> 190784881.9 | L6: =INDEX(PortVal!L:L,MATCH("NAML Equity Total",PortVal!A:A,FALSE))+INDEX(PortVal!L:L,MATCH("NAML Cash Total",PortVal!A:A,FALSE)) -> 191266526.7 | M6: =INDEX(PortVal!M:M,MATCH("NAML Equity Total",PortVal!A:A,FALSE))+INDEX(PortVal!M:M,MATCH("NAML Cash Total",PortVal!A:A,FALSE)) -> 17819685.86 | N6: =INDEX(PortVal!N:N,MATCH("NAML Equity Total",PortVal!A:A,FALSE))+INDEX(PortVal!N:N,MATCH("NAML Cash Total",PortVal!A:A,FALSE)) -> -2872634.56
A7: NAML Equity Total | G7: =INDEX(PortVal!G:G,MATCH("Stock Total",PortVal!B:B,FALSE))+IF(ISNA(INDEX(PortVal!G:G,MATCH("Warrant Total",PortVal!B:B,FALSE)))=TRUE,0,ISNA(INDEX(PortVal!G:G,MATCH("Warrant Total",PortVal!B:B,FALSE)))) -> 44364745 | I7: =INDEX(PortVal!I:I,MATCH("Stock Total",PortVal!B:B,FALSE))+IF(ISNA(INDEX(PortVal!I:I,MATCH("Warrant Total",PortVal!B:B,FALSE)))=TRUE,0,ISNA(INDEX(PortVal!I:I,MATCH("Warrant Total",PortVal!B:B,FALSE)))) -> 165944587.3 | K7: =INDEX(PortVal!K:K,MATCH("Stock Total",PortVal!B:B,FALSE))+IF(ISNA(INDEX(PortVal!K:K,MATCH("Warrant Total",PortVal!B:B,FALSE)))=TRUE,0,ISNA(INDEX(PortVal!K:K,MATCH("Warrant Total",PortVal!B:B,FALSE)))) -> 180891638.6 | L7: =INDEX(PortVal!L:L,MATCH("Stock Total",PortVal!B:B,FALSE))+IF(ISNA(INDEX(PortVal!L:L,MATCH("Warrant Total",PortVal!B:B,FALSE)))=TRUE,0,ISNA(INDEX(PortVal!L:L,MATCH("Warrant Total",PortVal!B:B,FALSE)))) -> 181373283.4 | M7: =INDEX(PortVal!M:M,MATCH("Stock Total",PortVal!B:B,FALSE))+IF(ISNA(INDEX(PortVal!M:M,MATCH("Warrant Total",PortVal!B:B,FALSE)))=TRUE,0,ISNA(INDEX(PortVal!M:M,MATCH("Warrant Total",PortVal!B:B,FALSE)))) -> 17819685.86 | N7: =INDEX(PortVal!N:N,MATCH("Stock Total",PortVal!B:B,FALSE))+IF(ISNA(INDEX(PortVal!N:N,MATCH("Warrant Total",PortVal!B:B,FALSE)))=TRUE,0,ISNA(INDEX(PortVal!N:N,MATCH("Warrant Total",PortVal!B:B,FALSE)))) -> -2872634.56 | R7: Row Labels | S7: qCountryID | T7: StockCurrency | U7: SectorName | V7: qStockCode | W7: ISINCode | X7: BursaCode | Y7: StockName | Z7: Sum of UnitFaceValue | AA7: Sum of CostFC | AB7: Sum of MarketValueFC | AC7: Sum of DivReceivable | AD7: Sum of UnGain | AE7: Sum of UnLoss
A8: NAML Equity Total | B8: Stock Total | G8: 44364745 | I8: 165944587.3 | K8: 180891638.6 | L8: 181373283.4 | M8: 17819685.86 | N8: -2872634.56 | R8: EQT | Z8: 44364745 | AA8: 165944587.3 | AB8: 180891638.6 | AC8: 481644.8 | AD8: 17819685.86 | AE8: -2872634.56
A9: NAML Equity | B9: Stock | C9: MYS | D9: MYR | E9: 6359881 | F9: GAMUDA BHD | G9: 1189191 | H9: 3.6477 | I9: 4337813.18 | J9: 3.19 | K9: 3793519.29 | L9: 3793519.29 | M9: 0 | N9: -544293.89 | R9: EQT | S9: MY | T9: MYR | U9: CONSTRUCTION | V9: 6359881 | W9: MYL5398OO002 | X9: 5398 | Y9: GAMUDA BHD | Z9: 1189191 | AA9: 4337813.18 | AB9: 3793519.29 | AC9: 0 | AD9: 0 | AE9: -544293.89
A10: NAML Equity | B10: Stock | C10: MYS | D10: MYR | E10: BKRQ635 | F10: AME ELITE CONSORTIUM BHD | G10: 1651500 | H10: 1.399 | I10: 2310410.66 | J10: 1.99 | K10: 3286485 | L10: 3286485 | M10: 976074.34 | N10: 0 | R10: EQT | S10: MY | T10: MYR | U10: CONSTRUCTION | V10: BKRQ635 | W10: MYL5293OO005 | X10: 5293 | Y10: AME ELITE CONSORTIUM BHD | Z10: 1651500 | AA10: 2310410.66 | AB10: 3286485 | AC10: 0 | AD10: 976074.34 | AE10: 0
A11: NAML Equity | B11: Stock | C11: MYS | D11: MYR | E11: 6455217 | F11: IJM CORP BHD | G11: 1621200 | H11: 1.6495 | I11: 2674109.62 | J11: 1.89 | K11: 3064068 | L11: 3064068 | M11: 389958.38 | N11: 0 | R11: EQT | S11: MY | T11: MYR | U11: CONSTRUCTION | V11: 6455217 | W11: MYL3336OO004 | X11: 3336 | Y11: IJM CORP BHD | Z11: 1621200 | AA11: 2674109.62 | AB11: 3064068 | AC11: 0 | AD11: 389958.38 | AE11: 0
A12: NAML Equity | B12: Stock | C12: MYS | D12: MYR | E12: BX909K4 | F12: SUNWAY CONSTRUCTION GROUP BH | G12: 1450300 | H12: 1.4369 | I12: 2083898.53 | J12: 1.7 | K12: 2465510 | L12: 2465510 | M12: 381611.47 | N12: 0 | R12: EQT | S12: MY | T12: MYR | U12: CONSTRUCTION | V12: BX909K4 | W12: MYL5263OO008 | X12: 5263 | Y12: SUNWAY CONSTRUCTION GROUP BH | Z12: 1450300 | AA12: 2083898.53 | AB12: 2465510 | AC12: 0 | AD12: 381611.47 | AE12: 0
A13: NAML Equity | B13: Stock | C13: MYS | D13: MYR | E13: B29TTR1 | F13: SIME DARBY BERHAD | G13: 2431800 | H13: 2.2886 | I13: 5565331.2 | J13: 2.3 | K13: 5593140 | L13: 5593140 | M13: 27808.8 | N13: 0 | R13: EQT | S13: MY | T13: MYR | U13: CONSUMER PRODUCTS & SERVICES | V13: B29TTR1 | W13: MYL4197OO009 | X13: 4197 | Y13: SIME DARBY BERHAD | Z13: 2431800 | AA13: 5565331.2 | AB13: 5593140 | AC13: 0 | AD13: 27808.8 | AE13: 0
A14: NAML Equity | B14: Stock | C14: MYS | D14: MYR | E14: BN4JBJ9 | F14: MR DIY GROUP M BHD | G14: 141600 | H14: 3.9227 | I14: 555452.14 | J14: 3.66 | K14: 518256 | L14: 518256 | M14: 0 | N14: -37196.14 | R14: EQT | S14: MY | T14: MYR | U14: CONSUMER PRODUCTS & SERVICES | V14: BN4JBJ9 | W14: MYL5296OO008 | X14: 5296 | Y14: MR DIY GROUP M BHD | Z14: 141600 | AA14: 555452.14 | AB14: 518256 | AC14: 0 | AD14: 0 | AE14: -37196.14
A15: NAML Equity | B15: Stock | C15: MYS | D15: MYR | E15: 6986717 | F15: YINSON HOLDINGS BHD | G15: 510000 | H15: 5.8507 | I15: 2983866.1 | J15: 5.82 | K15: 2968200 | L15: 2968200 | M15: 0 | N15: -15666.1 | R15: EQT | S15: MY | T15: MYR | U15: ENERGY | V15: 6986717 | W15: MYL7293OO003 | X15: 7293 | Y15: YINSON HOLDINGS BHD | Z15: 510000 | AA15: 2983866.1 | AB15: 2968200 | AC15: 0 | AD15: 0 | AE15: -15666.1
A16: NAML Equity | B16: Stock | C16: MYS | D16: MYR | E16: B00MRS2 | F16: DIALOG GROUP BHD | G16: 1548112 | H16: 3.2705 | I16: 5063121.49 | J16: 2.97 | K16: 4597892.64 | L16: 4597892.64 | M16: 0 | N16: -465228.85 | R16: EQT | S16: MY | T16: MYR | U16: ENERGY | V16: B00MRS2 | W16: MYL7277OO006 | X16: 7277 | Y16: DIALOG GROUP BHD | Z16: 1548112 | AA16: 5063121.49 | AB16: 4597892.64 | AC16: 0 | AD16: 0 | AE16: -465228.85
A17: NAML Equity | B17: Stock | C17: MYS | D17: MYR | E17: 6075745 | F17: CIMB GROUP HOLDINGS BHD | G17: 1733338 | H17: 4.5792 | I17: 7937338.23 | J17: 5.23 | K17: 9065357.74 | L17: 9246318.23 | M17: 1128019.51 | N17: 0 | R17: EQT | S17: MY | T17: MYR | U17: FINANCIAL SERVICES | V17: 6075745 | W17: MYL1023OO000 | X17: 1023 | Y17: CIMB GROUP HOLDINGS BHD | Z17: 1733338 | AA17: 7937338.23 | AB17: 9065357.74 | AC17: 180960.49 | AD17: 1128019.51 | AE17: 0
A18: NAML Equity | B18: Stock | C18: MYS | D18: MYR | E18: 6244675 | F18: RHB BANK BHD | G18: 1189585 | H18: 5.5564 | I18: 6609825.25 | J18: 5.7 | K18: 6780634.5 | L18: 6959072.25 | M18: 170809.25 | N18: 0 | R18: EQT | S18: MY | T18: MYR | U18: FINANCIAL SERVICES | V18: 6244675 | W18: MYL1066OO009 | X18: 1066 | Y18: RHB BANK BHD | Z18: 1189585 | AA18: 6609825.25 | AB18: 6780634.5 | AC18: 178437.75 | AD18: 170809.25 | AE18: 0
A19: NAML Equity | B19: Stock | C19: MYS | D19: MYR | E19: 6556325 | F19: MALAYAN BANKING BHD | G19: 1759599 | H19: 8.4311 | I19: 14835281.94 | J19: 8.15 | K19: 14340731.85 | L19: 14340731.85 | M19: 0 | N19: -494550.09 | R19: EQT | S19: MY | T19: MYR | U19: FINANCIAL SERVICES | V19: 6556325 | W19: MYL1155OO000 | X19: 1155 | Y19: MALAYAN BANKING BHD | Z19: 1759599 | AA19: 14835281.94 | AB19: 14340731.85 | AC19: 0 | AD19: 0 | AE19: -494550.09
A20: NAML Equity | B20: Stock | C20: MYS | D20: MYR | E20: B012W42 | F20: PUBLIC BANK BERHAD | G20: 2665250 | H20: 3.9041 | I20: 10405511.15 | J20: 4.23 | K20: 11274007.5 | L20: 11274007.5 | M20: 868496.35 | N20: 0 | R20: EQT | S20: MY | T20: MYR | U20: FINANCIAL SERVICES | V20: B012W42 | W20: MYL1295OO004 | X20: 1295 | Y20: PUBLIC BANK BERHAD | Z20: 2665250 | AA20: 10405511.15 | AB20: 11274007.5 | AC20: 0 | AD20: 868496.35 | AE20: 0
A21: NAML Equity | B21: Stock | C21: MYS | D21: MYR | E21: 6436450 | F21: HONG LEONG FINANCIAL GROUP | G21: 240284 | H21: 16.9787 | I21: 4079719.51 | J21: 18.28 | K21: 4392391.52 | L21: 4392391.52 | M21: 312672.01 | N21: 0 | R21: EQT | S21: MY | T21: MYR | U21: FINANCIAL SERVICES | V21: 6436450 | W21: MYL1082OO006 | X21: 1082 | Y21: HONG LEONG FINANCIAL GROUP | Z21: 240284 | AA21: 4079719.51 | AB21: 4392391.52 | AC21: 0 | AD21: 312672.01 | AE21: 0
A22: NAML Equity | B22: Stock | C22: MYS | D22: MYR | E22: 6522672 | F22: LPI CAPITAL BERHAD | G22: 209200 | H22: 14.9259 | I22: 3122504.45 | J22: 14 | K22: 2928800 | L22: 2928800 | M22: 0 | N22: -193704.45 | R22: EQT | S22: MY | T22: MYR | U22: FINANCIAL SERVICES | V22: 6522672 | W22: MYL8621OO004 | X22: 8621 | Y22: LPI CAPITAL BERHAD | Z22: 209200 | AA22: 3122504.45 | AB22: 2928800 | AC22: 0 | AD22: 0 | AE22: -193704.45
A23: NAML Equity | B23: Stock | C23: MYS | D23: MYR | E23: B29H4P8 | F23: AEON CREDIT SERVICE M BHD | G23: 212586 | H23: 11.6124 | I23: 2468637.09 | J23: 13.72 | K23: 2916679.92 | L23: 2977266.93 | M23: 448042.83 | N23: 0 | R23: EQT | S23: MY | T23: MYR | U23: FINANCIAL SERVICES | V23: B29H4P8 | W23: MYL5139OO000 | X23: 5139 | Y23: AEON CREDIT SERVICE M BHD | Z23: 212586 | AA23: 2468637.09 | AB23: 2916679.92 | AC23: 60587.01 | AD23: 448042.83 | AE23: 0
A24: NAML Equity | B24: Stock | C24: MYS | D24: MYR | E24: B83X6P8 | F24: IHH HEALTHCARE BHD | G24: 1047000 | H24: 5.6581 | I24: 5923984.83 | J24: 6.6 | K24: 6910200 | L24: 6910200 | M24: 986215.17 | N24: 0 | R24: EQT | S24: MY | T24: MYR | U24: HEALTH CARE | V24: B83X6P8 | W24: MYL5225OO007 | X24: 5225 | Y24: IHH HEALTHCARE BHD | Z24: 1047000 | AA24: 5923984.83 | AB24: 6910200 | AC24: 0 | AD24: 986215.17 | AE24: 0
A25: NAML Equity | B25: Stock | C25: MYS | D25: MYR | E25: 6113429 | F25: V.S. INDUSTRY BERHAD | G25: 1985700 | H25: 1.387 | I25: 2754082.56 | J25: 1.56 | K25: 3097692 | L25: 3107620.5 | M25: 343609.44 | N25: 0 | R25: EQT | S25: MY | T25: MYR | U25: INDUSTRIAL PRODUCTS & SERVICES | V25: 6113429 | W25: MYL6963OO002 | X25: 6963 | Y25: V.S. INDUSTRY BERHAD | Z25: 1985700 | AA25: 2754082.56 | AB25: 3097692 | AC25: 9928.5 | AD25: 343609.44 | AE25: 0
A26: NAML Equity | B26: Stock | C26: MYS | D26: MYR | E26: B1VZ5G1 | F26: SCIENTEX BHD | G26: 545400 | H26: 2.576 | I26: 1404958.6 | J26: 4.63 | K26: 2525202 | L26: 2525202 | M26: 1120243.4 | N26: 0 | R26: EQT | S26: MY | T26: MYR | U26: INDUSTRIAL PRODUCTS & SERVICES | V26: B1VZ5G1 | W26: MYL4731OO005 | X26: 4731 | Y26: SCIENTEX BHD | Z26: 545400 | AA26: 1404958.6 | AB26: 2525202 | AC26: 0 | AD26: 1120243.4 | AE26: 0
A27: NAML Equity | B27: Stock | C27: MYS | D27: MYR | E27: BF0J5S4 | F27: PRESS METAL ALUMINIUM HOLDIN | G27: 1230000 | H27: 4.4999 | I27: 5534881.9 | J27: 5.75 | K27: 7072500 | L27: 7072500 | M27: 1537618.1 | N27: 0 | R27: EQT | S27: MY | T27: MYR | U27: INDUSTRIAL PRODUCTS & SERVICES | V27: BF0J5S4 | W27: MYL8869OO009 | X27: 8869 | Y27: PRESS METAL ALUMINIUM HOLDIN | Z27: 1230000 | AA27: 5534881.9 | AB27: 7072500 | AC27: 0 | AD27: 1537618.1 | AE27: 0
A28: NAML Equity | B28: Stock | C28: MYS | D28: MYR | E28: B03DHR1 | F28: SKP RESOURCES BHD | G28: 1011500 | H28: 1.8235 | I28: 1844483.45 | J28: 1.82 | K28: 1840930 | L28: 1892661.05 | M28: 0 | N28: -3553.45 | R28: EQT | S28: MY | T28: MYR | U28: INDUSTRIAL PRODUCTS & SERVICES | V28: B03DHR1 | W28: MYL7155OO004 | X28: 7155 | Y28: SKP RESOURCES BHD | Z28: 1011500 | AA28: 1844483.45 | AB28: 1840930 | AC28: 51731.05 | AD28: 0 | AE28: -3553.45
A29: NAML Equity | B29: Stock | C29: MYS | D29: MYR | E29: B5KQGT3 | F29: PETRONAS CHEMICALS GROUP BHD | G29: 1053200 | H29: 7.7695 | I29: 8182819.83 | J29: 8.81 | K29: 9278692 | L29: 9278692 | M29: 1095872.17 | N29: 0 | R29: EQT | S29: MY | T29: MYR | U29: INDUSTRIAL PRODUCTS & SERVICES | V29: B5KQGT3 | W29: MYL5183OO008 | X29: 5183 | Y29: PETRONAS CHEMICALS GROUP BHD | Z29: 1053200 | AA29: 8182819.83 | AB29: 9278692 | AC29: 0 | AD29: 1095872.17 | AE29: 0
A30: NAML Equity | B30: Stock | C30: MYS | D30: MYR | E30: B6VGS93 | F30: SUNWAY BHD | G30: 2481500 | H30: 1.6326 | I30: 4051399.01 | J30: 1.77 | K30: 4392255 | L30: 4392255 | M30: 340855.99 | N30: 0 | R30: EQT | S30: MY | T30: MYR | U30: INDUSTRIAL PRODUCTS & SERVICES | V30: B6VGS93 | W30: MYL5211OO007 | X30: 5211 | Y30: SUNWAY BHD | Z30: 2481500 | AA30: 4051399.01 | AB30: 4392255 | AC30: 0 | AD30: 340855.99 | AE30: 0
A31: NAML Equity | B31: Stock | C31: MYS | D31: MYR | E31: 6497446 | F31: KUALA LUMPUR KEPONG BHD | G31: 133000 | H31: 22.7082 | I31: 3020189.01 | J31: 22.9 | K31: 3045700 | L31: 3045700 | M31: 25510.99 | N31: 0 | R31: EQT | S31: MY | T31: MYR | U31: PLANTATION | V31: 6497446 | W31: MYL2445OO004 | X31: 2445 | Y31: KUALA LUMPUR KEPONG BHD | Z31: 133000 | AA31: 3020189.01 | AB31: 3045700 | AC31: 0 | AD31: 25510.99 | AE31: 0
A32: NAML Equity | B32: Stock | C32: MYS | D32: MYR | E32: 6868774 | F32: SP SETIA BHD | G32: 2900000 | H32: 1.1744 | I32: 3405634.64 | J32: 1.45 | K32: 4205000 | L32: 4205000 | M32: 799365.36 | N32: 0 | R32: EQT | S32: MY | T32: MYR | U32: PROPERTY | V32: 6868774 | W32: MYL8664OO004 | X32: 8664 | Y32: SP SETIA BHD | Z32: 2900000 | AA32: 3405634.64 | AB32: 4205000 | AC32: 0 | AD32: 799365.36 | AE32: 0
A33: NAML Equity | B33: Stock | C33: MYS | D33: MYR | E33: B0CMCL8 | F33: AXIS REAL ESTATE INVESTMENT | G33: 1642695 | H33: 1.8524 | I33: 3042955.23 | J33: 1.95 | K33: 3203255.25 | L33: 3203255.25 | M33: 160300.02 | N33: 0 | R33: EQT | S33: MY | T33: MYR | U33: REAL ESTATE INVESTMENT TRUSTS | V33: B0CMCL8 | W33: MYL5106TO008 | X33: 5106 | Y33: AXIS REAL ESTATE INVESTMENT | Z33: 1642695 | AA33: 3042955.23 | AB33: 3203255.25 | AC33: 0 | AD33: 160300.02 | AE33: 0
A34: NAML Equity | B34: Stock | C34: MYS | D34: MYR | E34: B62QFR9 | F34: SUNWAY REAL ESTATE INVESTMEN | G34: 500000 | H34: 1.8454 | I34: 922692.34 | J34: 1.46 | K34: 730000 | L34: 730000 | M34: 0 | N34: -192692.34 | R34: EQT | S34: MY | T34: MYR | U34: REAL ESTATE INVESTMENT TRUSTS | V34: B62QFR9 | W34: MYL5176TO001 | X34: 5176 | Y34: SUNWAY REAL ESTATE INVESTMEN | Z34: 500000 | AA34: 922692.34 | AB34: 730000 | AC34: 0 | AD34: 0 | AE34: -192692.34
A35: NAML Equity | B35: Stock | C35: MYS | D35: MYR | E35: B79YDV3 | F35: PAVILION REAL ESTATE INVEST | G35: 1025200 | H35: 1.617 | I35: 1657721.96 | J35: 1.4 | K35: 1435280 | L35: 1435280 | M35: 0 | N35: -222441.96 | R35: EQT | S35: MY | T35: MYR | U35: REAL ESTATE INVESTMENT TRUSTS | V35: B79YDV3 | W35: MYL5212TO004 | X35: 5212 | Y35: PAVILION REAL ESTATE INVEST | Z35: 1025200 | AA35: 1657721.96 | AB35: 1435280 | AC35: 0 | AD35: 0 | AE35: -222441.96
A36: NAML Equity | B36: Stock | C36: MYS | D36: MYR | E36: B89JCF2 | F36: IGB REAL ESTATE INVESTMENT T | G36: 1101400 | H36: 1.6653 | I36: 1834177.6 | J36: 1.68 | K36: 1850352 | L36: 1850352 | M36: 16174.4 | N36: 0 | R36: EQT | S36: MY | T36: MYR | U36: REAL ESTATE INVESTMENT TRUSTS | V36: B89JCF2 | W36: MYL5227TO002 | X36: 5227 | Y36: IGB REAL ESTATE INVESTMENT T | Z36: 1101400 | AA36: 1834177.6 | AB36: 1850352 | AC36: 0 | AD36: 16174.4 | AE36: 0
A37: NAML Equity | B37: Stock | C37: MYS | D37: MYR | E37: 6556693 | F37: MALAYSIAN PACIFIC INDUSTRIES | G37: 80000 | H37: 44.5119 | I37: 3560951.11 | J37: 46.66 | K37: 3732800 | L37: 3732800 | M37: 171848.89 | N37: 0 | R37: EQT | S37: MY | T37: MYR | U37: TECHNOLOGY | V37: 6556693 | W37: MYL3867OO008 | X37: 3867 | Y37: MALAYSIAN PACIFIC INDUSTRIES | Z37: 80000 | AA37: 3560951.11 | AB37: 3732800 | AC37: 0 | AD37: 171848.89 | AE37: 0
A38: NAML Equity | B38: Stock | C38: MYS | D38: MYR | E38: 6658317 | F38: PENTAMASTER CORP BHD | G38: 600000 | H38: 5.3084 | I38: 3185014.68 | J38: 5.42 | K38: 3252000 | L38: 3252000 | M38: 66985.32 | N38: 0 | R38: EQT | S38: MY | T38: MYR | U38: TECHNOLOGY | V38: 6658317 | W38: MYL7160OO004 | X38: 7160 | Y38: PENTAMASTER CORP BHD | Z38: 600000 | AA38: 3185014.68 | AB38: 3252000 | AC38: 0 | AD38: 66985.32 | AE38: 0
A39: NAML Equity | B39: Stock | C39: MYS | D39: MYR | E39: B0KLDR0 | F39: VITROX CORP BHD | G39: 96500 | H39: 16.0812 | I39: 1551838.67 | J39: 19.7 | K39: 1901050 | L39: 1901050 | M39: 349211.33 | N39: 0 | R39: EQT | S39: MY | T39: MYR | U39: TECHNOLOGY | V39: B0KLDR0 | W39: MYQ0097OO004 | X39: 0097 | Y39: VITROX CORP BHD | Z39: 96500 | AA39: 1551838.67 | AB39: 1901050 | AC39: 0 | AD39: 349211.33 | AE39: 0
A40: NAML Equity | B40: Stock | C40: MYS | D40: MYR | E40: BN7GZ51 | F40: CTOS DIGITAL BHD | G40: 498000 | H40: 1.1117 | I40: 553606.68 | J40: 1.91 | K40: 951180 | L40: 951180 | M40: 397573.32 | N40: 0 | R40: EQT | S40: MY | T40: MYR | U40: TECHNOLOGY | V40: BN7GZ51 | W40: MYL5301OO006 | X40: 5301 | Y40: CTOS DIGITAL BHD | Z40: 498000 | AA40: 553606.68 | AB40: 951180 | AC40: 0 | AD40: 397573.32 | AE40: 0
A41: NAML Equity | B41: Stock | C41: MYS | D41: MYR | E41: B05DWZ2 | F41: D&O GREEN TECHNOLOGIES BHD | G41: 380000 | H41: 5.1916 | I41: 1972812.36 | J41: 5.8 | K41: 2204000 | L41: 2204000 | M41: 231187.64 | N41: 0 | R41: EQT | S41: MY | T41: MYR | U41: TECHNOLOGY | V41: B05DWZ2 | W41: MYL7204OO000 | X41: 7204 | Y41: D&O GREEN TECHNOLOGIES BHD | Z41: 380000 | AA41: 1972812.36 | AB41: 2204000 | AC41: 0 | AD41: 231187.64 | AE41: 0
A42: NAML Equity | B42: Stock | C42: MYS | D42: MYR | E42: B54JP79 | F42: INARI AMERTRON BHD | G42: 710000 | H42: 2.4745 | I42: 1756902.02 | J42: 3.89 | K42: 2761900 | L42: 2761900 | M42: 1004997.98 | N42: 0 | R42: EQT | S42: MY | T42: MYR | U42: TECHNOLOGY | V42: B54JP79 | W42: MYQ0166OO007 | X42: 0166 | Y42: INARI AMERTRON BHD | Z42: 710000 | AA42: 1756902.02 | AB42: 2761900 | AC42: 0 | AD42: 1004997.98 | AE42: 0
A43: NAML Equity | B43: Stock | C43: MYS | D43: MYR | E43: BJ17CJ5 | F43: UWC BHD | G43: 260000 | H43: 2.2826 | I43: 593474.05 | J43: 6.12 | K43: 1591200 | L43: 1591200 | M43: 997725.95 | N43: 0 | R43: EQT | S43: MY | T43: MYR | U43: TECHNOLOGY | V43: BJ17CJ5 | W43: MYL5292OO007 | X43: 5292 | Y43: UWC BHD | Z43: 260000 | AA43: 593474.05 | AB43: 1591200 | AC43: 0 | AD43: 997725.95 | AE43: 0
A44: NAML Equity | B44: Stock | C44: MYS | D44: MYR | E44: 6086242 | F44: DIGI.COM BHD | G44: 1190000 | H44: 4.2489 | I44: 5056148.93 | J44: 4.33 | K44: 5152700 | L44: 5152700 | M44: 96551.07 | N44: 0 | R44: EQT | S44: MY | T44: MYR | U44: TELECOMMUNICATIONS & MEDIA | V44: 6086242 | W44: MYL6947OO005 | X44: 6947 | Y44: DIGI.COM BHD | Z44: 1190000 | AA44: 5056148.93 | AB44: 5152700 | AC44: 0 | AD44: 96551.07 | AE44: 0
A45: NAML Equity | B45: Stock | C45: MYS | D45: MYR | E45: 6868398 | F45: TELEKOM MALAYSIA BHD | G45: 780000 | H45: 4.5979 | I45: 3586394.96 | J45: 5.86 | K45: 4570800 | L45: 4570800 | M45: 984405.04 | N45: 0 | R45: EQT | S45: MY | T45: MYR | U45: TELECOMMUNICATIONS & MEDIA | V45: 6868398 | W45: MYL4863OO006 | X45: 4863 | Y45: TELEKOM MALAYSIA BHD | Z45: 780000 | AA45: 3586394.96 | AB45: 4570800 | AC45: 0 | AD45: 984405.04 | AE45: 0
A46: NAML Equity | B46: Stock | C46: MYS | D46: MYR | E46: 6336538 | F46: TIME DOTCOM BHD | G46: 407100 | H46: 3.8124 | I46: 1552029.36 | J46: 4.54 | K46: 1848234 | L46: 1848234 | M46: 296204.64 | N46: 0 | R46: EQT | S46: MY | T46: MYR | U46: TELECOMMUNICATIONS & MEDIA | V46: 6336538 | W46: MYL5031OO009 | X46: 5031 | Y46: TIME DOTCOM BHD | Z46: 407100 | AA46: 1552029.36 | AB46: 1848234 | AC46: 0 | AD46: 296204.64 | AE46: 0
A47: NAML Equity | B47: Stock | C47: MYS | D47: MYR | E47: B2QZGV5 | F47: AXIATA GROUP BERHAD | G47: 787700 | H47: 3.7332 | I47: 2940675.37 | J47: 4 | K47: 3150800 | L47: 3150800 | M47: 210124.63 | N47: 0 | R47: EQT | S47: MY | T47: MYR | U47: TELECOMMUNICATIONS & MEDIA | V47: B2QZGV5 | W47: MYL6888OO001 | X47: 6888 | Y47: AXIATA GROUP BERHAD | Z47: 787700 | AA47: 2940675.37 | AB47: 3150800 | AC47: 0 | AD47: 210124.63 | AE47: 0
A48: NAML Equity | B48: Stock | C48: MYS | D48: MYR | E48: 6188193 | F48: MALAYSIA AIRPORTS HLDGS BHD | G48: 600000 | H48: 6.3418 | I48: 3805052.92 | J48: 6.58 | K48: 3948000 | L48: 3948000 | M48: 142947.08 | N48: 0 | R48: EQT | S48: MY | T48: MYR | U48: TRANSPORTATION & LOGISTICS | V48: 6188193 | W48: MYL5014OO005 | X48: 5014 | Y48: MALAYSIA AIRPORTS HLDGS BHD | Z48: 600000 | AA48: 3805052.92 | AB48: 3948000 | AC48: 0 | AD48: 142947.08 | AE48: 0
A49: NAML Equity | B49: Stock | C49: MYS | D49: MYR | E49: BDFM1K8 | F49: WESTPORTS HOLDINGS BHD | G49: 566600 | H49: 4.1729 | I49: 2364340.81 | J49: 4.56 | K49: 2583696 | L49: 2583696 | M49: 219355.19 | N49: 0 | R49: EQT | S49: MY | T49: MYR | U49: TRANSPORTATION & LOGISTICS | V49: BDFM1K8 | W49: MYL5246OO003 | X49: 5246 | Y49: WESTPORTS HOLDINGS BHD | Z49: 566600 | AA49: 2364340.81 | AB49: 2583696 | AC49: 0 | AD49: 219355.19 | AE49: 0
A50: NAML Equity | B50: Stock | C50: MYS | D50: MYR | E50: 6904612 | F50: TENAGA NASIONAL BHD | G50: 1000525 | H50: 10.42 | I50: 10425470.5 | J50: 9.76 | K50: 9765124 | L50: 9765124 | M50: 0 | N50: -660346.5 | R50: EQT | S50: MY | T50: MYR | U50: UTILITIES | V50: 6904612 | W50: MYL5347OO009 | X50: 5347 | Y50: TENAGA NASIONAL BHD | Z50: 1000525 | AA50: 10425470.5 | AB50: 9765124 | AC50: 0 | AD50: 0 | AE50: -660346.5
A51: NAML Equity | B51: Stock | C51: MYS | D51: MYR | E51: 6575740 | F51: MEGA FIRST CORP BHD | G51: 1085180 | H51: 2.2781 | I51: 2472152.6 | J51: 3.68 | K51: 3993462.4 | L51: 3993462.4 | M51: 1521309.8 | N51: 0 | R51: EQT | S51: MY | T51: MYR | U51: UTILITIES | V51: 6575740 | W51: MYL3069OO001 | X51: 3069 | Y51: MEGA FIRST CORP BHD | Z51: 1085180 | AA51: 2472152.6 | AB51: 3993462.4 | AC51: 0 | AD51: 1521309.8 | AE51: 0
A52: NAML Equity | B52: Stock | C52: MYS | D52: MYR | E52: 6703972 | F52: PETRONAS GAS BHD | G52: 113000 | H52: 17.3002 | I52: 1954920.79 | J52: 16.92 | K52: 1911960 | L52: 1911960 | M52: 0 | N52: -42960.79 | R52: EQT | S52: MY | T52: MYR | U52: UTILITIES | V52: 6703972 | W52: MYL6033OO004 | X52: 6033 | Y52: PETRONAS GAS BHD | Z52: 113000 | AA52: 1954920.79 | AB52: 1911960 | AC52: 0 | AD52: 0 | AE52: -42960.79
A53: NAML Cash Total | G53: 9893243.26 | I53: 9893243.26 | K53: 9893243.26 | L53: 9893243.26 | M53: 0 | N53: 0
A54: NAML Cash | B54: Cash Total | G54: -406756.74 | I54: -406756.74 | K54: -406756.74 | L54: -406756.74 | M54: 0 | N54: 0
A55: NAML Cash | B55: Cash | C55: MYS | D55: MYR | F55: CASH MYR | G55: =SUMIFS(InPortfolio!G:G,InPortfolio!B:B,"TBI",InPortfolio!C:C,"*BankVal*") -> 724.65 | H55: 1 | I55: 724.65 | J55: 1 | K55: 724.65 | L55: 724.65 | M55: 0 | N55: 0
A56: NAML Cash | B56: Cash | C56: MYS | D56: MYR | F56: PAYBC | G56: =SUMIFS(InPortfolio!G:G,InPortfolio!B:B,"TBI",InPortfolio!C:C,"TradeCrVal") -> -407481.39 | H56: 1 | I56: -407481.39 | J56: 1 | K56: -407481.39 | L56: -407481.39 | M56: 0 | N56: 0
A57: NAML Cash | B57: Cash | C57: MYS | D57: MYR | F57: RECVBC | G57: =SUMIFS(InPortfolio!G:G,InPortfolio!B:B,"TBI",InPortfolio!C:C,"TradeDrVal") -> 0 | H57: 1 | I57: 0 | J57: 1 | K57: 0 | L57: 0 | M57: 0 | N57: 0
A58: NAML Cash | B58: Time Deposit Total | G58: 10300000 | I58: 10300000 | K58: 10300000 | L58: 10300000 | M58: 0 | N58: 0
A59: NAML Cash | B59: Time Deposit | C59: MYS | D59: MYR | F59: DEPOSIT(MYR) | G59: =SUMIFS(InPortfolio!J:J,InPortfolio!B:B,"CSH") -> 10300000 | H59: 1 | I59: 10300000 | J59: 1 | K59: 10300000 | L59: 10300000 | M59: 0 | N59: 0

Sheet Summary
A1: Equity | B1: =" As at " & TEXT(EndDate,"dd-MMM-yyyy") -> As at 22-Oct-2021 | C1: YTD
A2: Cash / Deposit (RM) | B2: =INDEX(PortVal!K:K,MATCH("NAML Cash Total",PortVal!A:A,FALSE)) -> 9893243.26 | C2: =INDEX(PortVal!K:K,MATCH("NAML Cash Total",PortVal!A:A,FALSE)) -> 9893243.26
A3: Equity (Book Cost RM) | B3: =INDEX(PortVal!I:I,MATCH("NAML Equity Total",PortVal!A:A,FALSE)) -> 165944587.3 | C3: =INDEX(PortVal!I:I,MATCH("NAML Equity Total",PortVal!A:A,FALSE)) -> 165944587.3
A4: Equity (Market Value RM) | B4: =INDEX(PortVal!K:K,MATCH("NAML Equity Total",PortVal!A:A,FALSE)) -> 180891638.6 | C4: =INDEX(PortVal!K:K,MATCH("NAML Equity Total",PortVal!A:A,FALSE)) -> 180891638.6
A5: NAV & Portfolio (RM) | B5: =INDEX(PortVal!L:L,MATCH("Total",PortVal!A:A,FALSE)) -> 191266526.7 | C5: =INDEX(PortVal!L:L,MATCH("Total",PortVal!A:A,FALSE)) -> 191266526.7
A6: No of Stock Held | B6: =COUNTIF(PortVal!B:B,"Stock")+COUNTIF(PortVal!B:B,"Convertible Bond") -> 44 | C6: =COUNTIF(PortVal!B:B,"Stock")+COUNTIF(PortVal!B:B,"Convertible Bond") -> 44
A7: No of Warrants / Rights / Bonus / IPO Held | B7: =COUNTIF(PortVal!B:B,"Rights")+COUNTIF(PortVal!B:B,"Warrant") -> 0 | C7: =COUNTIF(PortVal!B:B,"Rights")+COUNTIF(PortVal!B:B,"Warrant") -> 0
A8: No of Stocks with Unrealised Gain/ Break-even | B8: =SUMPRODUCT((PortVal!B:B="Stock")*(PortVal!M:M>0))+SUMPRODUCT((PortVal!B:B="Rights")*(PortVal!M:M>0)) -> 33 | C8: =SUMPRODUCT((PortVal!B:B="Stock")*(PortVal!M:M>0))+SUMPRODUCT((PortVal!B:B="Rights")*(PortVal!M:M>0)) -> 33
A9: No of Stocks with Unrealised Losses | B9: =SUMPRODUCT((PortVal!B:B="Stock")*(PortVal!N:N<0))+SUMPRODUCT((PortVal!B:B="Rights")*(PortVal!N:N<0)) -> 11 | C9: =SUMPRODUCT((PortVal!B:B="Stock")*(PortVal!N:N<0))+SUMPRODUCT((PortVal!B:B="Rights")*(PortVal!N:N<0)) -> 11
A10: Realised Gain / Loss on Stocks (RM) | B10: =-SUMIFS(InTrn!M:M,InTrn!C:C,"SS",InTrn!D:D,">=" & ValueDate) -> 156797.45 | C10: =-SUMIFS(InTrn!M:M,InTrn!C:C,"SS") -> 9504545.12
A11: Interest Receivable (RM) | B11: 0 | C11: 0
A12: Interest Received (RM) | B12: =-SUMIFS(InTrn!H:H,InTrn!C:C,"RM",InTrn!D:D,">=" & ValueDate)-SUMIFS(InJournal!H:H,InJournal!Q:Q,"640003",InJournal!F:F,">=" & ValueDate,InJournal!J:J," 500") -> 2867.17 | C12: =-SUMIFS(InTrn!H:H,InTrn!C:C,"RM")-SUMIFS(InJournal!H:H,InJournal!Q:Q,"640003",InJournal!J:J," 500") -> 113042.41
A13: Dividend Receivable (RM) | B13: =SUMIFS(InDiv!AT:AT,InDiv!BO:BO,"Accrual",InDiv!AH:AH,">=" & ValueDate) -> 481644.8 | C13: =SUMIFS(InDiv!AT:AT,InDiv!BO:BO,"Accrual") -> 481644.8
A14: Dividend Received (RM) | B14: =SUMIFS(InDiv!AT:AT,InDiv!BO:BO,"Received",InDiv!AH:AH,">=" & ValueDate) -> 517502.72 | C14: =SUMIFS(InDiv!AT:AT,InDiv!BO:BO,"Received") -> 5949494.1
A15: Other Income (RM) | B15: =-SUMIFS(InJournal!H:H,InJournal!Q:Q,"640003",InJournal!F:F,">=" & ValueDate,InJournal!J:J,"<>" & 500) -> 0 | C15: =-SUMIFS(InJournal!H:H,InJournal!Q:Q,"640003",InJournal!J:J,"<>" & 500) -> 0
A16: Bank Charges (RM) | B16: =-SUMIFS(InJournal!H:H,InJournal!Q:Q,"710102",InJournal!F:F,">=" & ValueDate) -> 0 | C16: =-SUMIFS(InJournal!H:H,InJournal!Q:Q,"710102") -> 0
